Workbook

Sheet TITLE
A4: Information
A6: Title | B6: Review of the wholesale broadband access markets - Charge control model for WBA Market A services
A7: Consultation | B7: Published 26th June 2014
A8: Objective | B8: Calculate the value of X for WBA Market A services
A9: Version | B9: Final non-confidential version
A10: Status | B10: Approved for release
A11: Author | B11: Ofcom
A15: Terms and conditions
A17: The terms and conditions on which OFCOM is making available the Cost Model are set out below.
A19: This Cost Model has been developed to help stakeholders understand how Ofcom has estimated how the allowed costs of providing the relevant services will change over the period of the proposed Charge Control, in order to calculate its value of X for the baskets in the Charge Control.
A21: All right, title and interest in the provided model (the ‘Cost Model’) constructed in Excel are owned by OFCOM. Such title and interest is protected by intellectual property laws. While you may freely use the Cost Model for the purposes for which it is provided, as set out in the accompanying model documentation, it is not to be modified in any way or used for commercial gain or otherwise without the prior written permission of OFCOM.
A23: No representation or warranty is given as to the accuracy, completeness or correctness of the Cost Model and it is provided 'as is'. It is provided without any representation or endorsement made and without warranty of any kind, whether express or implied, including but not limited to the implied warranties of satisfactory quality, fitness for a particular purpose, non-infringement, compatibility, security and accuracy.
A25: OFCOM does not accept any responsibility for any loss, disruption or damage to your data or your computer system which may occur whilst using the Cost Model or material derived from the Cost Model. OFCOM does not warrant that the functions contained in the Cost Model will be uninterrupted or error free. Also, OFCOM does not warrant that defects will be corrected, or that the Cost Model provided is free of viruses.
A27: In no event will OFCOM be liable for any loss or damage including, without limitation, indirect or consequential loss or damage, or any loss or damages whatsoever arising from use or loss of use of, data or profits arising out of or in connection with the use or otherwise of the provided Cost Model. By using this Cost Model, you agree to the above.
A28: These Terms and Conditions shall be covered by and construed in accordance with the laws of England and Wales. Any dispute arising under these Terms and Conditions shall be subject to the exclusive jurisdiction of the Courts of England and Wales
A32: Compatibility
A33: In places the model uses the IFERROR function, which is not supported in version of Excel prior to 2007.

Sheet Key
A1: Key
A2: This sheet provides a key to the cell types used in the model
B4: Input
B6: Output
B8: Key Assumption
A10: XYZ | B10: Note or source
B12: Raw input data sheet
B14: Calculation sheet
B16: New cells added or changed from the 2014 WBA Consultation
B18: New cells added or changed from the 2014 WBA Consultation (2014 WBA Statement)

Sheet Contents
A1: WBA Charge control model 2013 (updated for the 2014 WBA consultation & June 2014 WBA statement)
A3: Model update from 2014 WBA Consultation to WBA statement
A4: 1) All model updates from the 2014 WBA Consultation are highlighted in Blue
A5: 2)To produce the 2014 Final statement ensure the switch in tab "MAIN SHEET - OUTPUT " is selected as 2, and all input selection options (where applicable)
A6: in cells Cells B5 to B24 on the same tab are selected to the 2014 Final statement option
A7: 3) Updated base year input costs for financial year 2012/13 have been added on tab "INPUT DATA CALCULATION"
A10: Model update from as 2013 WBA Consultation
A11: 1) All model updates from the 2013 WBA Consultation are highlighted in Orange
A12: 2) Tab "January 2014 Consultation" has been added to allow the switch "Consultation" on the "MAIN SHEET - OUTPUT" tab to operate
A13: 3) Updated base year input costs for financial year 2012/13 have been added on tab "INPUT DATA CALCULATION"
A17: Model methodology
A40: List of content tabs and descriptions
A42: MAIN SHEET - OUTPUT | E42: This calculation sheet allows the selection of different scenarios for all the assumptions within the model
A43: SUMMARY CALCULATION | E43: This calculation sheet summaries the main calculations for revenue, costs, and MCE for the two services modelled, and calculates a value of X
A44: MAIN CALCULATION | E44: This calculation sheet performs the main calculations for revenue, costs, and MCE for the two services modelled
A45: VOLUMES CALCULATION | E45: This calculation sheet calculates the total bandwidth volumes given the selected assumptions on rental volume growth and bandwidth growth per end user
A46: ASSET COST CALCULATION(2) | E46: This calculation sheet calculates the capital cost for additional capex and depreciation
A47: CAPITAL CALCULATION ASSUMPTION | E47: The calculation method for MCE and the depreciation charge assumption uses only one assumption, thus no assumption selection is necessary
A48: EFF. & INFLATION ASSUMPTION | E48: The efficiency and inflation assumption contains different scenarios for the modelling assumptions on efficiency, opex nominal inflation, inflation, and asset price inflation
A49: AVE & CVE ASSUMPTION | E49: The cost volume elasticity and asset volume assumption contains different scenarios for the percentage increase in costs with increases in volumes
A50: PRICE CHANGE ASSUMPTION | E50: The price change assumption contains the level of price increases/decreases for the modelled services, i.e. Rentals and Bandwidth
A51: VOLUME ASSUMPTION | E51: The volume assumption contains different scenarios for growth or decline in end users, and bandwidth per end user over the period of the control
A52: INPUT DATA CALCULATION | E52: This sheet calculates the base year input costs that feed into the model based on the assumptions selected in the following two sheets (INPUT DATA ASSUMPTION (2) and INPUT DATA ASSUMPTION (1))
A53: INPUT DATA ASSUMPTION (2) | E53: The market boundary change assumption contains different scenarios for the amount of costs that are taken out when adjusting for market size, moving from Market 1 to Market A.
A54: INPUT DATA ASSUMPTION (1) | E54: The input data assumption sheet contains different scenarios for the base year input costs for the model. These scenarios are produced from the INPUT DATA SUMMARYa SHEET which includes a pivot table produced from BT's Raw data (BT_INPUT DATA S135)
A55: INPUT DATA SUMMARYa | E55: This sheet pivots the sheet 'BT_INPUT DATA S135' in order to produce different options for the input year base costs, based on using some of BT's adjustments suggested
A56: BT_INPUT DATA S135 | E56: This is the raw input data from BT that reconciles back to the 2012 RFS and includes all the adjustments BT deem necessary to the 2012 RFS data
A57: BT_LOOK UP TABLE | E57: This is an input mapping table that maps the services into bandwidth/rentals/excluded, and EOI and WBA costs
A58: INPUT DATA_OTHER | E58: This sheet provide details of some of the other input assumptions used in the model
A59: INPUT DATA_Price List changes | E59: This sheet summaries BT's prices changes in the WBA market from 2011 to 2013, these price changes are used to adjust the revenue in the model in the years 2012 and 2013
A60: INPUT DATA_Inflation Forecasts / WLRLLU Inflation | E60: These sheets summaries the inflation rates we considered in this model
A61: January 2014 Consultation | E61: This sheet allows for the January 2014 consultation option to be calculated

Sheet MAIN SHEET - OUTPUT
A1: SHEET TYPE: | B1: OUTPUT - Value of X
A3: ASSUMPTION Description | B3: INPUT SELECTION | C3: Description of selection | D3: Assumption options
A4: Main input assumptions | D4: 1 | E4: 2 | F4: 3 | G4: 4 | H4: 5 | I4: 6
A5: Base year input cost adjust | B5: 4 | C5: ='INPUT DATA ASSUMPTION (1) '!I4 -> 2012 RFS with BT's HON + CCA adjustment + DSLAM costs allocated 25% to Bandwidth | D5: ='INPUT DATA ASSUMPTION (1) '!$I$11 -> 2012 RFS with (50% HON) + CCA adjustment + DSLAM costs allocated 25% to Bandwidth | E5: ='INPUT DATA ASSUMPTION (1) '!$I$18 -> 2012 RFS with BT's HON + CCA adjustment | F5: ='INPUT DATA ASSUMPTION (1) '!$I$25 -> 2012 RFS with CCA adjustment + DSLAM costs allocated 25% to Bandwidth | G5: ='INPUT DATA ASSUMPTION (1) '!$I$32 -> 2012 RFS with BT's HON + CCA adjustment + DSLAM costs allocated 25% to Bandwidth | H5: ='INPUT DATA ASSUMPTION (1) '!$I$39 -> NOT USED | I5: ='INPUT DATA ASSUMPTION (1) '!$I$46 -> NOT USED | J5: Refer to sheet INPUT DATA ASSUMPTION (1)
A6: Market boundary change (Market 1 to Market A) | B6: 1 | C6: ='INPUT DATA ASSUMPTION (2) '!I4 -> Mid Costs removed (Costs/Revenue=0.5) | D6: ='INPUT DATA ASSUMPTION (2) '!$I$11 -> Mid Costs removed (Costs/Revenue=0.5) | E6: ='INPUT DATA ASSUMPTION (2) '!$I$18 -> High Costs removed (Costs/Revenue=0.7) | F6: ='INPUT DATA ASSUMPTION (2) '!$I$25 -> Low Costs removed (Costs/Revenue=0.3) | G6: ='INPUT DATA ASSUMPTION (2) '!$I$32 -> NOT USED | H6: ='INPUT DATA ASSUMPTION (2) '!$I$39 -> NOT USED | I6: ='INPUT DATA ASSUMPTION (2) '!$I$46 -> NOT USED | J6: Refer to sheet INPUT DATA ASSUMPTION (2)
A7: End User Rental Growth | B7: 4 | C7: ='VOLUME ASSUMPTION'!I4 -> 2014 WBA Statement | D7: ='VOLUME ASSUMPTION'!$I$11 -> Medium Volumes | E7: ='VOLUME ASSUMPTION'!$I$18 -> High Volumes | F7: ='VOLUME ASSUMPTION'!$I$25 -> Low Volumes | G7: ='VOLUME ASSUMPTION'!$I$32 -> 2014 WBA Statement | H7: ='VOLUME ASSUMPTION'!$I$39 -> High C | I7: ='VOLUME ASSUMPTION'!$I$46 -> Low C | J7: Refer to sheet VOLUME ASSUMPTION
A8: Bandwidth Growth | G8: ='VOLUME ASSUMPTION'!$I$32 -> 2014 WBA Statement | H8: ='VOLUME ASSUMPTION'!$I$39 -> High C | I8: ='VOLUME ASSUMPTION'!$I$46 -> Low C
A9: End User Rental CVE | B9: 5 | C9: ='AVE & CVE ASSUMPTION'!I4 -> 2014 WBA Statement - WACC 10.8% | D9: ='AVE & CVE ASSUMPTION'!$I$11 -> Base case - RFS Published | E9: ='AVE & CVE ASSUMPTION'!$I$18 -> High Case | F9: ='AVE & CVE ASSUMPTION'!$I$25 -> Low Case | G9: ='AVE & CVE ASSUMPTION'!$I$32 -> Mid Case | H9: ='AVE & CVE ASSUMPTION'!$I$39 -> 2014 WBA Statement - WACC 10.8% | I9: ='AVE & CVE ASSUMPTION'!$I$46 -> NOT USED | J9: Refer to sheet AVE & CVE ASSUMPTION
A10: End User Rental AVE | D10: ='AVE & CVE ASSUMPTION'!$I$11 -> Base case - RFS Published | E10: ='AVE & CVE ASSUMPTION'!$I$18 -> High Case | F10: ='AVE & CVE ASSUMPTION'!$I$25 -> Low Case | G10: ='AVE & CVE ASSUMPTION'!$I$32 -> Mid Case | H10: ='AVE & CVE ASSUMPTION'!$I$39 -> 2014 WBA Statement - WACC 10.8% | I10: ='AVE & CVE ASSUMPTION'!$I$46 -> NOT USED
A11: Bandwidth CVE | D11: ='AVE & CVE ASSUMPTION'!$I$11 -> Base case - RFS Published | E11: ='AVE & CVE ASSUMPTION'!$I$18 -> High Case | F11: ='AVE & CVE ASSUMPTION'!$I$25 -> Low Case | G11: ='AVE & CVE ASSUMPTION'!$I$32 -> Mid Case | H11: ='AVE & CVE ASSUMPTION'!$I$39 -> 2014 WBA Statement - WACC 10.8% | I11: ='AVE & CVE ASSUMPTION'!$I$46 -> NOT USED
A12: Bandwidth AVE | D12: ='AVE & CVE ASSUMPTION'!$I$11 -> Base case - RFS Published | E12: ='AVE & CVE ASSUMPTION'!$I$18 -> High Case | F12: ='AVE & CVE ASSUMPTION'!$I$25 -> Low Case | G12: ='AVE & CVE ASSUMPTION'!$I$32 -> Mid Case | H12: ='AVE & CVE ASSUMPTION'!$I$39 -> 2014 WBA Statement - WACC 10.8% | I12: ='AVE & CVE ASSUMPTION'!$I$46 -> NOT USED
A13: other assumptions
A14: Efficiency and Inflation | B14: 5 | C14: ='EFF. & INFLATION ASSUMPTION'!I3 -> 2014 WBA Statement | D14: ='EFF. & INFLATION ASSUMPTION'!$I10 -> 3.5% efficiency, CPI, CPI | E14: ='EFF. & INFLATION ASSUMPTION'!$I17 -> 3.5% efficiency, CPI, RPI | F14: ='EFF. & INFLATION ASSUMPTION'!$I24 -> 5% efficiency, CPI, RPI | G14: ='EFF. & INFLATION ASSUMPTION'!$I31 -> 5% efficiency, CPI, CPI | H14: ='EFF. & INFLATION ASSUMPTION'!$I$38 -> 2014 WBA Statement | I14: ='EFF. & INFLATION ASSUMPTION'!$I$45 -> NOT USED | J14: Refer to sheet EFF. & INFLATION ASSUMPTION
A15: Efficiency | D15: ='EFF. & INFLATION ASSUMPTION'!$I11 -> 0.035 | E15: ='EFF. & INFLATION ASSUMPTION'!$I18 -> 0.035 | F15: ='EFF. & INFLATION ASSUMPTION'!$I25 -> 0.05 | G15: ='EFF. & INFLATION ASSUMPTION'!$I32 -> 0.05
A16: Opex Nominal inflation | D16: ='EFF. & INFLATION ASSUMPTION'!$I12 -> CPI | E16: ='EFF. & INFLATION ASSUMPTION'!$I19 -> CPI | F16: ='EFF. & INFLATION ASSUMPTION'!$I26 -> CPI | G16: ='EFF. & INFLATION ASSUMPTION'!$I33 -> CPI | H16: ='EFF. & INFLATION ASSUMPTION'!$I$38 -> 2014 WBA Statement | I16: ='EFF. & INFLATION ASSUMPTION'!$I$45 -> NOT USED
A17: Inflation | D17: ='EFF. & INFLATION ASSUMPTION'!$I13 -> CPI | E17: ='EFF. & INFLATION ASSUMPTION'!$I20 -> RPI | F17: ='EFF. & INFLATION ASSUMPTION'!$I27 -> RPI | G17: ='EFF. & INFLATION ASSUMPTION'!$I34 -> CPI | H17: ='EFF. & INFLATION ASSUMPTION'!$I$38 -> 2014 WBA Statement | I17: ='EFF. & INFLATION ASSUMPTION'!$I$45 -> NOT USED
A18: End User Rental assets (Nominal unit price change) | D18: ='EFF. & INFLATION ASSUMPTION'!$I14 -> 0 | E18: ='EFF. & INFLATION ASSUMPTION'!$I21 -> 0 | F18: ='EFF. & INFLATION ASSUMPTION'!$I28 -> 0 | G18: ='EFF. & INFLATION ASSUMPTION'!$I35 -> 0 | H18: ='EFF. & INFLATION ASSUMPTION'!$I$38 -> 2014 WBA Statement | I18: ='EFF. & INFLATION ASSUMPTION'!$I$45 -> NOT USED
A19: Bandwidth assets (Nominal unit price change) | D19: ='EFF. & INFLATION ASSUMPTION'!$I15 -> 0 | E19: ='EFF. & INFLATION ASSUMPTION'!$I22 -> 0 | F19: ='EFF. & INFLATION ASSUMPTION'!$I29 -> 0 | G19: ='EFF. & INFLATION ASSUMPTION'!$I36 -> 0 | H19: ='EFF. & INFLATION ASSUMPTION'!$I$38 -> 2014 WBA Statement | I19: ='EFF. & INFLATION ASSUMPTION'!$I$45 -> NOT USED
A20: Price change End User Rental | B20: 1 | C20: ='PRICE CHANGE ASSUMPTION'!I4 -> Start Revenue - average of prior year | D20: ='PRICE CHANGE ASSUMPTION'!$I$11 -> Start Revenue - average of prior year | E20: ='PRICE CHANGE ASSUMPTION'!$I$18 -> NOT USED | F20: ='PRICE CHANGE ASSUMPTION'!$I$25 -> NOT USED | G20: ='PRICE CHANGE ASSUMPTION'!$I$32 -> NOT USED | H20: ='PRICE CHANGE ASSUMPTION'!$I$39 -> NOT USED | I20: ='PRICE CHANGE ASSUMPTION'!$I$46 -> NOT USED | J20: Refer to sheet PRICE CHANGE ASSUMPTION
A21: Price change Bandwidth | D21: ='PRICE CHANGE ASSUMPTION'!$I$11 -> Start Revenue - average of prior year | E21: ='PRICE CHANGE ASSUMPTION'!$I$18 -> NOT USED | F21: ='PRICE CHANGE ASSUMPTION'!$I$25 -> NOT USED | G21: ='PRICE CHANGE ASSUMPTION'!$I$32 -> NOT USED | H21: ='PRICE CHANGE ASSUMPTION'!$I$39 -> NOT USED | I21: ='PRICE CHANGE ASSUMPTION'!$I$46 -> NOT USED
A22: Price change End User Rental - EOI Charge | D22: ='PRICE CHANGE ASSUMPTION'!$I$11 -> Start Revenue - average of prior year | E22: ='PRICE CHANGE ASSUMPTION'!$I$18 -> NOT USED | F22: ='PRICE CHANGE ASSUMPTION'!$I$25 -> NOT USED | G22: ='PRICE CHANGE ASSUMPTION'!$I$32 -> NOT USED | H22: ='PRICE CHANGE ASSUMPTION'!$I$39 -> NOT USED | I22: ='PRICE CHANGE ASSUMPTION'!$I$46 -> NOT USED
A23: Price change Bandwidth - EOI Charge | D23: ='PRICE CHANGE ASSUMPTION'!$I$11 -> Start Revenue - average of prior year | E23: ='PRICE CHANGE ASSUMPTION'!$I$18 -> NOT USED | F23: ='PRICE CHANGE ASSUMPTION'!$I$25 -> NOT USED | G23: ='PRICE CHANGE ASSUMPTION'!$I$32 -> NOT USED | H23: ='PRICE CHANGE ASSUMPTION'!$I$39 -> NOT USED | I23: ='PRICE CHANGE ASSUMPTION'!$I$46 -> NOT USED
A24: Asset (MCE & Depreciation) Calculation | B24: 1 | C24: ='CAPITAL CALCULATION ASSUMPTION'!I4 -> Main method | D24: ='CAPITAL CALCULATION ASSUMPTION'!$I$11 -> Main method | E24: ='CAPITAL CALCULATION ASSUMPTION'!$I$18 -> NOT USED | F24: ='CAPITAL CALCULATION ASSUMPTION'!$I$25 -> NOT USED | G24: ='CAPITAL CALCULATION ASSUMPTION'!$I$32 -> NOT USED | H24: ='CAPITAL CALCULATION ASSUMPTION'!$I$39 -> NOT USED | I24: ='CAPITAL CALCULATION ASSUMPTION'!$I$46 -> NOT USED | J24: Refer to sheet CAPITAL CALCULATION ASSUMPTION
A27: CALCULATION OF 3 YEAR X | B27: ='SUMMARY CALCULATION'!E28 -> -0.1066127245 | D27: 2013 WBA Consultation to 2014 WBA Consultation switch | F27: 2014 WBA Consultation to 2014 WBA Statement switch
D28: 1 | E28: 2014 WBA Consultation | F28: 1 | G28: As per 2014 WBA Consultation switch
D29: 2 | E29: 2013 WBA Consultation | F29: 2 | G29: 2014 WBA Statement
A30: 2013 WBA Consultation - 11 July 2013 - Figure 7.7 | D30: 1 | E30: Consultation switch | F30: 2 | G30: Statement switch
A32: Description of case | B32: Key assumptions | D32: X values (under our High, Medium and Low volume assumptions)
B33: Efficiency | C33: DSLAM reallocation | D33: High volume | E33: Medium volume | F33: Low volume
A34: Moderate efficiency, no DSLAM cost reallocation | B34: 0.05 | C34: 0 | D34: -0.1 | E34: -0.06 | F34: -0.03
A36: Low efficiency, no DSLAM cost reallocation | B36: 0.035 | C36: 0 | D36: -0.09 | E36: -0.06 | F36: -0.02
A38: Base - Moderate efficiency, 25% DSLAM cost reallocation | B38: 0.05 | C38: 0.25 | D38: -0.07 | E38: -0.04 | F38: -0.01
A40: Low efficiency, 25% DSLAM cost reallocation | B40: 0.035 | C40: 0.25 | D40: -0.06 | E40: -0.03 | F40: 0
A42: Scenario Selection to produce Figure 7.7
B44: Moderate efficiency, no DSLAM cost reallocation | C44: Low efficiency, no DSLAM cost reallocation | D44: Base - Moderate efficiency, 25% DSLAM cost reallocation | E44: Low efficiency, 25% DSLAM cost reallocation
A45: Base year input cost adjust | B45: 2 | C45: 2 | D45: 4 | E45: 4
A46: Market size adjustment (AVE/CVE) | B46: 1 | C46: 1 | D46: 1 | E46: 1
A47: main forecasting assumptions
A48: End User Rental Growth | B48: 1,2, and 3 | C48: 1,2, and 3 | D48: 1,2, and 3 | E48: 1,2, and 3
A49: Bandwidth Growth
A50: End User Rental CVE | B50: 1 | C50: 1 | D50: 1 | E50: 1
A51: End User Rental AVE
A52: Bandwidth CVE
A53: Bandwidth AVE
A54: other assumptions
A55: Efficiency | B55: 4 | C55: 1 | D55: 4 | E55: 1
A56: Opex Nominal inflation
A57: Inflation
A58: End User Rental assets (Nominal unit price change)
A59: Bandwidth assets (Nominal unit price change)
A60: Price change End User Rental | B60: 1 | C60: 1 | D60: 1 | E60: 1
A61: Price change Bandwidth
A62: Price change End User Rental - EOI Charge
A63: Price change Bandwidth - EOI Charge
A64: Asset (MCE & Depreciation) Calculation | B64: 1 | C64: 1 | D64: 1 | E64: 1
A66: 2014 WBA Consultation - January 2014 - Figure 1.1
A68: Basket | B68: Services within scope | C68: Main control | D68: Sub-caps
A69: IPstream Connect | B69: IPstream Connect Max and Max Premium (up to 8Mbit/s) End User Access – Connection | C69: CPI + X, where X is between
B70: IPstream Connect Max and Max Premium (up to 8Mbit/s) End User Access – Rental | C70: -15.2% to -8.7% | D70: CPI +(X + 6)
B71: IPstream Connect Max and Max Premium (up to 8Mbit/s) End User Access - IPstream Connect EU bandwidth charge per month
B72: IPstream Connect Contracted Bandwidth per Mbit/s per node rental | D72: CPI +(X + 3)
B73: IPstream Connect End User Re-grade | D73: CPI +(X + 6)
B74: IPstream Connect End User Migration[1] | D74: CPI +(X + 6)
B75: IPstream Connect ADSL Cancellation | D75: CPI +(X + 6)
B76: IPstream Connect Communication Provider (CP) Handover
B77: IPstream Connect 20C Interconnect Links 1Gbit/s and 10Gbit/s
A78: [1] IPstream Connect End User Migration is also known as IPstream Connect End User Transfer.
A80: Scenario Selection to produce Figure 1.1
B82: Low Range | C82: High Range | D82: Mid estimate
A83: Base year input cost adjust | B83: 2 | C83: 2 | D83: 2
A84: Market size adjustment (AVE/CVE) | B84: 1 | C84: 1 | D84: 1
A85: main forecasting assumptions | B85: 3 | C85: 2 | D85: 1
A86: End User Rental Growth
A87: Bandwidth Growth | B87: 1 | C87: 1 | D87: 1
A88: End User Rental CVE
A89: End User Rental AVE
A90: Bandwidth CVE
A91: Bandwidth AVE
A92: other assumptions | B92: 1 | C92: 4 | D92: 4
A93: Efficiency
A94: Opex Nominal inflation
A95: Inflation
A96: End User Rental assets (Nominal unit price change)
A97: Bandwidth assets (Nominal unit price change)
A98: Price change End User Rental | B98: 1 | C98: 1 | D98: 1
A99: Price change Bandwidth
A100: Price change End User Rental - EOI Charge
A101: Price change Bandwidth - EOI Charge
A102: Asset (MCE & Depreciation) Calculation | B102: 1 | C102: 1 | D102: 1
A103: Consultation switch | B103: 1 | C103: 1 | D103: 1

Sheet SUMMARY CALCULATION
A1: SHEET TYPE: | B1: SUMMARY - Main modelling Calculations, Revenue, costs, and Margin
A3: SUMMARY | C3: ='MAIN CALCULATION '!C30 -> Base Year 2012 | D3: ='MAIN CALCULATION '!D30 -> 12/13 | E3: ='MAIN CALCULATION '!E30 -> 13/14 | F3: ='MAIN CALCULATION '!F30 -> 14/15 | G3: ='MAIN CALCULATION '!G30 -> 15/16 | H3: ='MAIN CALCULATION '!H30 -> 16/17
B4: Revenue (Excluding EOI) | C4: ='MAIN CALCULATION '!C31 -> 260.5259483 | D4: ='MAIN CALCULATION '!D31 -> 280993.8835 | E4: ='MAIN CALCULATION '!E31 -> 286232.8586 | F4: ='MAIN CALCULATION '!F31 -> 326467.7738 | G4: ='MAIN CALCULATION '!G31 -> 349866.6493 | H4: ='MAIN CALCULATION '!H31 -> 361524.1405
B7: WBA Operating costs | C7: ='MAIN CALCULATION '!C34 -> 82.9837507 | D7: ='MAIN CALCULATION '!D34 -> 78328.9132 | E7: ='MAIN CALCULATION '!E34 -> 83379.00103 | F7: ='MAIN CALCULATION '!F34 -> 85605.63789 | G7: ='MAIN CALCULATION '!G34 -> 84323.3119 | H7: ='MAIN CALCULATION '!H34 -> 81340.99546
B8: WBA Depreciation Costs | C8: ='MAIN CALCULATION '!C35 -> 107.972397 | D8: ='MAIN CALCULATION '!D35 -> 80302.23585 | E8: ='MAIN CALCULATION '!E35 -> 89933.40471 | F8: ='MAIN CALCULATION '!F35 -> 96745.68254 | G8: ='MAIN CALCULATION '!G35 -> 99429.42157 | H8: ='MAIN CALCULATION '!H35 -> 99605.88856
B9: WBA Return on CM | C9: ='MAIN CALCULATION '!C36 -> 59.59390767 | D9: ='MAIN CALCULATION '!D36 -> 61073.98725 | E9: ='MAIN CALCULATION '!E36 -> 69279.83414 | F9: ='MAIN CALCULATION '!F36 -> 75318.85796 | G9: ='MAIN CALCULATION '!G36 -> 78068.89569 | H9: ='MAIN CALCULATION '!H36 -> 78710.68002
B10: WBA MCE | C10: ='MAIN CALCULATION '!C37 -> 601.9586633 | D10: ='MAIN CALCULATION '!D37 -> 565499.882 | E10: ='MAIN CALCULATION '!E37 -> 641479.9457 | F10: ='MAIN CALCULATION '!F37 -> 697396.833 | G10: ='MAIN CALCULATION '!G37 -> 722860.1453 | H10: ='MAIN CALCULATION '!H37 -> 728802.5927
C15: =C3 -> Base Year 2012 | D15: 12/13 | E15: 13/14 | F15: 14/15 | G15: 15/16 | H15: 16/17
B16: Revenue (Excluding EOI from input revenue) | C16: =C4 -> 260.5259483 | D16: =D4 -> 280993.8835 | E16: 286232.8586 | F16: 326467.7738 | G16: 349866.6493 | H16: 361524.1405
B20: COSTS (exclude EOI) | C20: =C7+C8+C9 -> 250.5500554 | D20: 219705.1363 | E20: 242592.2399 | F20: 257670.1784 | G20: 261821.6292 | H20: 259657.564
E24: Forecast revenue and costs excluding EOI
B26: CALCULATION OF 3 YEAR X | E26: =(H20/H16)^(1/3)-1 -> -0.1044540132
B27: Geometric average between 12/13 to 16/17 | E27: =GEOMEAN(1+'EFF. & INFLATION ASSUMPTION'!$F$6, 1+'EFF. & INFLATION ASSUMPTION'!$G$6, 1+'EFF. & INFLATION ASSUMPTION'!$H$6)-1 -> 0.02066661904
B28: Calculation of 3 year X with geometric adjustment | E28: =E26*(1+E27) -> -0.1066127245

Sheet MAIN CALCULATION
A1: SHEET TYPE: | B1: CALCULATION - Main modelling Calculations, Revenue, costs, and Margin
A3: End User rental services | C3: Base Year 2012 | D3: 12/13 | E3: 13/14 | F3: 14/15 | G3: 15/16 | H3: 16/17
B4: Revenue (Excluding EOI) | C4: =C5-C6 -> 95.7040492 | D4: =IF('2014 WBA Consultation'!E6="Forecast",(C4*(1+'VOLUMES CALCULATION'!$D$6)*(1+'PRICE CHANGE ASSUMPTION'!$D$4)),(D5-D6)) -> 99627.62821 | E4: =D4*(1+'VOLUMES CALCULATION'!$E$6)*(1+'PRICE CHANGE ASSUMPTION'!$E$4) -> 112272.438 | F4: =E4*(1+'VOLUMES CALCULATION'!$F$6)*(1+'PRICE CHANGE ASSUMPTION'!$F$4) -> 111164.0283 | G4: =F4*(1+'VOLUMES CALCULATION'!$G$6)*(1+'PRICE CHANGE ASSUMPTION'!$G$4) -> 105249.2127 | H4: =G4*(1+'VOLUMES CALCULATION'!$H$6)*(1+'PRICE CHANGE ASSUMPTION'!$H$4) -> 98432.85269
B5: Revenue | C5: ='INPUT DATA CALCULATION'!D4 -> 157.7406283 | D5: ='INPUT DATA CALCULATION'!D11 -> 135391.6282
B6: EOI Costs (operating costs ONLY) | C6: ='INPUT DATA CALCULATION'!D5 -> 62.03657906 | D6: ='INPUT DATA CALCULATION'!D12 -> 35764
B7: WBA Operating costs | C7: ='INPUT DATA CALCULATION'!D6 -> 42.88186796 | D7: =IF('2014 WBA Consultation'!E6="Forecast",(C7*(1+'VOLUMES CALCULATION'!D11*'AVE & CVE ASSUMPTION'!D4)*(1+'EFF. & INFLATION ASSUMPTION'!D4)*(1+'EFF. & INFLATION ASSUMPTION'!D5)),'INPUT DATA CALCULATION'!D13) -> 46827.78592 | E7: =D7*(1+'VOLUMES CALCULATION'!E11*'AVE & CVE ASSUMPTION'!E4)*(1+'EFF. & INFLATION ASSUMPTION'!E4)*(1+'EFF. & INFLATION ASSUMPTION'!E5) -> 46187.55644 | F7: =E7*(1+'VOLUMES CALCULATION'!F11*'AVE & CVE ASSUMPTION'!F4)*(1+'EFF. & INFLATION ASSUMPTION'!F4)*(1+'EFF. & INFLATION ASSUMPTION'!F5) -> 44109.8554 | G7: =F7*(1+'VOLUMES CALCULATION'!G11*'AVE & CVE ASSUMPTION'!G4)*(1+'EFF. & INFLATION ASSUMPTION'!G4)*(1+'EFF. & INFLATION ASSUMPTION'!G5) -> 40675.39148 | H7: =G7*(1+'VOLUMES CALCULATION'!H11*'AVE & CVE ASSUMPTION'!H4)*(1+'EFF. & INFLATION ASSUMPTION'!H4)*(1+'EFF. & INFLATION ASSUMPTION'!H5) -> 37126.25206
B8: WBA Depreciation Costs | C8: ='CAPITAL CALCULATION ASSUMPTION'!C3 -> 49.6137854 | D8: ='CAPITAL CALCULATION ASSUMPTION'!D3 -> 35037.09854 | E8: ='CAPITAL CALCULATION ASSUMPTION'!E3 -> 35317.39532 | F8: ='CAPITAL CALCULATION ASSUMPTION'!F3 -> 34469.77784 | G8: ='CAPITAL CALCULATION ASSUMPTION'!G3 -> 32484.31863 | H8: ='CAPITAL CALCULATION ASSUMPTION'!H3 -> 30301.37242
B9: WBA Return on CM | C9: ='CAPITAL CALCULATION ASSUMPTION'!C4 -> 24.7531334 | D9: ='CAPITAL CALCULATION ASSUMPTION'!D4 -> 22211.79071 | E9: ='CAPITAL CALCULATION ASSUMPTION'!E4 -> 22389.48504 | F9: ='CAPITAL CALCULATION ASSUMPTION'!F4 -> 21852.1374 | G9: ='CAPITAL CALCULATION ASSUMPTION'!G4 -> 20593.45428 | H9: ='CAPITAL CALCULATION ASSUMPTION'!H4 -> 19209.57416
B10: WBA MCE | C10: ='CAPITAL CALCULATION ASSUMPTION'!C5 -> 250.0316505 | D10: ='CAPITAL CALCULATION ASSUMPTION'!D5 -> 205664.7288 | E10: ='CAPITAL CALCULATION ASSUMPTION'!E5 -> 207310.0467 | F10: ='CAPITAL CALCULATION ASSUMPTION'!F5 -> 202334.6055 | G10: ='CAPITAL CALCULATION ASSUMPTION'!G5 -> 190680.1323 | H10: ='CAPITAL CALCULATION ASSUMPTION'!H5 -> 177866.4274
A12: Contracted Bandwidth services | C12: Base Year 2012 | D12: 12/13 | E12: 13/14 | F12: 14/15 | G12: 15/16 | H12: 16/17
B13: Revenue (Excluding EOI) | C13: =C14-C15 -> 164.8218992 | D13: =IF('2014 WBA Consultation'!E6="Forecast",(C13*(1+'VOLUMES CALCULATION'!$D$8)*(1+'PRICE CHANGE ASSUMPTION'!$D$5)),'MAIN CALCULATION '!D14-'MAIN CALCULATION '!D15) -> 181366.2553 | E13: =D13*(1+'VOLUMES CALCULATION'!$E$8)*(1+'PRICE CHANGE ASSUMPTION'!$E$5) -> 173960.4207 | F13: =E13*(1+'VOLUMES CALCULATION'!$F$8)*(1+'PRICE CHANGE ASSUMPTION'!$F$5) -> 215303.7455 | G13: =F13*(1+'VOLUMES CALCULATION'!$G$8)*(1+'PRICE CHANGE ASSUMPTION'!$G$5) -> 244617.4366 | H13: =G13*(1+'VOLUMES CALCULATION'!$H$8)*(1+'PRICE CHANGE ASSUMPTION'!$H$5) -> 263091.2878
B14: Revenue | C14: ='INPUT DATA CALCULATION'!C4 -> 176.035122 | D14: ='INPUT DATA CALCULATION'!C11 -> 181366.2553
B15: EOI Costs (operating costs ONLY) | C15: ='INPUT DATA CALCULATION'!C5 -> 11.21322282 | D15: ='INPUT DATA CALCULATION'!C12 -> 0
B16: WBA Operating costs | C16: ='INPUT DATA CALCULATION'!C6 -> 40.10188274 | D16: =IF('2014 WBA Consultation'!E6="Forecast",(C16*(1+'VOLUMES CALCULATION'!D8*'AVE & CVE ASSUMPTION'!D6)*(1+'EFF. & INFLATION ASSUMPTION'!D4)*(1+'EFF. & INFLATION ASSUMPTION'!D5)),'INPUT DATA CALCULATION'!C13) -> 31501.12727 | E16: =D16*(1+'VOLUMES CALCULATION'!E8*'AVE & CVE ASSUMPTION'!E6)*(1+'EFF. & INFLATION ASSUMPTION'!E4)*(1+'EFF. & INFLATION ASSUMPTION'!E5) -> 37191.4446 | F16: =E16*(1+'VOLUMES CALCULATION'!F8*'AVE & CVE ASSUMPTION'!F6)*(1+'EFF. & INFLATION ASSUMPTION'!F4)*(1+'EFF. & INFLATION ASSUMPTION'!F5) -> 41495.78249 | G16: =F16*(1+'VOLUMES CALCULATION'!G8*'AVE & CVE ASSUMPTION'!G6)*(1+'EFF. & INFLATION ASSUMPTION'!G4)*(1+'EFF. & INFLATION ASSUMPTION'!G5) -> 43647.92042 | H16: =G16*(1+'VOLUMES CALCULATION'!H8*'AVE & CVE ASSUMPTION'!H6)*(1+'EFF. & INFLATION ASSUMPTION'!H4)*(1+'EFF. & INFLATION ASSUMPTION'!H5) -> 44214.7434
B17: WBA Depreciation Costs | C17: ='CAPITAL CALCULATION ASSUMPTION'!C6 -> 58.35861162 | D17: ='CAPITAL CALCULATION ASSUMPTION'!D6 -> 45265.13732 | E17: ='CAPITAL CALCULATION ASSUMPTION'!E6 -> 54616.00939 | F17: ='CAPITAL CALCULATION ASSUMPTION'!F6 -> 62275.9047 | G17: ='CAPITAL CALCULATION ASSUMPTION'!G6 -> 66945.10293 | H17: ='CAPITAL CALCULATION ASSUMPTION'!H6 -> 69304.51614
B18: WBA Return on CM | C18: ='CAPITAL CALCULATION ASSUMPTION'!C7 -> 34.84077427 | D18: ='CAPITAL CALCULATION ASSUMPTION'!D7 -> 38862.19654 | E18: ='CAPITAL CALCULATION ASSUMPTION'!E7 -> 46890.3491 | F18: ='CAPITAL CALCULATION ASSUMPTION'!F7 -> 53466.72056 | G18: ='CAPITAL CALCULATION ASSUMPTION'!G7 -> 57475.4414 | H18: ='CAPITAL CALCULATION ASSUMPTION'!H7 -> 59501.10586
B19: WBA MCE | C19: ='CAPITAL CALCULATION ASSUMPTION'!C8 -> 351.9270129 | D19: ='CAPITAL CALCULATION ASSUMPTION'!D8 -> 359835.1531 | E19: ='CAPITAL CALCULATION ASSUMPTION'!E8 -> 434169.8991 | F19: ='CAPITAL CALCULATION ASSUMPTION'!F8 -> 495062.2274 | G19: ='CAPITAL CALCULATION ASSUMPTION'!G8 -> 532180.013 | H19: ='CAPITAL CALCULATION ASSUMPTION'!H8 -> 550936.1654
A21: Excluded services | C21: Base Year 2012 | D21: 12/13 | E21: 13/14 | F21: 14/15 | G21: 15/16 | H21: 16/17
B22: Revenue (Excluding EOI) | C22: =C23-C24 -> -14.28654236 | D22: =D23-D24 -> 30227.82604
B23: Revenue | C23: ='INPUT DATA CALCULATION'!E4 -> 42.70508454 | D23: ='INPUT DATA CALCULATION'!E11 -> 87342.82604
B24: EOI Costs (operating costs ONLY) | C24: ='INPUT DATA CALCULATION'!E5 -> 56.9916269 | D24: ='INPUT DATA CALCULATION'!E12 -> 57115
B25: WBA Operating costs | C25: ='INPUT DATA CALCULATION'!E6 -> 3.44184104 | D25: ='INPUT DATA CALCULATION'!E13 -> 6580.063652
B26: WBA Depreciation Costs | C26: ='INPUT DATA CALCULATION'!E7 -> 2.567867091 | D26: ='INPUT DATA CALCULATION'!E14 -> 3045.418755
B27: WBA Return on CM | C27: =C28*'AVE & CVE ASSUMPTION'!C8 -> 1.50582586 | D27: =D28*'AVE & CVE ASSUMPTION'!D8 -> 2545.867597
B28: WBA MCE | C28: ='INPUT DATA CALCULATION'!E8 -> 15.21036222 | D28: ='INPUT DATA CALCULATION'!E15 -> 23572.84812
A30: TOTAL MODELLED SERVICES | C30: Base Year 2012 | D30: 12/13 | E30: 13/14 | F30: 14/15 | G30: 15/16 | H30: 16/17
B31: Revenue (Excluding EOI) | C31: =C4+C13 -> 260.5259483 | D31: =D4+D13 -> 280993.8835 | E31: 286232.8586 | F31: 326467.7738 | G31: 349866.6493 | H31: 361524.1405
B32: Revenue | C32: =C14+C5 -> 333.7757502 | D32: 316757.8835 | E32: 0 | F32: 0 | G32: 0 | H32: 0
B33: EOI Costs (operating costs ONLY) | C33: 73.24980188 | D33: 35764 | E33: 0 | F33: 0 | G33: 0 | H33: 0
B34: WBA Operating costs | C34: 82.9837507 | D34: 78328.9132 | E34: 83379.00103 | F34: 85605.63789 | G34: 84323.3119 | H34: 81340.99546
B35: WBA Depreciation Costs | C35: 107.972397 | D35: 80302.23585 | E35: 89933.40471 | F35: 96745.68254 | G35: 99429.42157 | H35: 99605.88856
B36: WBA Return on CM | C36: 59.59390767 | D36: 61073.98725 | E36: 69279.83414 | F36: 75318.85796 | G36: 78068.89569 | H36: 78710.68002
B37: WBA MCE | C37: 601.9586633 | D37: 565499.882 | E37: 641479.9457 | F37: 697396.833 | G37: 722860.1453 | H37: 728802.5927
B39: RETURN | C39: =C32-C33-C34-C35 -> 69.56980063 | D39: 122362.7345 | E39: -173312.4057 | F39: -182351.3204 | G39: -183752.7335 | H39: -180946.884
B40: RETURN ON MCE | C40: =C39/C37 -> 0.1155723887 | D40: 0.2163797701 | E40: -0.2701758752 | F40: -0.2614742594 | G40: -0.2542023304 | H40: -0.2482796931

Sheet VOLUMES CALCULATION
A1: SHEET TYPE: | B1: CALCULATION - Rentals and Bandwidth Volumes
A3: MODEL INPUT | C3: Starting volumes | D3: 12/13 | E3: 13/14 | F3: 14/15 | G3: 15/16 | H3: 16/17
B4: End User Rentals (Internal & External) | C4: =C18 -> 2000867.953 | D4: =IF('2014 WBA Consultation'!E7=2012,(C4*(1+'VOLUME ASSUMPTION'!D4)),D18) -> 1801382 | E4: =D4*(1+'VOLUME ASSUMPTION'!E4) -> 1819395.82 | F4: =E4*(1+'VOLUME ASSUMPTION'!F4) -> 1764813.945 | G4: =F4*(1+'VOLUME ASSUMPTION'!G4) -> 1637747.341 | H4: =G4*(1+'VOLUME ASSUMPTION'!H4) -> 1500176.565
B5: Bandwidth Volume (Internal & External) | C5: =C19 -> 1464005.195 | D5: =IF('2014 WBA Consultation'!E7=2012,(C5*(1+'VOLUME ASSUMPTION'!D4)*(1+'VOLUME ASSUMPTION'!D5)),D19) -> 1819625 | E5: =(D5*(1+'VOLUME ASSUMPTION'!E4))*(1+'VOLUME ASSUMPTION'!E5) -> 2389167.625 | F5: =(E5*(1+'VOLUME ASSUMPTION'!F4))*(1+'VOLUME ASSUMPTION'!F5) -> 2896865.745 | G5: =(F5*(1+'VOLUME ASSUMPTION'!G4))*(1+'VOLUME ASSUMPTION'!G5) -> 3225949.694 | H5: =(G5*(1+'VOLUME ASSUMPTION'!H4))*(1+'VOLUME ASSUMPTION'!H5) -> 3398215.408
B6: End User Rentals annual % increase | D6: ='VOLUME ASSUMPTION'!D4 -> -0.01 | E6: ='VOLUME ASSUMPTION'!E4 -> 0.01 | F6: ='VOLUME ASSUMPTION'!F4 -> -0.03 | G6: ='VOLUME ASSUMPTION'!G4 -> -0.072 | H6: ='VOLUME ASSUMPTION'!H4 -> -0.084
B7: Bandwidth Volume annual % increase | D7: ='VOLUME ASSUMPTION'!D5 -> 0.39 | E7: ='VOLUME ASSUMPTION'!E5 -> 0.3 | F7: ='VOLUME ASSUMPTION'!F5 -> 0.25 | G7: ='VOLUME ASSUMPTION'!G5 -> 0.2 | H7: ='VOLUME ASSUMPTION'!H5 -> 0.15
B8: Bandwidth Volume total annual % increase(including rentals) | D8: =(D5-C5)/C5 -> 0.2429088413 | E8: =(E5-D5)/D5 -> 0.313 | F8: =(F5-E5)/E5 -> 0.2125 | G8: =(G5-F5)/F5 -> 0.1136 | H8: =(H5-G5)/G5 -> 0.0534
B10: Volumes to use for cost forecasting for EU rentals
B11: ='AVE & CVE ASSUMPTION'!C4 -> 0 | D11: =D6 -> -0.01 | E11: =E6 -> 0.01 | F11: =F6 -> -0.03 | G11: =G6 -> -0.072 | H11: =H6 -> -0.084
B16: Source reference RFS
C17: Starting volumes | D17: Starting volumes - 2013
B18: End User Rentals (Internal & External) | C18: ='INPUT DATA_OTHER '!D23 -> 2000867.953 | D18: =1145572+655810 -> 1801382
B19: Bandwidth Volume (Internal & External) | C19: ='INPUT DATA_OTHER '!D24 -> 1464005.195 | D19: =1401799+417826 -> 1819625
D20: NOTE: This is the new 2012/13 base year input actual volumes
D21: Source: BT 2013 RFS page 112 http://www.btplc.com/Thegroup/RegulatoryandPublicaffairs/Financialstatements/2013/index.htm

Sheet ASSET COST CALCULATION(2)
A1: SHEET TYPE: | B1: CALCULATION -Asset costs; GRC, NRC, MCE, and annual depreciation charge
A4: End User rental services | C4: Base Year 2012 | D4: 12/13 | E4: 13/14 | F4: 14/15 | G4: 15/16 | H4: 16/17
B5: WBA Depreciation Costs | C5: ='INPUT DATA CALCULATION'!D7 -> 49.6137854 | D5: =IF('2014 WBA Consultation'!E6="Forecast", C5*(1+'VOLUMES CALCULATION'!D11*'AVE & CVE ASSUMPTION'!D5)*(1+'EFF. & INFLATION ASSUMPTION'!D7),'INPUT DATA CALCULATION'!D14) -> 35037.09854 | E5: =D5*(1+'VOLUMES CALCULATION'!E11*'AVE & CVE ASSUMPTION'!E5)*(1+'EFF. & INFLATION ASSUMPTION'!E7) -> 35317.39532 | F5: =E5*(1+'VOLUMES CALCULATION'!F11*'AVE & CVE ASSUMPTION'!F5)*(1+'EFF. & INFLATION ASSUMPTION'!F7) -> 34469.77784 | G5: =F5*(1+'VOLUMES CALCULATION'!G11*'AVE & CVE ASSUMPTION'!G5)*(1+'EFF. & INFLATION ASSUMPTION'!G7) -> 32484.31863 | H5: =G5*(1+'VOLUMES CALCULATION'!H11*'AVE & CVE ASSUMPTION'!H5)*(1+'EFF. & INFLATION ASSUMPTION'!H7) -> 30301.37242
B6: WBA Return on CM | C6: =C7*'AVE & CVE ASSUMPTION'!C8 -> 24.7531334 | D6: =D7*'AVE & CVE ASSUMPTION'!D8 -> 22211.79071 | E6: =E7*'AVE & CVE ASSUMPTION'!E8 -> 22389.48504 | F6: =F7*'AVE & CVE ASSUMPTION'!F8 -> 21852.1374 | G6: =G7*'AVE & CVE ASSUMPTION'!G8 -> 20593.45428 | H6: =H7*'AVE & CVE ASSUMPTION'!H8 -> 19209.57416
B7: WBA MCE | C7: ='INPUT DATA CALCULATION'!D8 -> 250.0316505 | D7: =IF('2014 WBA Consultation'!E6="Forecast",C7*(1+'VOLUMES CALCULATION'!D11*'AVE & CVE ASSUMPTION'!D5)*(1+'EFF. & INFLATION ASSUMPTION'!D7),'INPUT DATA CALCULATION'!D15) -> 205664.7288 | E7: =D7*(1+'VOLUMES CALCULATION'!E11*'AVE & CVE ASSUMPTION'!E5)*(1+'EFF. & INFLATION ASSUMPTION'!E7) -> 207310.0467 | F7: =E7*(1+'VOLUMES CALCULATION'!F11*'AVE & CVE ASSUMPTION'!F5)*(1+'EFF. & INFLATION ASSUMPTION'!F7) -> 202334.6055 | G7: =F7*(1+'VOLUMES CALCULATION'!G11*'AVE & CVE ASSUMPTION'!G5)*(1+'EFF. & INFLATION ASSUMPTION'!G7) -> 190680.1323 | H7: =G7*(1+'VOLUMES CALCULATION'!H11*'AVE & CVE ASSUMPTION'!H5)*(1+'EFF. & INFLATION ASSUMPTION'!H7) -> 177866.4274
A8: Contracted Bandwidth services
B9: WBA Depreciation Costs | C9: ='INPUT DATA CALCULATION'!C7 -> 58.35861162 | D9: =IF('2014 WBA Consultation'!E6 = "Forecast", C9*(1+'VOLUMES CALCULATION'!D8*'AVE & CVE ASSUMPTION'!D7)*(1+'EFF. & INFLATION ASSUMPTION'!D8),'INPUT DATA CALCULATION'!C14) -> 45265.13732 | E9: =D9*(1+'VOLUMES CALCULATION'!E8*'AVE & CVE ASSUMPTION'!E7)*(1+'EFF. & INFLATION ASSUMPTION'!E8) -> 54616.00939 | F9: =E9*(1+'VOLUMES CALCULATION'!F8*'AVE & CVE ASSUMPTION'!F7)*(1+'EFF. & INFLATION ASSUMPTION'!F8) -> 62275.9047 | G9: =F9*(1+'VOLUMES CALCULATION'!G8*'AVE & CVE ASSUMPTION'!G7)*(1+'EFF. & INFLATION ASSUMPTION'!G8) -> 66945.10293 | H9: =G9*(1+'VOLUMES CALCULATION'!H8*'AVE & CVE ASSUMPTION'!H7)*(1+'EFF. & INFLATION ASSUMPTION'!H8) -> 69304.51614
B10: WBA Return on CM | C10: =C11*'AVE & CVE ASSUMPTION'!C8 -> 34.84077427 | D10: =D11*'AVE & CVE ASSUMPTION'!D8 -> 38862.19654 | E10: =E11*'AVE & CVE ASSUMPTION'!E8 -> 46890.3491 | F10: =F11*'AVE & CVE ASSUMPTION'!F8 -> 53466.72056 | G10: =G11*'AVE & CVE ASSUMPTION'!G8 -> 57475.4414 | H10: =H11*'AVE & CVE ASSUMPTION'!H8 -> 59501.10586
B11: WBA MCE | C11: ='INPUT DATA CALCULATION'!C8 -> 351.9270129 | D11: =IF('2014 WBA Consultation'!E6="Forecast",C11*(1+'VOLUMES CALCULATION'!D8*'AVE & CVE ASSUMPTION'!D7)*(1+'EFF. & INFLATION ASSUMPTION'!D8),'INPUT DATA CALCULATION'!C15) -> 359835.1531 | E11: =D11*(1+'VOLUMES CALCULATION'!E8*'AVE & CVE ASSUMPTION'!E7)*(1+'EFF. & INFLATION ASSUMPTION'!E8) -> 434169.8991 | F11: =E11*(1+'VOLUMES CALCULATION'!F8*'AVE & CVE ASSUMPTION'!F7)*(1+'EFF. & INFLATION ASSUMPTION'!F8) -> 495062.2274 | G11: =F11*(1+'VOLUMES CALCULATION'!G8*'AVE & CVE ASSUMPTION'!G7)*(1+'EFF. & INFLATION ASSUMPTION'!G8) -> 532180.013 | H11: =G11*(1+'VOLUMES CALCULATION'!H8*'AVE & CVE ASSUMPTION'!H7)*(1+'EFF. & INFLATION ASSUMPTION'!H8) -> 550936.1654

Sheet CAPITAL CALCULATION ASSUMPTION
A1: SHEET TYPE: | B1: Assumption selection - Calculation method for MCE & Depreciation charge
C2: 11/12 | D2: 12/13 | E2: 13/14 | F2: 14/15 | G2: 15/16 | H2: 16/17
A3: ='MAIN SHEET - OUTPUT '!B24 -> 1 | B3: Rentals WBA Depreciation Costs | C3: =IF($A$3=1,C10,IF($A$3=2,C17,IF($A$3=3,C24,IF($A$3=4,C31,IF($A$3=5,C38,IF($A$3=6,C45,"ERROR")))))) -> 49.6137854 | D3: =IF($A$3=1,D10,IF($A$3=2,D17,IF($A$3=3,D24,IF($A$3=4,D31,IF($A$3=5,D38,IF($A$3=6,D45,"ERROR")))))) -> 35037.09854 | E3: 35317.39532 | F3: 34469.77784 | G3: 32484.31863 | H3: 30301.37242 | I3: Assumption selection
B4: Rentals WBA Return on CM | C4: =IF($A$3=1,C11,IF($A$3=2,C18,IF($A$3=3,C25,IF($A$3=4,C32,IF($A$3=5,C39,IF($A$3=6,C46,"ERROR")))))) -> 24.7531334 | D4: 22211.79071 | E4: 22389.48504 | F4: 21852.1374 | G4: 20593.45428 | H4: 19209.57416 | I4: Main method
B5: Rentals WBA MCE | C5: =IF($A$3=1,C12,IF($A$3=2,C19,IF($A$3=3,C26,IF($A$3=4,C33,IF($A$3=5,C40,IF($A$3=6,C47,"ERROR")))))) -> 250.0316505 | D5: 205664.7288 | E5: 207310.0467 | F5: 202334.6055 | G5: 190680.1323 | H5: 177866.4274
B6: Bandwidth WBA Depreciation Costs | C6: 58.35861162 | D6: 45265.13732 | E6: 54616.00939 | F6: 62275.9047 | G6: 66945.10293 | H6: 69304.51614
B7: Bandwidth WBA Return on CM | C7: 34.84077427 | D7: 38862.19654 | E7: 46890.3491 | F7: 53466.72056 | G7: 57475.4414 | H7: 59501.10586
B8: Bandwidth WBA MCE | C8: 351.9270129 | D8: 359835.1531 | E8: 434169.8991 | F8: 495062.2274 | G8: 532180.013 | H8: 550936.1654
A10: 1 | B10: Rentals WBA Depreciation Costs | C10: ='ASSET COST CALCULATION(2)'!C5 -> 49.6137854 | D10: ='ASSET COST CALCULATION(2)'!D5 -> 35037.09854 | E10: ='ASSET COST CALCULATION(2)'!E5 -> 35317.39532 | F10: ='ASSET COST CALCULATION(2)'!F5 -> 34469.77784 | G10: ='ASSET COST CALCULATION(2)'!G5 -> 32484.31863 | H10: ='ASSET COST CALCULATION(2)'!H5 -> 30301.37242
B11: Rentals WBA Return on CM | C11: ='ASSET COST CALCULATION(2)'!C6 -> 24.7531334 | D11: ='ASSET COST CALCULATION(2)'!D6 -> 22211.79071 | E11: ='ASSET COST CALCULATION(2)'!E6 -> 22389.48504 | F11: ='ASSET COST CALCULATION(2)'!F6 -> 21852.1374 | G11: ='ASSET COST CALCULATION(2)'!G6 -> 20593.45428 | H11: ='ASSET COST CALCULATION(2)'!H6 -> 19209.57416 | I11: Main method
B12: Rentals WBA MCE | C12: ='ASSET COST CALCULATION(2)'!C7 -> 250.0316505 | D12: ='ASSET COST CALCULATION(2)'!D7 -> 205664.7288 | E12: ='ASSET COST CALCULATION(2)'!E7 -> 207310.0467 | F12: ='ASSET COST CALCULATION(2)'!F7 -> 202334.6055 | G12: ='ASSET COST CALCULATION(2)'!G7 -> 190680.1323 | H12: ='ASSET COST CALCULATION(2)'!H7 -> 177866.4274
B13: Bandwidth WBA Depreciation Costs | C13: ='ASSET COST CALCULATION(2)'!C9 -> 58.35861162 | D13: ='ASSET COST CALCULATION(2)'!D9 -> 45265.13732 | E13: ='ASSET COST CALCULATION(2)'!E9 -> 54616.00939 | F13: ='ASSET COST CALCULATION(2)'!F9 -> 62275.9047 | G13: ='ASSET COST CALCULATION(2)'!G9 -> 66945.10293 | H13: ='ASSET COST CALCULATION(2)'!H9 -> 69304.51614
B14: Bandwidth WBA Return on CM | C14: ='ASSET COST CALCULATION(2)'!C10 -> 34.84077427 | D14: ='ASSET COST CALCULATION(2)'!D10 -> 38862.19654 | E14: ='ASSET COST CALCULATION(2)'!E10 -> 46890.3491 | F14: ='ASSET COST CALCULATION(2)'!F10 -> 53466.72056 | G14: ='ASSET COST CALCULATION(2)'!G10 -> 57475.4414 | H14: ='ASSET COST CALCULATION(2)'!H10 -> 59501.10586
B15: Bandwidth WBA MCE | C15: ='ASSET COST CALCULATION(2)'!C11 -> 351.9270129 | D15: ='ASSET COST CALCULATION(2)'!D11 -> 359835.1531 | E15: ='ASSET COST CALCULATION(2)'!E11 -> 434169.8991 | F15: ='ASSET COST CALCULATION(2)'!F11 -> 495062.2274 | G15: ='ASSET COST CALCULATION(2)'!G11 -> 532180.013 | H15: ='ASSET COST CALCULATION(2)'!H11 -> 550936.1654
A17: 2
I18: NOT USED
A24: 3
I25: NOT USED
A31: 4
I32: NOT USED
A38: 5
I39: NOT USED
A45: 6
I46: NOT USED

Sheet EFF. & INFLATION ASSUMPTION
A1: SHEET TYPE: | B1: Assumption selection - Efficiency & Inflation assumptions
I2: Assumption selection
A3: ='MAIN SHEET - OUTPUT '!B14 -> 5 | C3: Check | D3: 12/13 | E3: 13/14 | F3: 14/15 | G3: 15/16 | H3: 16/17 | I3: =IF($A$3=1,I10,IF($A$3=2,I17,IF($A$3=3,I24,IF($A$3=4,I31,IF($A$3=5,I38,IF($A$3=6,I45,"ERROR")))))) -> 2014 WBA Statement
B4: Efficiency | C4: =IF($A$3=1,C11,IF($A$3=2,C18,IF($A$3=3,C25,IF($A$3=4,C32,IF($A$3=5,C39,IF($A$3=6,C46,"ERROR")))))) -> 0 | D4: =IF($A$3=1,D11,IF($A$3=2,D18,IF($A$3=3,D25,IF($A$3=4,D32,IF($A$3=5,D39,IF($A$3=6,D46,"ERROR")))))) -> -0.05 | E4: -0.05 | F4: -0.05 | G4: -0.05 | H4: -0.05 | I4: =CHOOSE($A$3,I11,I18,I25,I32,I39,I46) -> 0
B5: Opex Nominal inflation | C5: =IF($A$3=1,C12,IF($A$3=2,C19,IF($A$3=3,C26,IF($A$3=4,C33,IF($A$3=5,C40,IF($A$3=6,C47,"ERROR")))))) -> 0 | D5: 0.03 | E5: 0.03 | F5: 0.03 | G5: 0.03 | H5: 0.03 | I5: =CHOOSE($A$3,I12,I19,I26,I33,I40,I47) -> 0
B6: Inflation | C6: 0 | D6: 0.028 | E6: 0.016 | F6: 0.02075 | G6: 0.02025 | H6: 0.021 | I6: 0
B7: End User Rental assets (Nominal unit price change) | C7: 0 | D7: 0 | E7: 0 | F7: 0 | G7: 0 | H7: 0
B8: Bandwidth assets (Nominal unit price change) | C8: 0 | D8: 0 | E8: 0 | F8: 0 | G8: 0 | H8: 0
A10: 1 | C10: Check | D10: 12/13 | E10: 13/14 | F10: 14/15 | G10: 15/16 | H10: 16/17 | I10: 3.5% efficiency, CPI, CPI
B11: Efficiency | D11: -0.035 | E11: =D11 -> -0.035 | F11: =E11 -> -0.035 | G11: =F11 -> -0.035 | H11: =G11 -> -0.035 | I11: 0.035
B12: Opex Nominal inflation | D12: ='INPUT DATA_Inflation Forecasts'!$D$21/100 -> 0.02675 | E12: ='INPUT DATA_Inflation Forecasts'!$E$21/100 -> 0.025 | F12: ='INPUT DATA_Inflation Forecasts'!$F$21/100 -> 0.022 | G12: ='INPUT DATA_Inflation Forecasts'!$G$21/100 -> 0.022 | H12: ='INPUT DATA_Inflation Forecasts'!$H$21/100 -> 0.0225 | I12: CPI
B13: Inflation | D13: ='INPUT DATA_Inflation Forecasts'!$D$21/100 -> 0.02675 | E13: ='INPUT DATA_Inflation Forecasts'!$E$21/100 -> 0.025 | F13: ='INPUT DATA_Inflation Forecasts'!$F$21/100 -> 0.022 | G13: ='INPUT DATA_Inflation Forecasts'!$G$21/100 -> 0.022 | H13: ='INPUT DATA_Inflation Forecasts'!$H$21/100 -> 0.0225 | I13: CPI
B14: End User Rental assets (Nominal unit price change) | D14: 0 | E14: 0 | F14: 0 | G14: 0 | H14: 0 | I14: =D14 -> 0
B15: Bandwidth assets (Nominal unit price change) | D15: 0 | E15: 0 | F15: 0 | G15: 0 | H15: 0 | I15: =D15 -> 0
A17: 2 | C17: Check | D17: 12/13 | E17: 13/14 | F17: 14/15 | G17: 15/16 | H17: 16/17 | I17: 3.5% efficiency, CPI, RPI
B18: Efficiency | D18: -0.035 | E18: =D18 -> -0.035 | F18: =E18 -> -0.035 | G18: =F18 -> -0.035 | H18: =G18 -> -0.035 | I18: 0.035
B19: Opex Nominal inflation | D19: ='INPUT DATA_Inflation Forecasts'!$D$21/100 -> 0.02675 | E19: ='INPUT DATA_Inflation Forecasts'!$E$21/100 -> 0.025 | F19: ='INPUT DATA_Inflation Forecasts'!$F$21/100 -> 0.022 | G19: ='INPUT DATA_Inflation Forecasts'!$G$21/100 -> 0.022 | H19: ='INPUT DATA_Inflation Forecasts'!$H$21/100 -> 0.0225 | I19: CPI
B20: Inflation | D20: ='INPUT DATA_Inflation Forecasts'!D11/100 -> 0.03125 | E20: ='INPUT DATA_Inflation Forecasts'!E11/100 -> 0.03125 | F20: ='INPUT DATA_Inflation Forecasts'!F11/100 -> 0.03 | G20: ='INPUT DATA_Inflation Forecasts'!G11/100 -> 0.033 | H20: ='INPUT DATA_Inflation Forecasts'!H11/100 -> 0.03375 | I20: RPI
B21: End User Rental assets (Nominal unit price change) | D21: 0 | E21: 0 | F21: 0 | G21: 0 | H21: 0 | I21: =D21 -> 0
B22: Bandwidth assets (Nominal unit price change) | D22: 0 | E22: 0 | F22: 0 | G22: 0 | H22: 0 | I22: =D22 -> 0
A24: 3 | C24: Check | D24: 12/13 | E24: 13/14 | F24: 14/15 | G24: 15/16 | H24: 16/17 | I24: 5% efficiency, CPI, RPI
B25: Efficiency | D25: -0.05 | E25: =D25 -> -0.05 | F25: =E25 -> -0.05 | G25: =F25 -> -0.05 | H25: =G25 -> -0.05 | I25: 0.05
B26: Opex Nominal inflation | D26: ='INPUT DATA_Inflation Forecasts'!$D$21/100 -> 0.02675 | E26: ='INPUT DATA_Inflation Forecasts'!$E$21/100 -> 0.025 | F26: ='INPUT DATA_Inflation Forecasts'!$F$21/100 -> 0.022 | G26: ='INPUT DATA_Inflation Forecasts'!$G$21/100 -> 0.022 | H26: ='INPUT DATA_Inflation Forecasts'!$H$21/100 -> 0.0225 | I26: CPI
B27: Inflation | D27: ='INPUT DATA_Inflation Forecasts'!D11/100 -> 0.03125 | E27: ='INPUT DATA_Inflation Forecasts'!E11/100 -> 0.03125 | F27: ='INPUT DATA_Inflation Forecasts'!F11/100 -> 0.03 | G27: ='INPUT DATA_Inflation Forecasts'!G11/100 -> 0.033 | H27: ='INPUT DATA_Inflation Forecasts'!H11/100 -> 0.03375 | I27: RPI
B28: End User Rental assets (Nominal unit price change) | D28: 0 | E28: 0 | F28: 0 | G28: 0 | H28: 0 | I28: =D28 -> 0
B29: Bandwidth assets (Nominal unit price change) | D29: 0 | E29: 0 | F29: 0 | G29: 0 | H29: 0 | I29: =D29 -> 0
A31: 4 | C31: Check | D31: 12/13 | E31: 13/14 | F31: 14/15 | G31: 15/16 | H31: 16/17 | I31: 5% efficiency, CPI, CPI
B32: Efficiency | D32: =D25 -> -0.05 | E32: =E25 -> -0.05 | F32: -0.05 | G32: -0.05 | H32: -0.05 | I32: 0.05
B33: Opex Nominal inflation | D33: ='INPUT DATA_Inflation Forecasts'!$D$21/100 -> 0.02675 | E33: ='INPUT DATA_Inflation Forecasts'!$E$21/100 -> 0.025 | F33: ='INPUT DATA_Inflation Forecasts'!$F$21/100 -> 0.022 | G33: ='INPUT DATA_Inflation Forecasts'!$G$21/100 -> 0.022 | H33: ='INPUT DATA_Inflation Forecasts'!$H$21/100 -> 0.0225 | I33: CPI
B34: Inflation | D34: =D13 -> 0.02675 | E34: =E13 -> 0.025 | F34: 0.022 | G34: 0.022 | H34: 0.0225 | I34: CPI
B35: End User Rental assets (Nominal unit price change) | D35: =D28 -> 0 | E35: 0 | F35: 0 | G35: 0 | H35: 0 | I35: =D35 -> 0
B36: Bandwidth assets (Nominal unit price change) | D36: =D35 -> 0 | E36: =E35 -> 0 | F36: =F35 -> 0 | G36: =G35 -> 0 | H36: =H35 -> 0 | I36: =D36 -> 0
A38: 5 | C38: Check | D38: 12/13 | E38: 13/14 | F38: 14/15 | G38: 15/16 | H38: 16/17 | I38: 2014 WBA Statement
B39: Efficiency | D39: -0.05 | E39: -0.05 | F39: -0.05 | G39: -0.05 | H39: -0.05
B40: Opex Nominal inflation | D40: 0.03 | E40: 0.03 | F40: 0.03 | G40: 0.03 | H40: 0.03
B41: Inflation | D41: ='WLRLLU Inflation'!D34 -> 0.028 | E41: ='WLRLLU Inflation'!E34 -> 0.016 | F41: ='WLRLLU Inflation'!F34 -> 0.02075 | G41: ='WLRLLU Inflation'!G34 -> 0.02025 | H41: ='WLRLLU Inflation'!H34 -> 0.021
B42: End User Rental assets (Nominal unit price change) | D42: 0 | E42: 0 | F42: 0 | G42: 0 | H42: 0
B43: Bandwidth assets (Nominal unit price change) | D43: 0 | E43: 0 | F43: 0 | G43: 0 | H43: 0
A45: 6 | C45: Check | D45: 12/13 | E45: 13/14 | F45: 14/15 | G45: 15/16 | H45: 16/17 | I45: NOT USED
B46: Efficiency
B47: Opex Nominal inflation
B48: Inflation
B49: End User Rental assets (Nominal unit price change)
B50: Bandwidth assets (Nominal unit price change)

Sheet AVE & CVE ASSUMPTION
A1: SHEET TYPE: | B1: Assumption selection - Cost volume elasticity Asset volume elasticity
A3: ='MAIN SHEET - OUTPUT '!B9 -> 5 | C3: Check | D3: 12/13 | E3: 13/14 | F3: 14/15 | G3: 15/16 | H3: 16/17 | I3: Assumption selection
B4: End User Rental CVE | C4: =IF($A$3=1,C11,IF($A$3=2,C18,IF($A$3=3,C25,IF($A$3=4,C32,IF($A$3=5,C39,IF($A$3=6,C46,"ERROR")))))) -> 0 | D4: =IF($A$3=1,D11,IF($A$3=2,D18,IF($A$3=3,D25,IF($A$3=4,D32,IF($A$3=5,D39,IF($A$3=6,D46,"ERROR")))))) -> 0.8 | E4: 0.8 | F4: 0.8 | G4: 0.8 | H4: 0.8 | I4: 2014 WBA Statement - WACC 10.8%
B5: End User Rental AVE | C5: =IF($A$3=1,C12,IF($A$3=2,C19,IF($A$3=3,C26,IF($A$3=4,C33,IF($A$3=5,C40,IF($A$3=6,C47,"ERROR")))))) -> 0 | D5: =IF($A$3=1,D12,IF($A$3=2,D19,IF($A$3=3,D26,IF($A$3=4,D33,IF($A$3=5,D40,IF($A$3=6,D47,"ERROR")))))) -> 0.8 | E5: =IF($A$3=1,E12,IF($A$3=2,E19,IF($A$3=3,E26,IF($A$3=4,E33,IF($A$3=5,E40,IF($A$3=6,E47,"ERROR")))))) -> 0.8 | F5: =IF($A$3=1,F12,IF($A$3=2,F19,IF($A$3=3,F26,IF($A$3=4,F33,IF($A$3=5,F40,IF($A$3=6,F47,"ERROR")))))) -> 0.8 | G5: 0.8 | H5: 0.8
B6: Bandwidth CVE | C6: =IF($A$3=1,C13,IF($A$3=2,C20,IF($A$3=3,C27,IF($A$3=4,C34,IF($A$3=5,C41,IF($A$3=6,C48,"ERROR")))))) -> 0 | D6: 0.66 | E6: 0.66 | F6: 0.66 | G6: 0.66 | H6: 0.66
B7: Bandwidth AVE | C7: =IF($A$3=1,C14,IF($A$3=2,C21,IF($A$3=3,C28,IF($A$3=4,C35,IF($A$3=5,C42,IF($A$3=6,C49,"ERROR")))))) -> 0 | D7: 0.66 | E7: 0.66 | F7: 0.66 | G7: 0.66 | H7: 0.66
B8: WACC | C8: ='INPUT DATA_Inflation Forecasts'!$C$38 -> 0.099 | D8: 0.108 | E8: 0.108 | F8: 0.108 | G8: 0.108 | H8: 0.108
A10: 1 | D10: 12/13 | E10: 13/14 | F10: 14/15 | G10: 15/16 | H10: 16/17
B11: End User Rental CVE | D11: 0.82 | E11: =D11 -> 0.82 | F11: =E11 -> 0.82 | G11: =F11 -> 0.82 | H11: =G11 -> 0.82 | I11: Base case - RFS Published
B12: End User Rental AVE | D12: 0.82 | E12: 0.82 | F12: 0.82 | G12: 0.82 | H12: 0.82
B13: Bandwidth CVE | D13: 0.65 | E13: 0.65 | F13: 0.65 | G13: 0.65 | H13: 0.65
B14: Bandwidth AVE | D14: 0.65 | E14: 0.65 | F14: 0.65 | G14: 0.65 | H14: 0.65
B15: WACC | D15: ='INPUT DATA_Inflation Forecasts'!$C$38 -> 0.099 | E15: ='INPUT DATA_Inflation Forecasts'!$C$38 -> 0.099 | F15: ='INPUT DATA_Inflation Forecasts'!$C$38 -> 0.099 | G15: ='INPUT DATA_Inflation Forecasts'!$C$38 -> 0.099 | H15: ='INPUT DATA_Inflation Forecasts'!$C$38 -> 0.099
A17: 2 | D17: 12/13 | E17: 13/14 | F17: 14/15 | G17: 15/16 | H17: 16/17
B18: End User Rental CVE | D18: 0.8 | E18: =D18 -> 0.8 | F18: 0.8 | G18: 0.8 | H18: 0.8 | I18: High Case
B19: End User Rental AVE | D19: 0.8 | E19: 0.8 | F19: 0.8 | G19: 0.8 | H19: 0.8
B20: Bandwidth CVE | D20: 0.7 | E20: 0.7 | F20: 0.7 | G20: 0.7 | H20: 0.7
B21: Bandwidth AVE | D21: 0.7 | E21: 0.7 | F21: 0.7 | G21: 0.7 | H21: 0.7
B22: WACC | D22: ='INPUT DATA_Inflation Forecasts'!$C$38 -> 0.099 | E22: ='INPUT DATA_Inflation Forecasts'!$C$38 -> 0.099 | F22: ='INPUT DATA_Inflation Forecasts'!$C$38 -> 0.099 | G22: ='INPUT DATA_Inflation Forecasts'!$C$38 -> 0.099 | H22: ='INPUT DATA_Inflation Forecasts'!$C$38 -> 0.099
A24: 3 | D24: 12/13 | E24: 13/14 | F24: 14/15 | G24: 15/16 | H24: 16/17
B25: End User Rental CVE | D25: 0.6 | E25: =D25 -> 0.6 | F25: 0.6 | G25: 0.6 | H25: 0.6 | I25: Low Case
B26: End User Rental AVE | D26: 0.6 | E26: 0.6 | F26: 0.6 | G26: 0.6 | H26: 0.6
B27: Bandwidth CVE | D27: 0.4 | E27: 0.4 | F27: 0.4 | G27: 0.4 | H27: 0.4
B28: Bandwidth AVE | D28: 0.4 | E28: 0.4 | F28: 0.4 | G28: 0.4 | H28: 0.4
B29: WACC | D29: ='INPUT DATA_Inflation Forecasts'!$C$38 -> 0.099 | E29: ='INPUT DATA_Inflation Forecasts'!$C$38 -> 0.099 | F29: ='INPUT DATA_Inflation Forecasts'!$C$38 -> 0.099 | G29: ='INPUT DATA_Inflation Forecasts'!$C$38 -> 0.099 | H29: ='INPUT DATA_Inflation Forecasts'!$C$38 -> 0.099
A31: 4 | D31: 12/13 | E31: 13/14 | F31: 14/15 | G31: 15/16 | H31: 16/17
B32: End User Rental CVE | D32: 0.7 | E32: =D32 -> 0.7 | F32: =E32 -> 0.7 | G32: =F32 -> 0.7 | H32: =G32 -> 0.7 | I32: Mid Case
B33: End User Rental AVE | D33: 0.7 | E33: =D33 -> 0.7 | F33: =E33 -> 0.7 | G33: =F33 -> 0.7 | H33: =G33 -> 0.7
B34: Bandwidth CVE | D34: 0.55 | E34: 0.55 | F34: 0.55 | G34: 0.55 | H34: 0.55
B35: Bandwidth AVE | D35: 0.55 | E35: 0.55 | F35: 0.55 | G35: 0.55 | H35: 0.55
B36: WACC | D36: ='INPUT DATA_Inflation Forecasts'!$C$38 -> 0.099 | E36: ='INPUT DATA_Inflation Forecasts'!$C$38 -> 0.099 | F36: ='INPUT DATA_Inflation Forecasts'!$C$38 -> 0.099 | G36: ='INPUT DATA_Inflation Forecasts'!$C$38 -> 0.099 | H36: ='INPUT DATA_Inflation Forecasts'!$C$38 -> 0.099
A38: 5 | D38: 12/13 | E38: 13/14 | F38: 14/15 | G38: 15/16 | H38: 16/17
B39: End User Rental CVE | D39: 0.8 | E39: 0.8 | F39: 0.8 | G39: 0.8 | H39: 0.8 | I39: 2014 WBA Statement - WACC 10.8%
B40: End User Rental AVE | D40: 0.8 | E40: 0.8 | F40: 0.8 | G40: 0.8 | H40: 0.8
B41: Bandwidth CVE | D41: 0.66 | E41: 0.66 | F41: 0.66 | G41: 0.66 | H41: 0.66
B42: Bandwidth AVE | D42: 0.66 | E42: 0.66 | F42: 0.66 | G42: 0.66 | H42: 0.66
B43: WACC | D43: 0.108 | E43: 0.108 | F43: 0.108 | G43: 0.108 | H43: 0.108
A45: 6 | C45: Rental Cost Driver | D45: 12/13 | E45: 13/14 | F45: 14/15 | G45: 15/16 | H45: 16/17
B46: End User Rental CVE | I46: NOT USED
B47: End User Rental AVE
B48: Bandwidth CVE
B49: Bandwidth AVE

Sheet 2014 WBA Consultation
A1: SHEET TYPE: | B1: Changes for the 2014 WBA Consulation
A3: ='MAIN SHEET - OUTPUT '!D30 -> 1 | C3: Check | D3: 12/13 | E3: 13/14 | F3: 14/15 | G3: 15/16 | H3: 16/17 | I3: Assumption selection
B4: Bandwidth Price change | C4: =IF($A$3=1,C11,IF($A$3=2,C18,IF($A$3=3,C25,IF($A$3=4,C32,IF($A$3=5,C39,IF($A$3=6,C46,"ERROR")))))) -> 0 | D4: =IF($A$3=1,D11,IF($A$3=2,D18,IF($A$3=3,D25,IF($A$3=4,D32,IF($A$3=5,D39,IF($A$3=6,D46,"ERROR")))))) -> 0 | E4: 0 | F4: 0 | G4: =IF($A$3=1,G11,IF($A$3=2,G18,IF($A$3=3,G25,IF($A$3=4,G32,IF($A$3=5,G39,IF($A$3=6,G46,"ERROR")))))) -> 0 | H4: 0 | I4: 2014 WBA Consultation
C5: =IF($A$3=1,C12,IF($A$3=2,C19,IF($A$3=3,C26,IF($A$3=4,C33,IF($A$3=5,C40,IF($A$3=6,C47,"ERROR")))))) -> 0 | D5: =IF($A$3=1,D12,IF($A$3=2,D19,IF($A$3=3,D26,IF($A$3=4,D33,IF($A$3=5,D40,IF($A$3=6,D47,"ERROR")))))) -> 0 | E5: 0 | F5: 0 | G5: 0 | H5: 0
B6: 2012/13 Costs - Forecast / actuals | C6: =IF($A$3=1,C13,IF($A$3=2,C20,IF($A$3=3,C27,IF($A$3=4,C34,IF($A$3=5,C41,IF($A$3=6,C48,"ERROR")))))) -> 0 | D6: 0 | E6: Actuals | F6: 0 | G6: 0 | H6: 0
B7: Volumes - 2012/ 2013 | C7: =IF($A$3=1,C14,IF($A$3=2,C21,IF($A$3=3,C28,IF($A$3=4,C35,IF($A$3=5,C42,IF($A$3=6,C49,"ERROR")))))) -> 0 | D7: 0 | E7: 2013 | F7: 0 | G7: 0 | H7: 0
A10: 1 | C10: Check | D10: 12/13 | E10: 13/14 | F10: 14/15 | G10: 15/16 | H10: 16/17
B11: Bandwidth Price change | I11: 2014 WBA Consultation
B13: 2012/13 Costs - Forecast / actuals | E13: Actuals
B14: Volumes - 2012/ 2013 | E14: 2013
A17: 2 | C17: Check | D17: 12/13 | E17: 13/14 | F17: 14/15 | G17: 15/16 | H17: 16/17
B18: Bandwidth Price change | E18: -2.064383562 | I18: 2013 WBA Consultation
B20: 2012/13 Costs - Forecast / actuals | E20: Forecast
B21: Volumes - 2012/ 2013 | E21: 2012
A24: 3 | C24: Check | D24: 12/13 | E24: 13/14 | F24: 14/15 | G24: 15/16 | H24: 16/17
I25: NOT USED
A31: 4 | C31: Check | D31: 12/13 | E31: 13/14 | F31: 14/15 | G31: 15/16 | H31: 16/17
I32: NOT USED
A38: 5 | C38: Check | D38: 12/13 | E38: 13/14 | F38: 14/15 | G38: 15/16 | H38: 16/17
I39: NOT USED
A45: 6 | C45: Check | D45: 12/13 | E45: 13/14 | F45: 14/15 | G45: 15/16 | H45: 16/17
I46: NOT USED

Sheet PRICE CHANGE ASSUMPTION
A1: SHEET TYPE: | B1: Assumption selection - Revenue price changes
A3: ='MAIN SHEET - OUTPUT '!B20 -> 1 | C3: Check | D3: 12/13 | E3: 13/14 | F3: 14/15 | G3: 15/16 | H3: 16/17 | I3: Assumption selection
B4: End User Rental | C4: =IF($A$3=1,C11,IF($A$3=2,C18,IF($A$3=3,C25,IF($A$3=4,C32,IF($A$3=5,C39,IF($A$3=6,C46,"ERROR")))))) -> 0 | D4: =IF($A$3=1,D11,IF($A$3=2,D18,IF($A$3=3,D25,IF($A$3=4,D32,IF($A$3=5,D39,IF($A$3=6,D46,"ERROR")))))) -> -0.04154643267 | E4: 0.1157630837 | F4: 0.02075 | G4: 0.02025 | H4: 0.021 | I4: Start Revenue - average of prior year
B5: Bandwidth | C5: =IF($A$3=1,C12,IF($A$3=2,C19,IF($A$3=3,C26,IF($A$3=4,C33,IF($A$3=5,C40,IF($A$3=6,C47,"ERROR")))))) -> 0 | D5: =IF($A$3=1,D12,IF($A$3=2,D19,IF($A$3=3,D26,IF($A$3=4,D33,IF($A$3=5,D40,IF($A$3=6,D47,"ERROR")))))) -> -0.1728326502 | E5: =IF($A$3=1,E12,IF($A$3=2,E19,IF($A$3=3,E26,IF($A$3=4,E33,IF($A$3=5,E40,IF($A$3=6,E47,"ERROR")))))) -> -0.2694848335 | F5: =IF($A$3=1,F12,IF($A$3=2,F19,IF($A$3=3,F26,IF($A$3=4,F33,IF($A$3=5,F40,IF($A$3=6,F47,"ERROR")))))) -> 0.02075 | G5: 0.02025 | H5: 0.021
A10: 1 | C10: Check | D10: 12/13 | E10: 13/14 | F10: 14/15 | G10: 15/16 | H10: 16/17
B11: End User Rental | D11: ='INPUT DATA_Price List Changes '!H7 -> -0.04154643267 | E11: ='INPUT DATA_Price List Changes '!I7 -> 0.1157630837 | F11: ='INPUT DATA_Price List Changes '!J7+'EFF. & INFLATION ASSUMPTION'!F6 -> 0.02075 | G11: ='EFF. & INFLATION ASSUMPTION'!G6 -> 0.02025 | H11: ='EFF. & INFLATION ASSUMPTION'!H6 -> 0.021 | I11: Start Revenue - average of prior year
B12: Bandwidth | D12: ='INPUT DATA_Price List Changes '!H6 -> -0.1728326502 | E12: ='INPUT DATA_Price List Changes '!I6 -> -0.2694848335 | F12: ='INPUT DATA_Price List Changes '!J6+'EFF. & INFLATION ASSUMPTION'!F6 -> 0.02075 | G12: ='EFF. & INFLATION ASSUMPTION'!G6 -> 0.02025 | H12: ='EFF. & INFLATION ASSUMPTION'!H6 -> 0.021
A17: 2 | C17: Check | D17: 12/13 | E17: 13/14 | F17: 14/15 | G17: 15/16 | H17: 16/17
I18: NOT USED
A24: 3 | C24: Check | D24: 12/13 | E24: 13/14 | F24: 14/15 | G24: 15/16 | H24: 16/17
I25: NOT USED
A31: 4 | C31: Check | D31: 12/13 | E31: 13/14 | F31: 14/15 | G31: 15/16 | H31: 16/17
I32: NOT USED
A38: 5 | C38: Check | D38: 12/13 | E38: 13/14 | F38: 14/15 | G38: 15/16 | H38: 16/17
I39: NOT USED
A45: 6 | C45: Check | D45: 12/13 | E45: 13/14 | F45: 14/15 | G45: 15/16 | H45: 16/17
I46: NOT USED

Sheet VOLUME ASSUMPTION
A1: SHEET TYPE: | B1: Assumption selection - Bandwidth and Rental volumes
A3: ='MAIN SHEET - OUTPUT '!B7 -> 4 | C3: Check | D3: 12/13 | E3: 13/14 | F3: 14/15 | G3: 15/16 | H3: 16/17 | I3: Assumption selection
B4: End User Rental Growth | C4: =IF($A$3=1,C11,IF($A$3=2,C18,IF($A$3=3,C25,IF($A$3=4,C32,IF($A$3=5,C39,IF($A$3=6,C46,"ERROR")))))) -> 0 | D4: =IF($A$3=1,D11,IF($A$3=2,D18,IF($A$3=3,D25,IF($A$3=4,D32,IF($A$3=5,D39,IF($A$3=6,D46,"ERROR")))))) -> -0.01 | E4: 0.01 | F4: -0.03 | G4: =IF($A$3=1,G11,IF($A$3=2,G18,IF($A$3=3,G25,IF($A$3=4,G32,IF($A$3=5,G39,IF($A$3=6,G46,"ERROR")))))) -> -0.072 | H4: =IF($A$3=1,H11,IF($A$3=2,H18,IF($A$3=3,H25,IF($A$3=4,H32,IF($A$3=5,H39,IF($A$3=6,H46,"ERROR")))))) -> -0.084 | I4: 2014 WBA Statement
B5: Bandwidth Growth/user | C5: =IF($A$3=1,C12,IF($A$3=2,C19,IF($A$3=3,C26,IF($A$3=4,C33,IF($A$3=5,C40,IF($A$3=6,C47,"ERROR")))))) -> 0 | D5: =IF($A$3=1,D12,IF($A$3=2,D19,IF($A$3=3,D26,IF($A$3=4,D33,IF($A$3=5,D40,IF($A$3=6,D47,"ERROR")))))) -> 0.39 | E5: =IF($A$3=1,E12,IF($A$3=2,E19,IF($A$3=3,E26,IF($A$3=4,E33,IF($A$3=5,E40,IF($A$3=6,E47,"ERROR")))))) -> 0.3 | F5: =IF($A$3=1,F12,IF($A$3=2,F19,IF($A$3=3,F26,IF($A$3=4,F33,IF($A$3=5,F40,IF($A$3=6,F47,"ERROR")))))) -> 0.25 | G5: =IF($A$3=1,G12,IF($A$3=2,G19,IF($A$3=3,G26,IF($A$3=4,G33,IF($A$3=5,G40,IF($A$3=6,G47,"ERROR")))))) -> 0.2 | H5: =IF($A$3=1,H12,IF($A$3=2,H19,IF($A$3=3,H26,IF($A$3=4,H33,IF($A$3=5,H40,IF($A$3=6,H47,"ERROR")))))) -> 0.15
A10: 1 | C10: Check | D10: 12/13 | E10: 13/14 | F10: 14/15 | G10: 15/16 | H10: 16/17
B11: End User Rental Growth | D11: -0.01046137057 | E11: -0.001413175171 | F11: -0.008476434248 | G11: -0.05896036371 | H11: -0.1052446438 | I11: Medium Volumes
B12: Bandwidth Growth/user | D12: 0.393689593 | E12: 0.29 | F12: 0.26 | G12: 0.23 | H12: 0.2
A17: 2 | C17: Check | D17: 12/13 | E17: 13/14 | F17: 14/15 | G17: 15/16 | H17: 16/17
B18: End User Rental Growth | D18: -0.01046137057 | E18: 0.00887787615 | F18: 0.02320605911 | G18: 0.002842988977 | H18: -0.03260451045 | I18: High Volumes
B19: Bandwidth Growth/user | D19: 0.393689593 | E19: 0.3 | F19: 0.3 | G19: 0.3 | H19: 0.3
A24: 3 | C24: Check | D24: 12/13 | E24: 13/14 | F24: 14/15 | G24: 15/16 | H24: 16/17
B25: End User Rental Growth | D25: -0.01046137057 | E25: -0.006963494443 | F25: -0.02252111354 | G25: -0.0912 | H25: -0.1647887324 | I25: Low Volumes
B26: Bandwidth Growth/user | D26: 0.393689593 | E26: 0.25 | F26: 0.22 | G26: 0.15 | H26: 0.1
A31: 4 | C31: Check | D31: 12/13 | E31: 13/14 | F31: 14/15 | G31: 15/16 | H31: 16/17
B32: End User Rental Growth | D32: -0.01 | E32: 0.01 | F32: -0.03 | G32: -0.072 | H32: -0.084 | I32: 2014 WBA Statement
B33: Bandwidth Growth/user | D33: 0.39 | E33: 0.3 | F33: 0.25 | G33: 0.2 | H33: 0.15
A38: 5 | C38: Check | D38: 12/13 | E38: 13/14 | F38: 14/15 | G38: 15/16 | H38: 16/17
B39: End User Rental Growth | D39: -0.01 | E39: 0.004 | F39: 0.008 | G39: -0.014 | H39: -0.037 | I39: High C
B40: Bandwidth Growth/user | D40: 0.394 | E40: 0.4 | F40: 0.3 | G40: 0.25 | H40: 0.2
A45: 6 | C45: Check | D45: 12/13 | E45: 13/14 | F45: 14/15 | G45: 15/16 | H45: 16/17
B46: End User Rental Growth | D46: -0.01 | E46: -0.013 | F46: -0.053 | G46: -0.111 | H46: -0.139 | I46: Low C
B47: Bandwidth Growth/user | D47: 0.394 | E47: 0.25 | F47: 0.2 | G47: 0.15 | H47: 0.1
B53: High Volumes (low take-up) | D53: -0.01 | E53: 0.004 | F53: 0.008 | G53: -0.014 | H53: -0.037
B54: Medium | D54: -0.01 | E54: -0.005 | F54: -0.027 | G54: -0.065 | H54: -0.088
B55: Low (high take-up) | D55: -0.01 | E55: -0.013 | F55: -0.053 | G55: -0.111 | H55: -0.139
B56: High Volumes (low take-up) | D56: 0.394 | E56: 0.4 | F56: 0.3 | G56: 0.25 | H56: 0.2
B57: Medium | D57: 0.394 | E57: 0.3 | F57: 0.25 | G57: 0.2 | H57: 0.15
B58: Low (high take-up) | D58: 0.394 | E58: 0.25 | F58: 0.2 | G58: 0.15 | H58: 0.1

Sheet INPUT DATA CALCULATION
A1: SHEET TYPE: | B1: CALCULATION - Base year input costs
C3: BANDWIDTH | D3: RENTALS | E3: EXCLUDED | F3: TOTAL
B4: Revenue | C4: ='INPUT DATA ASSUMPTION (1) '!C4*(1+'INPUT DATA ASSUMPTION (2) '!C4) -> 176.035122 | D4: ='INPUT DATA ASSUMPTION (1) '!D4*(1+'INPUT DATA ASSUMPTION (2) '!D4) -> 157.7406283 | E4: ='INPUT DATA ASSUMPTION (1) '!E4*(1+'INPUT DATA ASSUMPTION (2) '!E4) -> 42.70508454 | F4: ='INPUT DATA ASSUMPTION (1) '!F4*(1+'INPUT DATA ASSUMPTION (2) '!F4) -> 376.4808348
B5: EOI Costs (operating costs ONLY) | C5: ='INPUT DATA ASSUMPTION (1) '!C5*(1+'INPUT DATA ASSUMPTION (2) '!C5) -> 11.21322282 | D5: ='INPUT DATA ASSUMPTION (1) '!D5*(1+'INPUT DATA ASSUMPTION (2) '!D5) -> 62.03657906 | E5: ='INPUT DATA ASSUMPTION (1) '!E5*(1+'INPUT DATA ASSUMPTION (2) '!E5) -> 56.9916269 | F5: ='INPUT DATA ASSUMPTION (1) '!F5*(1+'INPUT DATA ASSUMPTION (2) '!F5) -> 130.2414288
B6: WBA Operating costs | C6: ='INPUT DATA ASSUMPTION (1) '!C6*(1+'INPUT DATA ASSUMPTION (2) '!C6) -> 40.10188274 | D6: ='INPUT DATA ASSUMPTION (1) '!D6*(1+'INPUT DATA ASSUMPTION (2) '!D6) -> 42.88186796 | E6: ='INPUT DATA ASSUMPTION (1) '!E6*(1+'INPUT DATA ASSUMPTION (2) '!E6) -> 3.44184104 | F6: ='INPUT DATA ASSUMPTION (1) '!F6*(1+'INPUT DATA ASSUMPTION (2) '!F6) -> 86.42559174
B7: WBA Depreciation Costs | C7: ='INPUT DATA ASSUMPTION (1) '!C7*(1+'INPUT DATA ASSUMPTION (2) '!C7) -> 58.35861162 | D7: ='INPUT DATA ASSUMPTION (1) '!D7*(1+'INPUT DATA ASSUMPTION (2) '!D7) -> 49.6137854 | E7: ='INPUT DATA ASSUMPTION (1) '!E7*(1+'INPUT DATA ASSUMPTION (2) '!E7) -> 2.567867091 | F7: ='INPUT DATA ASSUMPTION (1) '!F7*(1+'INPUT DATA ASSUMPTION (2) '!F7) -> 110.5402641
B8: WBA MCE | C8: ='INPUT DATA ASSUMPTION (1) '!C8*(1+'INPUT DATA ASSUMPTION (2) '!C8) -> 351.9270129 | D8: ='INPUT DATA ASSUMPTION (1) '!D8*(1+'INPUT DATA ASSUMPTION (2) '!D8) -> 250.0316505 | E8: ='INPUT DATA ASSUMPTION (1) '!E8*(1+'INPUT DATA ASSUMPTION (2) '!E8) -> 15.21036222 | F8: ='INPUT DATA ASSUMPTION (1) '!F8*(1+'INPUT DATA ASSUMPTION (2) '!F8) -> 617.1690255 | H8: Model update - 2014 WBA Consultation
C10: BANDWIDTH | D10: RENTALS | E10: EXCLUDED | F10: TOTAL | I10: BANDWIDTH | J10: RENTALS | K10: EXCLUDED | L10: TOTAL
B11: Revenue | C11: =IF('MAIN SHEET - OUTPUT '!$F$30=1,('INPUT DATA CALCULATION'!I11),'INPUT DATA CALCULATION'!C23) -> 181366.2553 | D11: =IF('MAIN SHEET - OUTPUT '!$F$30=1,('INPUT DATA CALCULATION'!J11),'INPUT DATA CALCULATION'!D23) -> 135391.6282 | E11: =IF('MAIN SHEET - OUTPUT '!$F$30=1,('INPUT DATA CALCULATION'!K11),'INPUT DATA CALCULATION'!E23) -> 87342.82604 | F11: =IF('MAIN SHEET - OUTPUT '!$F$30=1,('INPUT DATA CALCULATION'!L11),'INPUT DATA CALCULATION'!F23) -> 404100.7096 | H11: Revenue | I11: 181366.2553 | J11: 135391.6282 | K11: 87342.82604 | L11: 404100.7096
B12: EOI Costs (operating costs ONLY) | C12: =IF('MAIN SHEET - OUTPUT '!$F$30=1,('INPUT DATA CALCULATION'!I12),'INPUT DATA CALCULATION'!C24) -> 0 | D12: =IF('MAIN SHEET - OUTPUT '!$F$30=1,('INPUT DATA CALCULATION'!J12),'INPUT DATA CALCULATION'!D24) -> 35764 | E12: =IF('MAIN SHEET - OUTPUT '!$F$30=1,('INPUT DATA CALCULATION'!K12),'INPUT DATA CALCULATION'!E24) -> 57115 | F12: =IF('MAIN SHEET - OUTPUT '!$F$30=1,('INPUT DATA CALCULATION'!L12),'INPUT DATA CALCULATION'!F24) -> 92879 | H12: EOI Costs (operating costs ONLY) | I12: 0 | J12: 35764 | K12: 56991 | L12: 92755
B13: WBA Operating costs | C13: =IF('MAIN SHEET - OUTPUT '!$F$30=1,('INPUT DATA CALCULATION'!I13),'INPUT DATA CALCULATION'!C25) -> 31501.12727 | D13: =IF('MAIN SHEET - OUTPUT '!$F$30=1,('INPUT DATA CALCULATION'!J13),'INPUT DATA CALCULATION'!D25) -> 46827.78592 | E13: =IF('MAIN SHEET - OUTPUT '!$F$30=1,('INPUT DATA CALCULATION'!K13),'INPUT DATA CALCULATION'!E25) -> 6580.063652 | F13: =IF('MAIN SHEET - OUTPUT '!$F$30=1,('INPUT DATA CALCULATION'!L13),'INPUT DATA CALCULATION'!F25) -> 84908.97685 | H13: WBA Operating costs | I13: 26320.12727 | J13: 48285.78592 | K13: 6767.063652 | L13: 81372.97685
B14: WBA Depreciation Costs | C14: =IF('MAIN SHEET - OUTPUT '!$F$30=1,('INPUT DATA CALCULATION'!I14),'INPUT DATA CALCULATION'!C26) -> 45265.13732 | D14: =IF('MAIN SHEET - OUTPUT '!$F$30=1,('INPUT DATA CALCULATION'!J14),'INPUT DATA CALCULATION'!D26) -> 35037.09854 | E14: =IF('MAIN SHEET - OUTPUT '!$F$30=1,('INPUT DATA CALCULATION'!K14),'INPUT DATA CALCULATION'!E26) -> 3045.418755 | F14: =IF('MAIN SHEET - OUTPUT '!$F$30=1,('INPUT DATA CALCULATION'!L14),'INPUT DATA CALCULATION'!F26) -> 83347.65461 | H14: WBA Depreciation Costs | I14: 46893.39568 | J14: 33933.53402 | K14: 2526.321652 | L14: 83353.25136
B15: WBA MCE | C15: =IF('MAIN SHEET - OUTPUT '!$F$30=1,('INPUT DATA CALCULATION'!I15),'INPUT DATA CALCULATION'!C27) -> 359835.1531 | D15: =IF('MAIN SHEET - OUTPUT '!$F$30=1,('INPUT DATA CALCULATION'!J15),'INPUT DATA CALCULATION'!D27) -> 205664.7288 | E15: =IF('MAIN SHEET - OUTPUT '!$F$30=1,('INPUT DATA CALCULATION'!K15),'INPUT DATA CALCULATION'!E27) -> 23572.84812 | F15: =IF('MAIN SHEET - OUTPUT '!$F$30=1,('INPUT DATA CALCULATION'!L15),'INPUT DATA CALCULATION'!F27) -> 589072.7301 | H15: WBA MCE | I15: 380723.0163 | J15: 252172.6933 | K15: 28216.21695 | L15: 661111.9265
H17: NOTE: This is the new 2013 base year input costs sourced from the below confidential file
B18: Model update - 2014 WBA Statement | H18: File name: http://projects.loop/wbarev/fin/WBA%20Charge%20control%20Base%20year%20input%20costs_January%202014_V2.xlsb
B20: OUTPUT FOR MODEL - UPDATED JUNE 2014 Final statement base year costs
C22: BANDWIDTH | D22: RENTALS | E22: EXCLUDED | F22: TOTAL | G22: CHECK
B23: Revenue | C23: 181366.2553 | D23: 135391.6282 | E23: 87342.82604 | F23: 404100.7096 | G23: ok
B24: EOI Costs (operating costs ONLY) | C24: 0 | D24: 35764 | E24: 57115 | F24: 92879 | G24: ok
B25: WBA Operating costs | C25: 31501.12727 | D25: 46827.78592 | E25: 6580.063652 | F25: 84908.97685 | G25: ok
B26: WBA Depreciation Costs | C26: 45265.13732 | D26: 35037.09854 | E26: 3045.418755 | F26: 83347.65461 | G26: ok
B27: WBA MCE | C27: 359835.1531 | D27: 205664.7288 | E27: 23572.84812 | F27: 589072.7301 | G27: ok
B30: NOTE: This is the new 2013 base year input costs sourced from the below confidential file
B31: File name: http://projects/sites/wbarev/fin/July%202014%20consultation%20model/WBA%20charge%20control_Updated%20Base%20year%20input%20costs%20June%202014.xlsx

Sheet INPUT DATA ASSUMPTION (2)
A1: SHEET TYPE: | B1: Assumption selection - Market boundary change (Market 1 to Market A) | J1: ["]
A3: ='MAIN SHEET - OUTPUT '!B6 -> 1 | C3: BANDWIDTH | D3: RENTALS | E3: EXCLUDED | F3: TOTAL | I3: Assumption selection
B4: Revenue | C4: =IF($A$3=1,C11,IF($A$3=2,C18,IF($A$3=3,C25,IF($A$3=4,C32,IF($A$3=5,C39,IF($A$3=6,C46,"ERROR")))))) -> -0.0926345025 | D4: =IF($A$3=1,D11,IF($A$3=2,D18,IF($A$3=3,D25,IF($A$3=4,D32,IF($A$3=5,D39,IF($A$3=6,D46,"ERROR")))))) -> -0.0926345025 | E4: -0.0926345025 | F4: -0.0926345025 | I4: Mid Costs removed (Costs/Revenue=0.5)
B5: EOI Costs (operating costs ONLY) | C5: =IF($A$3=1,C12,IF($A$3=2,C19,IF($A$3=3,C26,IF($A$3=4,C33,IF($A$3=5,C40,IF($A$3=6,C47,"ERROR")))))) -> -0.0926345025 | D5: -0.0926345025 | E5: -0.0926345025 | F5: -0.0926345025
B6: WBA Operating costs | C6: -0.04631725125 | D6: -0.04631725125 | E6: -0.04631725125 | F6: -0.04631725125
B7: WBA Depreciation Costs | C7: -0.04631725125 | D7: -0.04631725125 | E7: -0.04631725125 | F7: -0.04631725125
B8: WBA MCE | C8: -0.04631725125 | D8: -0.04631725125 | E8: -0.04631725125 | F8: -0.04631725125
A10: 1 | C10: BANDWIDTH | D10: RENTALS | E10: EXCLUDED | F10: TOTAL | J10: Source: OTHER INPUT DATA SHEET
B11: Revenue | C11: =$M$13 -> -0.0926345025 | D11: =$M$13 -> -0.0926345025 | E11: -0.0926345025 | F11: -0.0926345025 | I11: Mid Costs removed (Costs/Revenue=0.5) | J11: Moving from market 1 to market A
B12: EOI Costs (operating costs ONLY) | C12: =$M$13 -> -0.0926345025 | D12: -0.0926345025 | E12: -0.0926345025 | F12: -0.0926345025 | K12: Mrt 1 | L12: Mrt A | M12: % change
B13: WBA Operating costs | C13: =$C$11*0.5 -> -0.04631725125 | D13: =D11*0.5 -> -0.04631725125 | E13: =E11*0.5 -> -0.04631725125 | F13: =F11*0.5 -> -0.04631725125 | J13: Number of BT end users | K13: ='INPUT DATA_OTHER '!G11 -> ["] | L13: ='INPUT DATA_OTHER '!G7 -> ["] | M13: -0.0926345025
B14: WBA Depreciation Costs | C14: =C13 -> -0.04631725125 | D14: =D13 -> -0.04631725125 | E14: -0.04631725125 | F14: -0.04631725125
B15: WBA MCE | C15: =C14 -> -0.04631725125 | D15: -0.04631725125 | E15: -0.04631725125 | F15: -0.04631725125
A17: 2 | C17: BANDWIDTH | D17: RENTALS | E17: EXCLUDED | F17: TOTAL
B18: Revenue | C18: =$M$13 -> -0.0926345025 | D18: =$M$13 -> -0.0926345025 | E18: -0.0926345025 | F18: -0.0926345025 | I18: High Costs removed (Costs/Revenue=0.7)
B19: EOI Costs (operating costs ONLY) | C19: =$M$13 -> -0.0926345025 | D19: -0.0926345025 | E19: -0.0926345025 | F19: -0.0926345025
B20: WBA Operating costs | C20: =$C$11*0.7 -> -0.06484415175 | D20: =$C$11*0.7 -> -0.06484415175 | E20: =$C$11*0.7 -> -0.06484415175 | F20: =$C$11*0.7 -> -0.06484415175
B21: WBA Depreciation Costs | C21: =C20 -> -0.06484415175 | D21: =D20 -> -0.06484415175 | E21: =E20 -> -0.06484415175 | F21: -0.06484415175
B22: WBA MCE | C22: =C21 -> -0.06484415175 | D22: -0.06484415175 | E22: =E21 -> -0.06484415175 | F22: -0.06484415175
A24: 3 | C24: BANDWIDTH | D24: RENTALS | E24: EXCLUDED | F24: TOTAL
B25: Revenue | C25: =$M$13 -> -0.0926345025 | D25: =$M$13 -> -0.0926345025 | E25: -0.0926345025 | F25: -0.0926345025 | I25: Low Costs removed (Costs/Revenue=0.3)
B26: EOI Costs (operating costs ONLY) | C26: =$M$13 -> -0.0926345025 | D26: -0.0926345025 | E26: -0.0926345025 | F26: -0.0926345025
B27: WBA Operating costs | C27: =$C$11*0.3 -> -0.02779035075 | D27: =$C$11*0.3 -> -0.02779035075 | E27: =$C$11*0.3 -> -0.02779035075 | F27: =$C$11*0.3 -> -0.02779035075
B28: WBA Depreciation Costs | C28: =C27 -> -0.02779035075 | D28: =D27 -> -0.02779035075 | E28: -0.02779035075 | F28: -0.02779035075
B29: WBA MCE | C29: =C28 -> -0.02779035075 | D29: -0.02779035075 | E29: -0.02779035075 | F29: -0.02779035075
A31: 4 | C31: BANDWIDTH | D31: RENTALS | E31: EXCLUDED | F31: TOTAL
B32: Revenue | I32: NOT USED
B33: EOI Costs (operating costs ONLY)
B34: WBA Operating costs
B35: WBA Depreciation Costs
B36: WBA MCE
A38: 5 | C38: BANDWIDTH | D38: RENTALS | E38: EXCLUDED | F38: TOTAL
B39: Revenue | I39: NOT USED
B40: EOI Costs (operating costs ONLY)
B41: WBA Operating costs
B42: WBA Depreciation Costs
B43: WBA MCE
A45: 6 | C45: BANDWIDTH | D45: RENTALS | E45: EXCLUDED | F45: TOTAL
B46: Revenue | I46: NOT USED
B47: EOI Costs (operating costs ONLY)
B48: WBA Operating costs
B49: WBA Depreciation Costs
B50: WBA MCE

Sheet INPUT DATA ASSUMPTION (1)
A1: SHEET TYPE: | B1: Assumption selection - Adjustments
A3: ='MAIN SHEET - OUTPUT '!B5 -> 4 | C3: BANDWIDTH | D3: RENTALS | E3: EXCLUDED | F3: TOTAL | G3: CHECK | I3: Assumption selection
B4: Revenue | C4: =IF($A$3=1,C11,IF($A$3=2,C18,IF($A$3=3,C25,IF($A$3=4,C32,IF($A$3=5,C39,IF($A$3=6,C46,"ERROR")))))) -> 194.00685 | D4: =IF($A$3=1,D11,IF($A$3=2,D18,IF($A$3=3,D25,IF($A$3=4,D32,IF($A$3=5,D39,IF($A$3=6,D46,"ERROR")))))) -> 173.84464 | E4: 47.06491999 | F4: 414.91641 | G4: ok | I4: 2012 RFS with BT's HON + CCA adjustment + DSLAM costs allocated 25% to Bandwidth
B5: EOI Costs (operating costs ONLY) | C5: =IF($A$3=1,C12,IF($A$3=2,C19,IF($A$3=3,C26,IF($A$3=4,C33,IF($A$3=5,C40,IF($A$3=6,C47,"ERROR")))))) -> 12.358 | D5: =IF($A$3=1,D12,IF($A$3=2,D19,IF($A$3=3,D26,IF($A$3=4,D33,IF($A$3=5,D40,IF($A$3=6,D47,"ERROR")))))) -> 68.37 | E5: 62.81 | F5: 143.538 | G5: ok
B6: WBA Operating costs | C6: =IF($A$3=1,C13,IF($A$3=2,C20,IF($A$3=3,C27,IF($A$3=4,C34,IF($A$3=5,C41,IF($A$3=6,C48,"ERROR")))))) -> 42.0495 | D6: 44.9645 | E6: 3.609 | F6: 90.623 | G6: ok
B7: WBA Depreciation Costs | C7: =IF($A$3=1,C14,IF($A$3=2,C21,IF($A$3=3,C28,IF($A$3=4,C35,IF($A$3=5,C42,IF($A$3=6,C49,"ERROR")))))) -> 61.19289847 | D7: 52.02336465 | E7: 2.692579996 | F7: 115.9088431 | G7: ok
B8: WBA MCE | C8: =IF($A$3=1,C15,IF($A$3=2,C22,IF($A$3=3,C29,IF($A$3=4,C36,IF($A$3=5,C43,IF($A$3=6,C50,"ERROR")))))) -> 369.0189566 | D8: 262.1748698 | E8: 15.94907975 | F8: 647.1429061 | G8: ok
A10: 1 | C10: BANDWIDTH | D10: RENTALS | E10: EXCLUDED | F10: TOTAL | G10: CHECK
B11: Revenue | C11: 194.00685 | D11: 173.84464 | E11: 47.06491999 | F11: 414.91641 | G11: ok | I11: 2012 RFS with (50% HON) + CCA adjustment + DSLAM costs allocated 25% to Bandwidth
B12: EOI Costs (operating costs ONLY) | C12: 12.358 | D12: 68.37 | E12: 62.81 | F12: 143.538 | G12: ok | I12: This represents the 2012 RFS with adjustments for i) 50% of the HON adjustment BT provided to us ii) the CCA adjustment as detailed in the 2012 RFS (£9million in total) and iii) 25% of DSLAM costs included in rental services reallocated to bandwidth services
B13: WBA Operating costs | C13: 42.0495 | D13: 44.9645 | E13: 3.609 | F13: 90.623 | G13: ok
B14: WBA Depreciation Costs | C14: 56.26101001 | D14: 46.71462155 | E14: 2.559289998 | F14: 105.5349216 | G14: ok
B15: WBA MCE | C15: 317.9009566 | D15: 205.1514566 | E15: 14.53103988 | F15: 537.5834531 | G15: ok
A17: 2 | C17: BANDWIDTH | D17: RENTALS | E17: EXCLUDED | F17: TOTAL | G17: CHECK
B18: Revenue | C18: 194.00685 | D18: 173.84464 | E18: 47.06491999 | F18: 414.91641 | G18: ok | I18: 2012 RFS with BT's HON + CCA adjustment
B19: EOI Costs (operating costs ONLY) | C19: 12.358 | D19: 68.37 | E19: 62.81 | F19: 143.538 | G19: ok | I19: This represents the 2012 RFS with adjustments for i) the HON adjustment BT provided to us and ii) the CCA adjustment as detailed in the 2012 RFS (£9million in total)
B20: WBA Operating costs | C20: 33.634 | D20: 53.38 | E20: 3.609 | F20: 90.623 | G20: ok
B21: WBA Depreciation Costs | C21: 50.41177692 | D21: 62.8044862 | E21: 2.692579996 | F21: 115.9088431 | G21: ok
B22: WBA MCE | C22: 313.049 | D22: 318.1448264 | E22: 15.94907975 | F22: 647.1429061 | G22: ok
A24: 3 | C24: BANDWIDTH | D24: RENTALS | E24: EXCLUDED | F24: TOTAL | G24: CHECK
B25: Revenue | C25: 194.00685 | D25: 173.84464 | E25: 47.06491999 | F25: 414.91641 | G25: ok | I25: 2012 RFS with CCA adjustment + DSLAM costs allocated 25% to Bandwidth
B26: EOI Costs (operating costs ONLY) | C26: 12.358 | D26: 68.37 | E26: 62.81 | F26: 143.538 | G26: ok | I26: This represents the 2012 RFS with adjustments for i) the CCA adjustment as detailed in the 2012 RFS (£9million in total) and ii) 25% of DSLAM costs included in rental services reallocated to bandwidth services
B27: WBA Operating costs | C27: 42.0495 | D27: 44.9645 | E27: 3.609 | F27: 90.623 | G27: ok
B28: WBA Depreciation Costs | C28: 51.32912155 | D28: 41.40587845 | E28: 2.426 | F28: 95.161 | G28: ok
B29: WBA MCE | C29: 266.7829566 | D29: 148.1280434 | E29: 13.113 | F29: 428.024 | G29: ok
A31: 4 | C31: BANDWIDTH | D31: RENTALS | E31: EXCLUDED | F31: TOTAL | G31: CHECK
B32: Revenue | C32: 194.00685 | D32: 173.84464 | E32: 47.06491999 | F32: 414.91641 | G32: ok | I32: 2012 RFS with BT's HON + CCA adjustment + DSLAM costs allocated 25% to Bandwidth
B33: EOI Costs (operating costs ONLY) | C33: 12.358 | D33: 68.37 | E33: 62.81 | F33: 143.538 | G33: ok | I33: This represents the 2012 RFS with adjustments for i) the HON adjustment BT provided to us ii) the CCA adjustment as detailed in the 2012 RFS (£9million in total) and iii) 25% of DSLAM costs included in rental services reallocated to bandwidth services
B34: WBA Operating costs | C34: 42.0495 | D34: 44.9645 | E34: 3.609 | F34: 90.623 | G34: ok
B35: WBA Depreciation Costs | C35: 61.19289847 | D35: 52.02336465 | E35: 2.692579996 | F35: 115.9088431 | G35: ok
B36: WBA MCE | C36: 369.0189566 | D36: 262.1748698 | E36: 15.94907975 | F36: 647.1429061 | G36: ok
A38: 5 | C38: BANDWIDTH | D38: RENTALS | E38: EXCLUDED | F38: TOTAL | G38: CHECK
B39: Revenue | I39: NOT USED
B40: EOI Costs (operating costs ONLY)
B41: WBA Operating costs
B42: WBA Depreciation Costs
B43: WBA MCE
A45: 6 | C45: BANDWIDTH | D45: RENTALS | E45: EXCLUDED | F45: TOTAL | G45: CHECK
B46: Revenue | I46: NOT USED
B47: EOI Costs (operating costs ONLY)
B48: WBA Operating costs
B49: WBA Depreciation Costs
B50: WBA MCE

Sheet INPUT DATA SUMMARYa
A1: SHEET TYPE: | B1: BASE YEAR INPUT ASSUMPTION
A3: 2012 RFS (Excluding MCE associated with EOI services)
B4: Values
A5: Row Labels | B5: Sum of Revenue | C5: Sum of EOI Costs (operating costs ONLY) | D5: Sum of WBA Operating costs | E5: Sum of WBA Depreciation Costs | F5: Sum of WBA MCE
A6: Bandwidth | B6: 194.00685 | C6: 12.358 | D6: 29.529 | E6: 40.548 | F6: 210.813
A7: Excluded | B7: 47.06491999 | C7: 62.81 | D7: 3.582 | E7: 2.426 | F7: 13.113
A8: Rentals | B8: 173.84464 | C8: 68.37 | D8: 66.672 | E8: 52.187 | F8: 204.098
A9: Grand Total | B9: 414.91641 | C9: 143.538 | D9: 99.783 | E9: 95.161 | F9: 428.024
A11: 1) 2013 RFS Restatements
B12: Values
A13: Row Labels | B13: Sum of Revenue | C13: Sum of EOI Costs (operating costs ONLY) | D13: Sum of WBA Operating costs | E13: Sum of WBA Depreciation Costs | F13: Sum of WBA MCE
A14: Bandwidth | C14: 9.070396498 | D14: 0 | E14: 0 | F14: 0
A15: Excluded | C15: 0.0599101486 | D15: 0.02207629292 | E15: 0.02138097661 | F15: 0.07184049198
A16: Rentals | C16: 0 | D16: 6.894291565 | E16: 6.677148524 | F16: 22.43534726
A17: Grand Total | C17: 9.130306647 | D17: 6.916367858 | E17: 6.6985295 | F17: 22.50718775
A19: 2) HON Adjustments | H19: 2a) HON Adjustments ( X 50%) this is deduced from the HON adjustment
B20: Values
A21: Row Labels | B21: Sum of Revenue | C21: Sum of EOI Costs (operating costs ONLY) | D21: Sum of WBA Operating costs | E21: Sum of WBA Depreciation Costs | F21: Sum of WBA MCE | H21: Row Labels | I21: Sum of WBA Depreciation Costs | J21: Sum of WBA MCE
A22: Bandwidth | C22: 0 | D22: 0 | E22: 9.863776923 | F22: 102.236 | H22: Bandwidth | I22: 4.931888462 | J22: 51.118
A23: Excluded | C23: 0 | D23: 0 | E23: 0.2665799957 | F23: 2.836079754 | H23: Excluded | I23: 0.1332899978 | J23: 1.418039877
A24: Rentals | C24: 0 | D24: 0 | E24: 10.6174862 | F24: 114.0468264 | H24: Rentals | I24: 5.308743101 | J24: 57.02341319
A25: Grand Total | C25: 0 | D25: 0 | E25: 20.74784312 | F25: 219.1189061 | H25: Grand Total | I25: 10.37392156 | J25: 109.5594531
A27: 3) CCA Adjustments
B28: Values
A29: Row Labels | B29: Sum of Revenue | C29: Sum of EOI Costs (operating costs ONLY) | D29: Sum of WBA Operating costs | E29: Sum of WBA Depreciation Costs | F29: Sum of WBA MCE
A30: Bandwidth | C30: 0 | D30: 4.105 | E30: 0 | F30: 0
A31: Excluded | C31: 0 | D31: 0.027 | E31: 0 | F31: 0
A32: Rentals | C32: 0 | D32: -13.292 | E32: 0 | F32: 0
A33: Grand Total | C33: 0 | D33: -9.16 | E33: 0 | F33: 0
A35: Check Totals for all adjustments
B36: Values
A37: Row Labels | B37: Sum of Revenue | C37: Sum of EOI Costs (operating costs ONLY) | D37: Sum of WBA Operating costs | E37: Sum of WBA Depreciation Costs | F37: Sum of WBA MCE
A38: Bandwidth | B38: 194.00685 | C38: 21.4283965 | D38: 33.634 | E38: 50.41177692 | F38: 313.049
A39: Excluded | B39: 47.06491999 | C39: 62.86991015 | D39: 3.631076293 | E39: 2.713960972 | F39: 16.02092025
A40: Rentals | B40: 173.84464 | C40: 68.37 | D40: 60.27429157 | E40: 69.48163473 | F40: 340.5801736
A41: Grand Total | B41: 414.91641 | C41: 152.6683066 | D41: 97.53936786 | E41: 122.6073726 | F41: 669.6500939
A42: Check | B42: ok | C42: ok | D42: ok | E42: ok | F42: ok
A44: 4) DSLAM ADJUSTMENT
B46: Values
A47: Row Labels | B47: Sum of Revenue | C47: Sum of EOI Costs (operating costs ONLY) | D47: Sum of WBA Operating costs | E47: Sum of WBA Depreciation Costs | F47: Sum of WBA MCE
A48: Bandwidth | B48: 194.00685 | C48: 12.358 | D48: 29.529 | E48: 40.548 | F48: 210.813
A49: Excluded | B49: 47.06491999 | C49: 62.81 | D49: 3.582 | E49: 2.426 | F49: 13.113
A50: Rentals | B50: 173.84464 | C50: 68.37 | D50: 66.672 | E50: 52.187 | F50: 204.098
A51: Mkt 1 - Ext Ipst Connect - DSLAM depreciation | C51: ["] | D51: ["] | E51: ["] | F51: ["]
A52: Mkt 1 - Ext Ipst Connect BW - DSLAM overhead | C52: ["] | D52: ["] | E52: ["] | F52: ["]
A53: Mkt 1 - Ext SFI - OR | C53: ["] | D53: ["] | E53: ["] | F53: ["]
A54: Mkt 1 - Int Ipst Connect - DSLAM depreciation | C54: ["] | D54: ["] | E54: ["] | F54: ["]
A55: Mkt 1 - Int Ipst Connect BW - DSLAM overhead | C55: ["] | D55: ["] | E55: ["] | F55: ["]
A56: Mkt 1 - Int SFI - OR | C56: ["] | D56: ["] | E56: ["] | F56: ["]
A57: Mkt 1 - OR Ext IPst Connect end user access-rental | C57: ["] | D57: ["] | E57: ["] | F57: ["]
A58: Mkt 1 - OR Ext IPstream Connect 20CN Tie cables | C58: ["] | D58: ["] | E58: ["] | F58: ["]
A59: Mkt 1 - OR Ext IPstream Connect 21CN Tie cables | C59: ["] | D59: ["] | E59: ["] | F59: ["]
A60: Mkt 1 - OR Ext IPstream Connect DSLAM Grooming | C60: ["] | D60: ["] | E60: ["] | F60: ["]
A61: Mkt 1 - OR Int IPst Connect end user access-rental | C61: ["] | D61: ["] | E61: ["] | F61: ["]
A62: Mkt 1 - OR Int IPstream Connect 20CN Tie cables | C62: ["] | D62: ["] | E62: ["] | F62: ["]
A63: Mkt 1 - OR Int IPstream Connect 21CN Tie cables | C63: ["] | D63: ["] | E63: ["] | F63: ["]
A64: Mkt 1 - OR Int IPstream Connect DSLAM Grooming | C64: ["] | D64: ["] | E64: ["] | F64: ["]
A65: Mkt 1 - WH Ext IPst Connect end user access-rental | C65: ["] | D65: ["] | E65: ["] | F65: ["]
A66: Mkt 1 - WH Int IPst Connect end user access-rental | C66: ["] | D66: ["] | E66: ["] | F66: ["]
A67: Grand Total | B67: 414.91641 | C67: 143.538 | D67: 99.783 | E67: 95.161 | F67: 428.024
B70: Values
A71: Row Labels | B71: Sum of Revenue | C71: Sum of EOI Costs (operating costs ONLY) | D71: Sum of WBA Operating costs | E71: Sum of WBA Depreciation Costs | F71: Sum of WBA MCE
A72: Bandwidth | C72: 0 | D72: 0 | E72: 9.863776923 | F72: 102.236
A73: Excluded | C73: 0 | D73: 0 | E73: 0.2665799957 | F73: 2.836079754
A74: Rentals | C74: 0 | D74: 0 | E74: 10.6174862 | F74: 114.0468264
A75: Mkt 1 - Ext Ipst Connect - DSLAM depreciation | C75: ["] | D75: ["] | E75: ["] | F75: ["]
A76: Mkt 1 - Ext Ipst Connect BW - DSLAM overhead | C76: ["] | D76: ["] | E76: ["] | F76: ["]
A77: Mkt 1 - Ext SFI - OR | C77: ["] | D77: ["] | E77: ["] | F77: ["]
A78: Mkt 1 - Int Ipst Connect - DSLAM depreciation | C78: ["] | D78: ["] | E78: ["] | F78: ["]
A79: Mkt 1 - Int Ipst Connect BW - DSLAM overhead | C79: ["] | D79: ["] | E79: ["] | F79: ["]
A80: Mkt 1 - Int SFI - OR | C80: ["] | D80: ["] | E80: ["] | F80: ["]
A81: Mkt 1 - OR Ext IPst Connect end user access-rental | C81: ["] | D81: ["] | E81: ["] | F81: ["]
A82: Mkt 1 - OR Ext IPstream Connect 20CN Tie cables | C82: ["] | D82: ["] | E82: ["] | F82: ["]
A83: Mkt 1 - OR Ext IPstream Connect 21CN Tie cables | C83: ["] | D83: ["] | E83: ["] | F83: ["]
A84: Mkt 1 - OR Ext IPstream Connect DSLAM Grooming | C84: ["] | D84: ["] | E84: ["] | F84: ["]
A85: Mkt 1 - OR Int IPst Connect end user access-rental | C85: ["] | D85: ["] | E85: ["] | F85: ["]
A86: Mkt 1 - OR Int IPstream Connect 20CN Tie cables | C86: ["] | D86: ["] | E86: ["] | F86: ["]
A87: Mkt 1 - OR Int IPstream Connect 21CN Tie cables | C87: ["] | D87: ["] | E87: ["] | F87: ["]
A88: Mkt 1 - OR Int IPstream Connect DSLAM Grooming | C88: ["] | D88: ["] | E88: ["] | F88: ["]
A89: Mkt 1 - WH Ext IPst Connect end user access-rental | C89: ["] | D89: ["] | E89: ["] | F89: ["]
A90: Mkt 1 - WH Int IPst Connect end user access-rental | C90: ["] | D90: ["] | E90: ["] | F90: ["]
A91: Grand Total | C91: 0 | D91: 0 | E91: 20.74784312 | F91: 219.1189061
B93: Values
B94: Sum of Revenue | C94: Sum of EOI Costs (operating costs ONLY) | D94: Sum of WBA Operating costs | E94: Sum of WBA Depreciation Costs | F94: Sum of WBA MCE
A96: TOTAL DSLAM COSTS INCLUDED (RFS + HON + CCA adj.) | D96: 33.662 | E96: 43.1244862 | F96: 223.8798264
A98: 4) HON Adjustment Ofcom (50% of BT's adjustment)
B100: Values
A101: Row Labels | B101: Sum of Revenue | C101: Sum of EOI Costs (operating costs ONLY) | D101: Sum of WBA Operating costs | E101: Sum of WBA Depreciation Costs | F101: Sum of WBA MCE
A102: Bandwidth | C102: 0 | D102: 0 | E102: 9.863776923 | F102: 102.236
A103: Excluded | C103: 0 | D103: 0 | E103: 0.2665799957 | F103: 2.836079754
A104: Rentals | C104: 0 | D104: 0 | E104: 10.6174862 | F104: 114.0468264
A105: Grand Total | C105: 0 | D105: 0 | E105: 20.74784312 | F105: 219.1189061
A109: (50% of BT's adjustment)
B110: Values
B111: Sum of Revenue | C111: Sum of EOI Costs (operating costs ONLY) | D111: Sum of WBA Operating costs | E111: Sum of WBA Depreciation Costs | F111: Sum of WBA MCE
A112: Bandwidth | E112: 4.931888462 | F112: 51.118
A113: Excluded | E113: 0.1332899978 | F113: 1.418039877
A114: Rentals | E114: 5.308743101 | F114: 57.02341319
E115: 10.37392156 | F115: 109.5594531

Sheet BT_INPUT DATA S135
A1: SHEET TYPE: | B1: INPUT DATA
A2: SOURCE SPREADSHEET: | B2: BT's response to our March 2013 s135: 20130405 BT Response Third Tranche A3 A4 by Service existing and updated markets 1 and 2.xlsx
A3: Spreadsheet tab: | B3: ROC existing mkt 1 by service
C9: WBA Market one
D10: £m | E10: £m | F10: £m | G10: £m | H10: £m | I10: £m | J10: £m | K10: £m | L10: £m | M10: £m | N10: £m | O10: £m
A11: Serv Mapping | B11: Service Code | C11: Service Description | D11: Internal Revenue | E11: External Revenue | F11: Revenue | G11: Operating costs | H11: Depreciation | I11: Holding (gain)/loss | J11: Supp. Dep. | K11: Other adjs. | L11: Roundings | M11: Total CCA operating costs | N11: Return | O11: MCE | P11: Return on MCE | Q11: EOI or WBA costs | R11: EOI Costs (operating costs ONLY) | S11: WBA Operating costs | T11: WBA Depreciation Costs | U11: WBA MCE | V11: Controlled Services
A12: Int Conn | B12: SM101 | C12: Mkt 1 - OR Int WBA end user access-conns | D12: ["] | E12: ["] | F12: ["] | G12: ["] | H12: ["] | I12: ["] | J12: ["] | K12: ["] | L12: ["] | M12: ["] | N12: ["] | O12: ["] | P12: ["] | Q12: ["] | R12: ["] | S12: ["] | T12: ["] | U12: ["] | V12: =VLOOKUP(B12,ControlledServices,5,FALSE) -> Excluded
A13: Ext Conn | B13: SM102 | C13: Mkt 1 - OR Ext WBA end user access-conns | D13: ["] | E13: ["] | F13: ["] | G13: ["] | H13: ["] | I13: ["] | J13: ["] | K13: ["] | L13: ["] | M13: ["] | N13: ["] | O13: ["] | P13: ["] | Q13: ["] | R13: ["] | S13: ["] | T13: ["] | U13: ["] | V13: Excluded
A14: Int IPS EU Rent | B14: SM103 | C14: Mkt 1 - OR Int IPst Connect end user access-rental | D14: ["] | E14: ["] | F14: ["] | G14: ["] | H14: ["] | I14: ["] | J14: ["] | K14: ["] | L14: ["] | M14: ["] | N14: ["] | O14: ["] | P14: ["] | Q14: ["] | R14: ["] | S14: ["] | T14: ["] | U14: ["] | V14: Rentals
A15: Ext IPS EU Rent | B15: SM104 | C15: Mkt 1 - OR Ext IPst Connect end user access-rental | D15: ["] | E15: ["] | F15: ["] | G15: ["] | H15: ["] | I15: ["] | J15: ["] | K15: ["] | L15: ["] | M15: ["] | N15: ["] | O15: ["] | P15: ["] | Q15: ["] | R15: ["] | S15: ["] | T15: ["] | U15: ["] | V15: Rentals
A16: Int DS EU Rent | B16: SM105 | C16: Mkt 1 - OR Int Datast end user access-rental | D16: ["] | E16: ["] | F16: ["] | G16: ["] | H16: ["] | I16: ["] | J16: ["] | K16: ["] | L16: ["] | M16: ["] | N16: ["] | O16: ["] | P16: ["] | Q16: ["] | R16: ["] | S16: ["] | T16: ["] | U16: ["] | V16: Excluded
A17: Ext DS EU Rent | B17: SM106 | C17: Mkt 1 - OR Ext Datast end user access-rental | D17: ["] | E17: ["] | F17: ["] | G17: ["] | H17: ["] | I17: ["] | J17: ["] | K17: ["] | L17: ["] | M17: ["] | N17: ["] | O17: ["] | P17: ["] | Q17: ["] | R17: ["] | S17: ["] | T17: ["] | U17: ["] | V17: Excluded
A18: Int WBC EU Rent | B18: SM107 | C18: Mkt 1 - OR Int WBC end user access-Rentals | D18: ["] | E18: ["] | F18: ["] | G18: ["] | H18: ["] | I18: ["] | J18: ["] | K18: ["] | L18: ["] | M18: ["] | N18: ["] | O18: ["] | P18: ["] | Q18: ["] | R18: ["] | S18: ["] | T18: ["] | U18: ["] | V18: Excluded
A19: Ext WBC EU Rent | B19: SM108 | C19: Mkt 1 - OR Ext WBC end user access-Rentals | D19: ["] | E19: ["] | F19: ["] | G19: ["] | H19: ["] | I19: ["] | J19: ["] | K19: ["] | L19: ["] | M19: ["] | N19: ["] | O19: ["] | P19: ["] | Q19: ["] | R19: ["] | S19: ["] | T19: ["] | U19: ["] | V19: Excluded
A20: Int Ancillary | B20: SM109 | C20: Mkt 1 - OR Int WBA end user access-ceases | D20: ["] | E20: ["] | F20: ["] | G20: ["] | H20: ["] | I20: ["] | J20: ["] | K20: ["] | L20: ["] | M20: ["] | N20: ["] | O20: ["] | P20: ["] | Q20: ["] | R20: ["] | S20: ["] | T20: ["] | U20: ["] | V20: Excluded
A21: Ext Ancillary | B21: SM110 | C21: Mkt 1 - OR Ext WBA end user access-ceases | D21: ["] | E21: ["] | F21: ["] | G21: ["] | H21: ["] | I21: ["] | J21: ["] | K21: ["] | L21: ["] | M21: ["] | N21: ["] | O21: ["] | P21: ["] | Q21: ["] | R21: ["] | S21: ["] | T21: ["] | U21: ["] | V21: Excluded
A22: Int Conn | B22: SM111 | C22: Mkt 1 - WH Int WBA end user access-conns | D22: ["] | E22: ["] | F22: ["] | G22: ["] | H22: ["] | I22: ["] | J22: ["] | K22: ["] | L22: ["] | M22: ["] | N22: ["] | O22: ["] | P22: ["] | Q22: ["] | R22: ["] | S22: ["] | T22: ["] | U22: ["] | V22: Excluded
A23: Ext Conn | B23: SM112 | C23: Mkt 1 - WH Ext WBA end user access-conns | D23: ["] | E23: ["] | F23: ["] | G23: ["] | H23: ["] | I23: ["] | J23: ["] | K23: ["] | L23: ["] | M23: ["] | N23: ["] | O23: ["] | P23: ["] | Q23: ["] | R23: ["] | S23: ["] | T23: ["] | U23: ["] | V23: Excluded
A24: Int IPS EU Rent | B24: SM113 | C24: Mkt 1 - WH Int IPst Connect end user access-rental | D24: ["] | E24: ["] | F24: ["] | G24: ["] | H24: ["] | I24: ["] | J24: ["] | K24: ["] | L24: ["] | M24: ["] | N24: ["] | O24: ["] | P24: ["] | Q24: ["] | R24: ["] | S24: ["] | T24: ["] | U24: ["] | V24: Rentals
A25: Ext IPS EU Rent | B25: SM114 | C25: Mkt 1 - WH Ext IPst Connect end user access-rental | D25: ["] | E25: ["] | F25: ["] | G25: ["] | H25: ["] | I25: ["] | J25: ["] | K25: ["] | L25: ["] | M25: ["] | N25: ["] | O25: ["] | P25: ["] | Q25: ["] | R25: ["] | S25: ["] | T25: ["] | U25: ["] | V25: Rentals
A26: Int DS EU Rent | B26: SM115 | C26: Mkt 1 - WH Int Datast end user access-rental | D26: ["] | E26: ["] | F26: ["] | G26: ["] | H26: ["] | I26: ["] | J26: ["] | K26: ["] | L26: ["] | M26: ["] | N26: ["] | O26: ["] | P26: ["] | Q26: ["] | R26: ["] | S26: ["] | T26: ["] | U26: ["] | V26: Excluded
A27: Ext DS EU Rent | B27: SM116 | C27: Mkt 1 - WH Ext Datast end user access-rental | D27: ["] | E27: ["] | F27: ["] | G27: ["] | H27: ["] | I27: ["] | J27: ["] | K27: ["] | L27: ["] | M27: ["] | N27: ["] | O27: ["] | P27: ["] | Q27: ["] | R27: ["] | S27: ["] | T27: ["] | U27: ["] | V27: Excluded
A28: Int WBC EU Rent | B28: SM117 | C28: Mkt 1 - WH Int WBC end user access-Rentals | D28: ["] | E28: ["] | F28: ["] | G28: ["] | H28: ["] | I28: ["] | J28: ["] | K28: ["] | L28: ["] | M28: ["] | N28: ["] | O28: ["] | P28: ["] | Q28: ["] | R28: ["] | S28: ["] | T28: ["] | U28: ["] | V28: Excluded
A29: Ext WBC EU Rent | B29: SM118 | C29: Mkt 1 - WH Ext WBC end user access-Rentals | D29: ["] | E29: ["] | F29: ["] | G29: ["] | H29: ["] | I29: ["] | J29: ["] | K29: ["] | L29: ["] | M29: ["] | N29: ["] | O29: ["] | P29: ["] | Q29: ["] | R29: ["] | S29: ["] | T29: ["] | U29: ["] | V29: Excluded
A30: Int Ancillary | B30: SM119 | C30: Mkt 1 - WH Int IPst Connect end user access-ceases | D30: ["] | E30: ["] | F30: ["] | G30: ["] | H30: ["] | I30: ["] | J30: ["] | K30: ["] | L30: ["] | M30: ["] | N30: ["] | O30: ["] | P30: ["] | Q30: ["] | R30: ["] | S30: ["] | T30: ["] | U30: ["] | V30: Excluded
A31: Ext Ancillary | B31: SM120 | C31: Mkt 1 - WH Ext IPst Connect end user access-ceases | D31: ["] | E31: ["] | F31: ["] | G31: ["] | H31: ["] | I31: ["] | J31: ["] | K31: ["] | L31: ["] | M31: ["] | N31: ["] | O31: ["] | P31: ["] | Q31: ["] | R31: ["] | S31: ["] | T31: ["] | U31: ["] | V31: Excluded
A32: Int DS BW | B32: SM121 | C32: Mkt 1 - Int Datast VPs - Revenues | D32: ["] | E32: ["] | F32: ["] | G32: ["] | H32: ["] | I32: ["] | J32: ["] | K32: ["] | L32: ["] | M32: ["] | N32: ["] | O32: ["] | P32: ["] | Q32: ["] | R32: ["] | S32: ["] | T32: ["] | U32: ["] | V32: Excluded
A33: Ext DS BW | B33: SM122 | C33: Mkt 1 - Ext Datast VPs - Revenues | D33: ["] | E33: ["] | F33: ["] | G33: ["] | H33: ["] | I33: ["] | J33: ["] | K33: ["] | L33: ["] | M33: ["] | N33: ["] | O33: ["] | P33: ["] | Q33: ["] | R33: ["] | S33: ["] | T33: ["] | U33: ["] | V33: Excluded
A34: Int IPS BW | B34: SM123 | C34: Mkt 1 - Int Ipst Connect BW - Revenues | D34: ["] | E34: ["] | F34: ["] | G34: ["] | H34: ["] | I34: ["] | J34: ["] | K34: ["] | L34: ["] | M34: ["] | N34: ["] | O34: ["] | P34: ["] | Q34: ["] | R34: ["] | S34: ["] | T34: ["] | U34: ["] | V34: Bandwidth
A35: Ext IPS BW | B35: SM124 | C35: Mkt 1 - Ext Ipst Connect BW - Revenues | D35: ["] | E35: ["] | F35: ["] | G35: ["] | H35: ["] | I35: ["] | J35: ["] | K35: ["] | L35: ["] | M35: ["] | N35: ["] | O35: ["] | P35: ["] | Q35: ["] | R35: ["] | S35: ["] | T35: ["] | U35: ["] | V35: Bandwidth
A36: Int WBC BW | B36: SM125 | C36: Mkt 1 - Int WBC BW - Revenues | D36: ["] | E36: ["] | F36: ["] | G36: ["] | H36: ["] | I36: ["] | J36: ["] | K36: ["] | L36: ["] | M36: ["] | N36: ["] | O36: ["] | P36: ["] | Q36: ["] | R36: ["] | S36: ["] | T36: ["] | U36: ["] | V36: Excluded
A37: Ext WBC BW | B37: SM126 | C37: Mkt 1 - Ext WBC BW - Revenues | D37: ["] | E37: ["] | F37: ["] | G37: ["] | H37: ["] | I37: ["] | J37: ["] | K37: ["] | L37: ["] | M37: ["] | N37: ["] | O37: ["] | P37: ["] | Q37: ["] | R37: ["] | S37: ["] | T37: ["] | U37: ["] | V37: Excluded
A38: Int DS BW | B38: SM127 | C38: Mkt 1 - Int Datast VPs - ATM 2mbit Cust If | D38: ["] | E38: ["] | F38: ["] | G38: ["] | H38: ["] | I38: ["] | J38: ["] | K38: ["] | L38: ["] | M38: ["] | N38: ["] | O38: ["] | P38: ["] | Q38: ["] | R38: ["] | S38: ["] | T38: ["] | U38: ["] | V38: Excluded
A39: Ext DS BW | B39: SM128 | C39: Mkt 1 - Ext Datast VPs - ATM 2mbit Cust If | D39: ["] | E39: ["] | F39: ["] | G39: ["] | H39: ["] | I39: ["] | J39: ["] | K39: ["] | L39: ["] | M39: ["] | N39: ["] | O39: ["] | P39: ["] | Q39: ["] | R39: ["] | S39: ["] | T39: ["] | U39: ["] | V39: Excluded
A40: Int IPS BW | B40: SM129 | C40: Mkt 1 - Int Ipst Connect BW - ATM 2mbit Cust If | D40: ["] | E40: ["] | F40: ["] | G40: ["] | H40: ["] | I40: ["] | J40: ["] | K40: ["] | L40: ["] | M40: ["] | N40: ["] | O40: ["] | P40: ["] | Q40: ["] | R40: ["] | S40: ["] | T40: ["] | U40: ["] | V40: Bandwidth
A41: Ext IPS BW | B41: SM130 | C41: Mkt 1 - Ext Ipst Connect BW - ATM 2mbit Cust If | D41: ["] | E41: ["] | F41: ["] | G41: ["] | H41: ["] | I41: ["] | J41: ["] | K41: ["] | L41: ["] | M41: ["] | N41: ["] | O41: ["] | P41: ["] | Q41: ["] | R41: ["] | S41: ["] | T41: ["] | U41: ["] | V41: Bandwidth
A42: Int DS BW | B42: SM131 | C42: Mkt 1 - Int Datast VPs - ATM 34mbit Cust If | D42: ["] | E42: ["] | F42: ["] | G42: ["] | H42: ["] | I42: ["] | J42: ["] | K42: ["] | L42: ["] | M42: ["] | N42: ["] | O42: ["] | P42: ["] | Q42: ["] | R42: ["] | S42: ["] | T42: ["] | U42: ["] | V42: Excluded
A43: Ext DS BW | B43: SM132 | C43: Mkt 1 - Ext Datast VPs - ATM 34mbit Cust If | D43: ["] | E43: ["] | F43: ["] | G43: ["] | H43: ["] | I43: ["] | J43: ["] | K43: ["] | L43: ["] | M43: ["] | N43: ["] | O43: ["] | P43: ["] | Q43: ["] | R43: ["] | S43: ["] | T43: ["] | U43: ["] | V43: Excluded
A44: Int IPS BW | B44: SM133 | C44: Mkt 1 - Int Ipst Connect BW - ATM 34mbit Cust If | D44: ["] | E44: ["] | F44: ["] | G44: ["] | H44: ["] | I44: ["] | J44: ["] | K44: ["] | L44: ["] | M44: ["] | N44: ["] | O44: ["] | P44: ["] | Q44: ["] | R44: ["] | S44: ["] | T44: ["] | U44: ["] | V44: =VLOOKUP(B44,ControlledServices,5,FALSE) -> Bandwidth
A45: Ext IPS BW | B45: SM134 | C45: Mkt 1 - Ext Ipst Connect BW - ATM 34mbit Cust If | D45: ["] | E45: ["] | F45: ["] | G45: ["] | H45: ["] | I45: ["] | J45: ["] | K45: ["] | L45: ["] | M45: ["] | N45: ["] | O45: ["] | P45: ["] | Q45: ["] | R45: ["] | S45: ["] | T45: ["] | U45: ["] | V45: Bandwidth
A46: Int DS BW | B46: SM135 | C46: Mkt 1 - Int Datast VPs - ATM >155mbit Cust If | D46: ["] | E46: ["] | F46: ["] | G46: ["] | H46: ["] | I46: ["] | J46: ["] | K46: ["] | L46: ["] | M46: ["] | N46: ["] | O46: ["] | P46: ["] | Q46: ["] | R46: ["] | S46: ["] | T46: ["] | U46: ["] | V46: Excluded
A47: Ext DS BW | B47: SM136 | C47: Mkt 1 - Ext Datast VPs - ATM>155mbit Cust If | D47: ["] | E47: ["] | F47: ["] | G47: ["] | H47: ["] | I47: ["] | J47: ["] | K47: ["] | L47: ["] | M47: ["] | N47: ["] | O47: ["] | P47: ["] | Q47: ["] | R47: ["] | S47: ["] | T47: ["] | U47: ["] | V47: Excluded
A48: Int IPS BW | B48: SM137 | C48: Mkt 1 - Int Ipst Connect BW - >155mbit Cust If | D48: ["] | E48: ["] | F48: ["] | G48: ["] | H48: ["] | I48: ["] | J48: ["] | K48: ["] | L48: ["] | M48: ["] | N48: ["] | O48: ["] | P48: ["] | Q48: ["] | R48: ["] | S48: ["] | T48: ["] | U48: ["] | V48: Bandwidth
A49: Ext IPS BW | B49: SM138 | C49: Mkt 1 - Ext Ipst Connect BW - ATM >155mbit Cust If | D49: ["] | E49: ["] | F49: ["] | G49: ["] | H49: ["] | I49: ["] | J49: ["] | K49: ["] | L49: ["] | M49: ["] | N49: ["] | O49: ["] | P49: ["] | Q49: ["] | R49: ["] | S49: ["] | T49: ["] | U49: ["] | V49: Bandwidth
A50: Int DS BW | B50: SM139 | C50: Mkt 1 - Int Datast VPs - ATM Network If | D50: ["] | E50: ["] | F50: ["] | G50: ["] | H50: ["] | I50: ["] | J50: ["] | K50: ["] | L50: ["] | M50: ["] | N50: ["] | O50: ["] | P50: ["] | Q50: ["] | R50: ["] | S50: ["] | T50: ["] | U50: ["] | V50: Excluded
A51: Ext DS BW | B51: SM140 | C51: Mkt 1 - Ext Datast VPs - ATM Network If | D51: ["] | E51: ["] | F51: ["] | G51: ["] | H51: ["] | I51: ["] | J51: ["] | K51: ["] | L51: ["] | M51: ["] | N51: ["] | O51: ["] | P51: ["] | Q51: ["] | R51: ["] | S51: ["] | T51: ["] | U51: ["] | V51: Excluded
A52: Int IPS BW | B52: SM141 | C52: Mkt 1 - Int Ipst Connect BW - ATM Network If | D52: ["] | E52: ["] | F52: ["] | G52: ["] | H52: ["] | I52: ["] | J52: ["] | K52: ["] | L52: ["] | M52: ["] | N52: ["] | O52: ["] | P52: ["] | Q52: ["] | R52: ["] | S52: ["] | T52: ["] | U52: ["] | V52: Bandwidth
A53: Ext IPS BW | B53: SM142 | C53: Mkt 1 - Ext Ipst Connect BW - ATM Network If | D53: ["] | E53: ["] | F53: ["] | G53: ["] | H53: ["] | I53: ["] | J53: ["] | K53: ["] | L53: ["] | M53: ["] | N53: ["] | O53: ["] | P53: ["] | Q53: ["] | R53: ["] | S53: ["] | T53: ["] | U53: ["] | V53: Bandwidth
A54: Int DS BW | B54: SM143 | C54: Mkt 1 - Int Datast VPs - ATM Network Switch | D54: ["] | E54: ["] | F54: ["] | G54: ["] | H54: ["] | I54: ["] | J54: ["] | K54: ["] | L54: ["] | M54: ["] | N54: ["] | O54: ["] | P54: ["] | Q54: ["] | R54: ["] | S54: ["] | T54: ["] | U54: ["] | V54: Excluded
A55: Ext DS BW | B55: SM144 | C55: Mkt 1 - Ext Datast VPs - ATM Network Switch | D55: ["] | E55: ["] | F55: ["] | G55: ["] | H55: ["] | I55: ["] | J55: ["] | K55: ["] | L55: ["] | M55: ["] | N55: ["] | O55: ["] | P55: ["] | Q55: ["] | R55: ["] | S55: ["] | T55: ["] | U55: ["] | V55: Excluded
A56: Int IPS BW | B56: SM145 | C56: Mkt 1 - Int Ipst Connect BW - ATM Network Switch | D56: ["] | E56: ["] | F56: ["] | G56: ["] | H56: ["] | I56: ["] | J56: ["] | K56: ["] | L56: ["] | M56: ["] | N56: ["] | O56: ["] | P56: ["] | Q56: ["] | R56: ["] | S56: ["] | T56: ["] | U56: ["] | V56: Bandwidth
A57: Ext IPS BW | B57: SM146 | C57: Mkt 1 - Ext Ipst Connect BW - ATM Network Switch | D57: ["] | E57: ["] | F57: ["] | G57: ["] | H57: ["] | I57: ["] | J57: ["] | K57: ["] | L57: ["] | M57: ["] | N57: ["] | O57: ["] | P57: ["] | Q57: ["] | R57: ["] | S57: ["] | T57: ["] | U57: ["] | V57: Bandwidth
A58: Int DS BW | B58: SM147 | C58: Mkt 1 - Int Datast VPs - Inter ATM Trans | D58: ["] | E58: ["] | F58: ["] | G58: ["] | H58: ["] | I58: ["] | J58: ["] | K58: ["] | L58: ["] | M58: ["] | N58: ["] | O58: ["] | P58: ["] | Q58: ["] | R58: ["] | S58: ["] | T58: ["] | U58: ["] | V58: Excluded
A59: Ext DS BW | B59: SM148 | C59: Mkt 1 - Ext Datast VPs - Inter ATM Trans | D59: ["] | E59: ["] | F59: ["] | G59: ["] | H59: ["] | I59: ["] | J59: ["] | K59: ["] | L59: ["] | M59: ["] | N59: ["] | O59: ["] | P59: ["] | Q59: ["] | R59: ["] | S59: ["] | T59: ["] | U59: ["] | V59: Excluded
A60: Int IPS BW | B60: SM149 | C60: Mkt 1 - Int Ipst Connect BW - Inter ATM Trans | D60: ["] | E60: ["] | F60: ["] | G60: ["] | H60: ["] | I60: ["] | J60: ["] | K60: ["] | L60: ["] | M60: ["] | N60: ["] | O60: ["] | P60: ["] | Q60: ["] | R60: ["] | S60: ["] | T60: ["] | U60: ["] | V60: Bandwidth
A61: Ext IPS BW | B61: SM150 | C61: Mkt 1 - Ext Ipst Connect BW - Inter ATM Trans | D61: ["] | E61: ["] | F61: ["] | G61: ["] | H61: ["] | I61: ["] | J61: ["] | K61: ["] | L61: ["] | M61: ["] | N61: ["] | O61: ["] | P61: ["] | Q61: ["] | R61: ["] | S61: ["] | T61: ["] | U61: ["] | V61: Bandwidth
A62: Int DS BW | B62: SM151 | C62: Mkt 1 - Int Datast VPs - Backhaul | D62: ["] | E62: ["] | F62: ["] | G62: ["] | H62: ["] | I62: ["] | J62: ["] | K62: ["] | L62: ["] | M62: ["] | N62: ["] | O62: ["] | P62: ["] | Q62: ["] | R62: ["] | S62: ["] | T62: ["] | U62: ["] | V62: Excluded
A63: Ext DS BW | B63: SM152 | C63: Mkt 1 - Ext Datast VPs - Backhaul | D63: ["] | E63: ["] | F63: ["] | G63: ["] | H63: ["] | I63: ["] | J63: ["] | K63: ["] | L63: ["] | M63: ["] | N63: ["] | O63: ["] | P63: ["] | Q63: ["] | R63: ["] | S63: ["] | T63: ["] | U63: ["] | V63: Excluded
A64: Int IPS BW | B64: SM153 | C64: Mkt 1 - Int Ipst Connect BW - backhaul | D64: ["] | E64: ["] | F64: ["] | G64: ["] | H64: ["] | I64: ["] | J64: ["] | K64: ["] | L64: ["] | M64: ["] | N64: ["] | O64: ["] | P64: ["] | Q64: ["] | R64: ["] | S64: ["] | T64: ["] | U64: ["] | V64: Bandwidth
A65: Ext IPS BW | B65: SM154 | C65: Mkt 1 - Ext Ipst Connect BW - Backhaul | D65: ["] | E65: ["] | F65: ["] | G65: ["] | H65: ["] | I65: ["] | J65: ["] | K65: ["] | L65: ["] | M65: ["] | N65: ["] | O65: ["] | P65: ["] | Q65: ["] | R65: ["] | S65: ["] | T65: ["] | U65: ["] | V65: Bandwidth
A66: Int DS EU Rent | B66: SM155 | C66: Mkt 1 - Int Datast VPs - DSLAM overhead | D66: ["] | E66: ["] | F66: ["] | G66: ["] | H66: ["] | I66: ["] | J66: ["] | K66: ["] | L66: ["] | M66: ["] | N66: ["] | O66: ["] | P66: ["] | Q66: ["] | R66: ["] | S66: ["] | T66: ["] | U66: ["] | V66: Excluded
A67: Ext DS EU Rent | B67: SM156 | C67: Mkt 1 - Ext Datast VPs - DSLAM overhead | D67: ["] | E67: ["] | F67: ["] | G67: ["] | H67: ["] | I67: ["] | J67: ["] | K67: ["] | L67: ["] | M67: ["] | N67: ["] | O67: ["] | P67: ["] | Q67: ["] | R67: ["] | S67: ["] | T67: ["] | U67: ["] | V67: Excluded
A68: Int IPS EU Rent | B68: SM157 | C68: Mkt 1 - Int Ipst Connect BW - DSLAM overhead | D68: ["] | E68: ["] | F68: ["] | G68: ["] | H68: ["] | I68: ["] | J68: ["] | K68: ["] | L68: ["] | M68: ["] | N68: ["] | O68: ["] | P68: ["] | Q68: ["] | R68: ["] | S68: ["] | T68: ["] | U68: ["] | V68: Rentals
A69: Ext IPS EU Rent | B69: SM158 | C69: Mkt 1 - Ext Ipst Connect BW - DSLAM overhead | D69: ["] | E69: ["] | F69: ["] | G69: ["] | H69: ["] | I69: ["] | J69: ["] | K69: ["] | L69: ["] | M69: ["] | N69: ["] | O69: ["] | P69: ["] | Q69: ["] | R69: ["] | S69: ["] | T69: ["] | U69: ["] | V69: Rentals
A70: Int Ancillary | B70: SM159 | C70: Mkt 1 - Int Handover Charges | D70: ["] | E70: ["] | F70: ["] | G70: ["] | H70: ["] | I70: ["] | J70: ["] | K70: ["] | L70: ["] | M70: ["] | N70: ["] | O70: ["] | P70: ["] | Q70: ["] | R70: ["] | S70: ["] | T70: ["] | U70: ["] | V70: Excluded
A71: Ext Ancillary | B71: SM160 | C71: Mkt 1 - Ext Handover Charges | D71: ["] | E71: ["] | F71: ["] | G71: ["] | H71: ["] | I71: ["] | J71: ["] | K71: ["] | L71: ["] | M71: ["] | N71: ["] | O71: ["] | P71: ["] | Q71: ["] | R71: ["] | S71: ["] | T71: ["] | U71: ["] | V71: Excluded
A72: Int Ancillary | B72: SM161 | C72: Mkt 1 Int end user access OR 20CN to WBC regrades | D72: ["] | E72: ["] | F72: ["] | G72: ["] | H72: ["] | I72: ["] | J72: ["] | K72: ["] | L72: ["] | M72: ["] | N72: ["] | O72: ["] | P72: ["] | Q72: ["] | R72: ["] | S72: ["] | T72: ["] | U72: ["] | V72: Excluded
A73: Ext Ancillary | B73: SM162 | C73: Mkt 1 Ext end user access OR 20CN to WBC regrades | D73: ["] | E73: ["] | F73: ["] | G73: ["] | H73: ["] | I73: ["] | J73: ["] | K73: ["] | L73: ["] | M73: ["] | N73: ["] | O73: ["] | P73: ["] | Q73: ["] | R73: ["] | S73: ["] | T73: ["] | U73: ["] | V73: Excluded
A74: Int Ancillary | B74: SM163 | C74: Mkt 1 Int end user access WH 20CN to WBC regrades | D74: ["] | E74: ["] | F74: ["] | G74: ["] | H74: ["] | I74: ["] | J74: ["] | K74: ["] | L74: ["] | M74: ["] | N74: ["] | O74: ["] | P74: ["] | Q74: ["] | R74: ["] | S74: ["] | T74: ["] | U74: ["] | V74: Excluded
A75: Ext Ancillary | B75: SM164 | C75: Mkt 1 Ext end user access WH 20CN to WBC regrades | D75: ["] | E75: ["] | F75: ["] | G75: ["] | H75: ["] | I75: ["] | J75: ["] | K75: ["] | L75: ["] | M75: ["] | N75: ["] | O75: ["] | P75: ["] | Q75: ["] | R75: ["] | S75: ["] | T75: ["] | U75: ["] | V75: Excluded
A76: Int IPS EU Rent | B76: SM165 | C76: Mkt 1 - Int SFI - OR | D76: ["] | E76: ["] | F76: ["] | G76: ["] | H76: ["] | I76: ["] | J76: ["] | K76: ["] | L76: ["] | M76: ["] | N76: ["] | O76: ["] | P76: ["] | Q76: ["] | R76: ["] | S76: ["] | T76: ["] | U76: ["] | V76: =VLOOKUP(B76,ControlledServices,5,FALSE) -> Rentals
A77: Ext IPS EU Rent | B77: SM166 | C77: Mkt 1 - Ext SFI - OR | D77: ["] | E77: ["] | F77: ["] | G77: ["] | H77: ["] | I77: ["] | J77: ["] | K77: ["] | L77: ["] | M77: ["] | N77: ["] | O77: ["] | P77: ["] | Q77: ["] | R77: ["] | S77: ["] | T77: ["] | U77: ["] | V77: Rentals
A78: Int Ancillary | B78: SM167 | C78: Mkt 1 - Int SFI - WH | D78: ["] | E78: ["] | F78: ["] | G78: ["] | H78: ["] | I78: ["] | J78: ["] | K78: ["] | L78: ["] | M78: ["] | N78: ["] | O78: ["] | P78: ["] | Q78: ["] | R78: ["] | S78: ["] | T78: ["] | U78: ["] | V78: Excluded
A79: Ext Ancillary | B79: SM168 | C79: Mkt 1 - Ext SFI - WH | D79: ["] | E79: ["] | F79: ["] | G79: ["] | H79: ["] | I79: ["] | J79: ["] | K79: ["] | L79: ["] | M79: ["] | N79: ["] | O79: ["] | P79: ["] | Q79: ["] | R79: ["] | S79: ["] | T79: ["] | U79: ["] | V79: Excluded
A80: Int Ancillary | B80: SM169 | C80: Mkt 1 - Int Other Ancillaries | D80: ["] | E80: ["] | F80: ["] | G80: ["] | H80: ["] | I80: ["] | J80: ["] | K80: ["] | L80: ["] | M80: ["] | N80: ["] | O80: ["] | P80: ["] | Q80: ["] | R80: ["] | S80: ["] | T80: ["] | U80: ["] | V80: Excluded
A81: Ext Ancillary | B81: SM170 | C81: Mkt 1 - Ext Other Ancillaries | D81: ["] | E81: ["] | F81: ["] | G81: ["] | H81: ["] | I81: ["] | J81: ["] | K81: ["] | L81: ["] | M81: ["] | N81: ["] | O81: ["] | P81: ["] | Q81: ["] | R81: ["] | S81: ["] | T81: ["] | U81: ["] | V81: Excluded
A82: Int DS EU Rent | B82: SM171 | C82: Mkt 1 - Int Datastream - DSLAM depreciation | D82: ["] | E82: ["] | F82: ["] | G82: ["] | H82: ["] | I82: ["] | J82: ["] | K82: ["] | L82: ["] | M82: ["] | N82: ["] | O82: ["] | P82: ["] | Q82: ["] | R82: ["] | S82: ["] | T82: ["] | U82: ["] | V82: Excluded
A83: Ext DS EU Rent | B83: SM172 | C83: Mkt 1 - Ext Datastream - DSLAM depreciation | D83: ["] | E83: ["] | F83: ["] | G83: ["] | H83: ["] | I83: ["] | J83: ["] | K83: ["] | L83: ["] | M83: ["] | N83: ["] | O83: ["] | P83: ["] | Q83: ["] | R83: ["] | S83: ["] | T83: ["] | U83: ["] | V83: Excluded
A84: Int IPS EU Rent | B84: SM173 | C84: Mkt 1 - Int Ipst Connect - DSLAM depreciation | D84: ["] | E84: ["] | F84: ["] | G84: ["] | H84: ["] | I84: ["] | J84: ["] | K84: ["] | L84: ["] | M84: ["] | N84: ["] | O84: ["] | P84: ["] | Q84: ["] | R84: ["] | S84: ["] | T84: ["] | U84: ["] | V84: Rentals
A85: Ext IPS EU Rent | B85: SM174 | C85: Mkt 1 - Ext Ipst Connect - DSLAM depreciation | D85: ["] | E85: ["] | F85: ["] | G85: ["] | H85: ["] | I85: ["] | J85: ["] | K85: ["] | L85: ["] | M85: ["] | N85: ["] | O85: ["] | P85: ["] | Q85: ["] | R85: ["] | S85: ["] | T85: ["] | U85: ["] | V85: Rentals
A86: Int Ancillary | B86: SM175 | C86: Mkt 1 - OR Int end user access CP Mig | D86: ["] | E86: ["] | F86: ["] | G86: ["] | H86: ["] | I86: ["] | J86: ["] | K86: ["] | L86: ["] | M86: ["] | N86: ["] | O86: ["] | P86: ["] | Q86: ["] | R86: ["] | S86: ["] | T86: ["] | U86: ["] | V86: Excluded
A87: Ext Ancillary | B87: SM176 | C87: Mkt 1 - OR Ext end user access CP Mig | D87: ["] | E87: ["] | F87: ["] | G87: ["] | H87: ["] | I87: ["] | J87: ["] | K87: ["] | L87: ["] | M87: ["] | N87: ["] | O87: ["] | P87: ["] | Q87: ["] | R87: ["] | S87: ["] | T87: ["] | U87: ["] | V87: Excluded
A88: Int IPS EU Rent | B88: SM177 | C88: Mkt 1 - OR Int IPstream Connect DSLAM Grooming | D88: ["] | E88: ["] | F88: ["] | G88: ["] | H88: ["] | I88: ["] | J88: ["] | K88: ["] | L88: ["] | M88: ["] | N88: ["] | O88: ["] | P88: ["] | Q88: ["] | R88: ["] | S88: ["] | T88: ["] | U88: ["] | V88: Rentals
A89: Ext IPS EU Rent | B89: SM178 | C89: Mkt 1 - OR Ext IPstream Connect DSLAM Grooming | D89: ["] | E89: ["] | F89: ["] | G89: ["] | H89: ["] | I89: ["] | J89: ["] | K89: ["] | L89: ["] | M89: ["] | N89: ["] | O89: ["] | P89: ["] | Q89: ["] | R89: ["] | S89: ["] | T89: ["] | U89: ["] | V89: Rentals
A90: Int DS EU Rent | B90: SM179 | C90: Mkt 1 - OR Int Datastream DSLAM Grooming | D90: ["] | E90: ["] | F90: ["] | G90: ["] | H90: ["] | I90: ["] | J90: ["] | K90: ["] | L90: ["] | M90: ["] | N90: ["] | O90: ["] | P90: ["] | Q90: ["] | R90: ["] | S90: ["] | T90: ["] | U90: ["] | V90: Excluded
A91: Ext DS EU Rent | B91: SM180 | C91: Mkt 1 - OR Ext Datastream DSLAM Grooming | D91: ["] | E91: ["] | F91: ["] | G91: ["] | H91: ["] | I91: ["] | J91: ["] | K91: ["] | L91: ["] | M91: ["] | N91: ["] | O91: ["] | P91: ["] | Q91: ["] | R91: ["] | S91: ["] | T91: ["] | U91: ["] | V91: Excluded
A92: Int IPS EU Rent | B92: SM181 | C92: Mkt 1 - OR Int IPstream Connect 21CN Tie cables | D92: ["] | E92: ["] | F92: ["] | G92: ["] | H92: ["] | I92: ["] | J92: ["] | K92: ["] | L92: ["] | M92: ["] | N92: ["] | O92: ["] | P92: ["] | Q92: ["] | R92: ["] | S92: ["] | T92: ["] | U92: ["] | V92: Rentals
A93: Ext IPS EU Rent | B93: SM182 | C93: Mkt 1 - OR Ext IPstream Connect 21CN Tie cables | D93: ["] | E93: ["] | F93: ["] | G93: ["] | H93: ["] | I93: ["] | J93: ["] | K93: ["] | L93: ["] | M93: ["] | N93: ["] | O93: ["] | P93: ["] | Q93: ["] | R93: ["] | S93: ["] | T93: ["] | U93: ["] | V93: Rentals
A94: Int DS EU Rent | B94: SM183 | C94: Mkt 1 - OR Int Datastream 21CN Tie cables | D94: ["] | E94: ["] | F94: ["] | G94: ["] | H94: ["] | I94: ["] | J94: ["] | K94: ["] | L94: ["] | M94: ["] | N94: ["] | O94: ["] | P94: ["] | Q94: ["] | R94: ["] | S94: ["] | T94: ["] | U94: ["] | V94: Excluded
A95: Ext DS EU Rent | B95: SM184 | C95: Mkt 1 - OR Ext Datastream 21CN Tie cables | D95: ["] | E95: ["] | F95: ["] | G95: ["] | H95: ["] | I95: ["] | J95: ["] | K95: ["] | L95: ["] | M95: ["] | N95: ["] | O95: ["] | P95: ["] | Q95: ["] | R95: ["] | S95: ["] | T95: ["] | U95: ["] | V95: Excluded
A96: Int WBC EU Rent | B96: SM185 | C96: Mkt 1 - OR Int WBC 21CN Tie cables | D96: ["] | E96: ["] | F96: ["] | G96: ["] | H96: ["] | I96: ["] | J96: ["] | K96: ["] | L96: ["] | M96: ["] | N96: ["] | O96: ["] | P96: ["] | Q96: ["] | R96: ["] | S96: ["] | T96: ["] | U96: ["] | V96: Excluded
A97: Ext WBC EU Rent | B97: SM186 | C97: Mkt 1 - OR Ext WBC 21CN Tie cables | D97: ["] | E97: ["] | F97: ["] | G97: ["] | H97: ["] | I97: ["] | J97: ["] | K97: ["] | L97: ["] | M97: ["] | N97: ["] | O97: ["] | P97: ["] | Q97: ["] | R97: ["] | S97: ["] | T97: ["] | U97: ["] | V97: Excluded
A98: Int IPS EU Rent | B98: SM187 | C98: Mkt 1 - OR Int IPstream Connect 20CN Tie cables | D98: ["] | E98: ["] | F98: ["] | G98: ["] | H98: ["] | I98: ["] | J98: ["] | K98: ["] | L98: ["] | M98: ["] | N98: ["] | O98: ["] | P98: ["] | Q98: ["] | R98: ["] | S98: ["] | T98: ["] | U98: ["] | V98: Rentals
A99: Ext IPS EU Rent | B99: SM188 | C99: Mkt 1 - OR Ext IPstream Connect 20CN Tie cables | D99: ["] | E99: ["] | F99: ["] | G99: ["] | H99: ["] | I99: ["] | J99: ["] | K99: ["] | L99: ["] | M99: ["] | N99: ["] | O99: ["] | P99: ["] | Q99: ["] | R99: ["] | S99: ["] | T99: ["] | U99: ["] | V99: Rentals
A100: Int DS EU Rent | B100: SM189 | C100: Mkt 1 - OR Int Datastream 20CN Tie cables | D100: ["] | E100: ["] | F100: ["] | G100: ["] | H100: ["] | I100: ["] | J100: ["] | K100: ["] | L100: ["] | M100: ["] | N100: ["] | O100: ["] | P100: ["] | Q100: ["] | R100: ["] | S100: ["] | T100: ["] | U100: ["] | V100: Excluded
A101: Ext DS EU Rent | B101: SM190 | C101: Mkt 1 - OR Ext Datastream 20CN Tie cables | D101: ["] | E101: ["] | F101: ["] | G101: ["] | H101: ["] | I101: ["] | J101: ["] | K101: ["] | L101: ["] | M101: ["] | N101: ["] | O101: ["] | P101: ["] | Q101: ["] | R101: ["] | S101: ["] | T101: ["] | U101: ["] | V101: Excluded
A102: Int Ancillary | B102: SM191 | C102: Mkt 1 - OR Int WBA SMPF enhanced care | D102: ["] | E102: ["] | F102: ["] | G102: ["] | H102: ["] | I102: ["] | J102: ["] | K102: ["] | L102: ["] | M102: ["] | N102: ["] | O102: ["] | P102: ["] | Q102: ["] | R102: ["] | S102: ["] | T102: ["] | U102: ["] | V102: Excluded
A103: Ext Ancillary | B103: SM192 | C103: Mkt 1 - OR Ext WBA SMPF enhanced care | D103: ["] | E103: ["] | F103: ["] | G103: ["] | H103: ["] | I103: ["] | J103: ["] | K103: ["] | L103: ["] | M103: ["] | N103: ["] | O103: ["] | P103: ["] | Q103: ["] | R103: ["] | S103: ["] | T103: ["] | U103: ["] | V103: Excluded
A104: Int Ancillary | B104: SM197 | C104: Mkt 1 - OR Int WBA SMPF Expedite | D104: ["] | E104: ["] | F104: ["] | G104: ["] | H104: ["] | I104: ["] | J104: ["] | K104: ["] | L104: ["] | M104: ["] | N104: ["] | O104: ["] | P104: ["] | Q104: ["] | R104: ["] | S104: ["] | T104: ["] | U104: ["] | V104: Excluded
A105: Ext Ancillary | B105: SM198 | C105: Mkt 1 - OR Ext WBA SMPF Expedite | D105: ["] | E105: ["] | F105: ["] | G105: ["] | H105: ["] | I105: ["] | J105: ["] | K105: ["] | L105: ["] | M105: ["] | N105: ["] | O105: ["] | P105: ["] | Q105: ["] | R105: ["] | S105: ["] | T105: ["] | U105: ["] | V105: Excluded
A106: Int Ancillary | B106: SN103 | C106: Mkt 1 - OR Int Broadband Boost | D106: ["] | E106: ["] | F106: ["] | G106: ["] | H106: ["] | I106: ["] | J106: ["] | K106: ["] | L106: ["] | M106: ["] | N106: ["] | O106: ["] | P106: ["] | Q106: ["] | R106: ["] | S106: ["] | T106: ["] | U106: ["] | V106: Excluded
A107: Ext Ancillary | B107: SN104 | C107: Mkt 1 - WH Int Broadband Boost | D107: ["] | E107: ["] | F107: ["] | G107: ["] | H107: ["] | I107: ["] | J107: ["] | K107: ["] | L107: ["] | M107: ["] | N107: ["] | O107: ["] | P107: ["] | Q107: ["] | R107: ["] | S107: ["] | T107: ["] | U107: ["] | V107: Excluded
A108: Int IPS BW | B108: SN109 | C108: Mkt 1 - OR Int IPstream Connect 21CN Backhaul | D108: ["] | E108: ["] | F108: ["] | G108: ["] | H108: ["] | I108: ["] | J108: ["] | K108: ["] | L108: ["] | M108: ["] | N108: ["] | O108: ["] | P108: ["] | Q108: ["] | R108: ["] | S108: ["] | T108: ["] | U108: ["] | V108: =VLOOKUP(B108,ControlledServices,5,FALSE) -> Bandwidth
A109: Ext IPS BW | B109: SN110 | C109: Mkt 1 - OR Ext IPstream Connect 21CN Backhaul | D109: ["] | E109: ["] | F109: ["] | G109: ["] | H109: ["] | I109: ["] | J109: ["] | K109: ["] | L109: ["] | M109: ["] | N109: ["] | O109: ["] | P109: ["] | Q109: ["] | R109: ["] | S109: ["] | T109: ["] | U109: ["] | V109: Bandwidth
A110: Int DS BW | B110: SN111 | C110: Mkt 1 - OR Int Datastream 21CN Backhaul | D110: ["] | E110: ["] | F110: ["] | G110: ["] | H110: ["] | I110: ["] | J110: ["] | K110: ["] | L110: ["] | M110: ["] | N110: ["] | O110: ["] | P110: ["] | Q110: ["] | R110: ["] | S110: ["] | T110: ["] | U110: ["] | V110: Excluded
A111: Ext DS BW | B111: SN112 | C111: Mkt 1 - OR Ext Datastream 21CN Backhaul | D111: ["] | E111: ["] | F111: ["] | G111: ["] | H111: ["] | I111: ["] | J111: ["] | K111: ["] | L111: ["] | M111: ["] | N111: ["] | O111: ["] | P111: ["] | Q111: ["] | R111: ["] | S111: ["] | T111: ["] | U111: ["] | V111: Excluded
A112: Int WBC BW | B112: SN113 | C112: Mkt 1 - OR Int WBC 21CN Backhaul | D112: ["] | E112: ["] | F112: ["] | G112: ["] | H112: ["] | I112: ["] | J112: ["] | K112: ["] | L112: ["] | M112: ["] | N112: ["] | O112: ["] | P112: ["] | Q112: ["] | R112: ["] | S112: ["] | T112: ["] | U112: ["] | V112: Excluded
A113: Ext WBC BW | B113: SN114 | C113: Mkt 1 - OR Ext WBC 21CN Backhaul | D113: ["] | E113: ["] | F113: ["] | G113: ["] | H113: ["] | I113: ["] | J113: ["] | K113: ["] | L113: ["] | M113: ["] | N113: ["] | O113: ["] | P113: ["] | Q113: ["] | R113: ["] | S113: ["] | T113: ["] | U113: ["] | V113: Excluded
C114: For the year ended 31/3/2012 as reported in 2012 RFS | D114: ["] | E114: ["] | F114: ["] | G114: ["] | H114: ["] | I114: ["] | J114: ["] | K114: ["] | L114: ["] | M114: ["] | N114: ["] | O114: ["] | P114: ["] | Q114: ["] | R114: ["] | S114: ["] | T114: ["] | U114: ["]
A116: Serv Mapping | B116: Service Code | C116: Service Description | D116: Internal Revenue | E116: External Revenue | F116: Revenue | G116: Operating costs | H116: Depreciation | I116: Holding (gain)/loss | J116: Supp. Dep. | K116: Other adjs. | L116: Roundings | M116: Total CCA operating costs | N116: Return | O116: MCE | P116: Return on MCE | Q116: EOI or WBA costs | R116: EOI Costs (operating costs ONLY) | S116: WBA Operating costs | T116: WBA Depreciation Costs | U116: WBA MCE | V116: Controlled Services
A117: Int Conn | B117: SM101 | C117: Mkt 1 - OR Int WBA end user access-conns | D117: ["] | E117: ["] | F117: ["] | G117: ["] | H117: ["] | I117: ["] | J117: ["] | K117: ["] | L117: ["] | M117: ["] | N117: ["] | O117: ["] | P117: ["] | Q117: ["] | R117: ["] | S117: ["] | T117: ["] | U117: ["] | V117: =VLOOKUP(B117,ControlledServices,5,FALSE) -> Excluded
A118: Ext Conn | B118: SM102 | C118: Mkt 1 - OR Ext WBA end user access-conns | D118: ["] | E118: ["] | F118: ["] | G118: ["] | H118: ["] | I118: ["] | J118: ["] | K118: ["] | L118: ["] | M118: ["] | N118: ["] | O118: ["] | P118: ["] | Q118: ["] | R118: ["] | S118: ["] | T118: ["] | U118: ["] | V118: Excluded
A119: Int IPS EU Rent | B119: SM103 | C119: Mkt 1 - OR Int IPst Connect end user access-rental | D119: ["] | E119: ["] | F119: ["] | G119: ["] | H119: ["] | I119: ["] | J119: ["] | K119: ["] | L119: ["] | M119: ["] | N119: ["] | O119: ["] | P119: ["] | Q119: ["] | R119: ["] | S119: ["] | T119: ["] | U119: ["] | V119: Rentals
A120: Ext IPS EU Rent | B120: SM104 | C120: Mkt 1 - OR Ext IPst Connect end user access-rental | D120: ["] | E120: ["] | F120: ["] | G120: ["] | H120: ["] | I120: ["] | J120: ["] | K120: ["] | L120: ["] | M120: ["] | N120: ["] | O120: ["] | P120: ["] | Q120: ["] | R120: ["] | S120: ["] | T120: ["] | U120: ["] | V120: Rentals
A121: Int DS EU Rent | B121: SM105 | C121: Mkt 1 - OR Int Datast end user access-rental | D121: ["] | E121: ["] | F121: ["] | G121: ["] | H121: ["] | I121: ["] | J121: ["] | K121: ["] | L121: ["] | M121: ["] | N121: ["] | O121: ["] | P121: ["] | Q121: ["] | R121: ["] | S121: ["] | T121: ["] | U121: ["] | V121: Excluded
A122: Ext DS EU Rent | B122: SM106 | C122: Mkt 1 - OR Ext Datast end user access-rental | D122: ["] | E122: ["] | F122: ["] | G122: ["] | H122: ["] | I122: ["] | J122: ["] | K122: ["] | L122: ["] | M122: ["] | N122: ["] | O122: ["] | P122: ["] | Q122: ["] | R122: ["] | S122: ["] | T122: ["] | U122: ["] | V122: Excluded
A123: Int WBC EU Rent | B123: SM107 | C123: Mkt 1 - OR Int WBC end user access-Rentals | D123: ["] | E123: ["] | F123: ["] | G123: ["] | H123: ["] | I123: ["] | J123: ["] | K123: ["] | L123: ["] | M123: ["] | N123: ["] | O123: ["] | P123: ["] | Q123: ["] | R123: ["] | S123: ["] | T123: ["] | U123: ["] | V123: Excluded
A124: Ext WBC EU Rent | B124: SM108 | C124: Mkt 1 - OR Ext WBC end user access-Rentals | D124: ["] | E124: ["] | F124: ["] | G124: ["] | H124: ["] | I124: ["] | J124: ["] | K124: ["] | L124: ["] | M124: ["] | N124: ["] | O124: ["] | P124: ["] | Q124: ["] | R124: ["] | S124: ["] | T124: ["] | U124: ["] | V124: Excluded
A125: Int Ancillary | B125: SM109 | C125: Mkt 1 - OR Int WBA end user access-ceases | D125: ["] | E125: ["] | F125: ["] | G125: ["] | H125: ["] | I125: ["] | J125: ["] | K125: ["] | L125: ["] | M125: ["] | N125: ["] | O125: ["] | P125: ["] | Q125: ["] | R125: ["] | S125: ["] | T125: ["] | U125: ["] | V125: Excluded
A126: Ext Ancillary | B126: SM110 | C126: Mkt 1 - OR Ext WBA end user access-ceases | D126: ["] | E126: ["] | F126: ["] | G126: ["] | H126: ["] | I126: ["] | J126: ["] | K126: ["] | L126: ["] | M126: ["] | N126: ["] | O126: ["] | P126: ["] | Q126: ["] | R126: ["] | S126: ["] | T126: ["] | U126: ["] | V126: Excluded
A127: Int Conn | B127: SM111 | C127: Mkt 1 - WH Int WBA end user access-conns | D127: ["] | E127: ["] | F127: ["] | G127: ["] | H127: ["] | I127: ["] | J127: ["] | K127: ["] | L127: ["] | M127: ["] | N127: ["] | O127: ["] | P127: ["] | Q127: ["] | R127: ["] | S127: ["] | T127: ["] | U127: ["] | V127: Excluded
A128: Ext Conn | B128: SM112 | C128: Mkt 1 - WH Ext WBA end user access-conns | D128: ["] | E128: ["] | F128: ["] | G128: ["] | H128: ["] | I128: ["] | J128: ["] | K128: ["] | L128: ["] | M128: ["] | N128: ["] | O128: ["] | P128: ["] | Q128: ["] | R128: ["] | S128: ["] | T128: ["] | U128: ["] | V128: Excluded
A129: Int IPS EU Rent | B129: SM113 | C129: Mkt 1 - WH Int IPst Connect end user access-rental | D129: ["] | E129: ["] | F129: ["] | G129: ["] | H129: ["] | I129: ["] | J129: ["] | K129: ["] | L129: ["] | M129: ["] | N129: ["] | O129: ["] | P129: ["] | Q129: ["] | R129: ["] | S129: ["] | T129: ["] | U129: ["] | V129: Rentals
A130: Ext IPS EU Rent | B130: SM114 | C130: Mkt 1 - WH Ext IPst Connect end user access-rental | D130: ["] | E130: ["] | F130: ["] | G130: ["] | H130: ["] | I130: ["] | J130: ["] | K130: ["] | L130: ["] | M130: ["] | N130: ["] | O130: ["] | P130: ["] | Q130: ["] | R130: ["] | S130: ["] | T130: ["] | U130: ["] | V130: Rentals
A131: Int DS EU Rent | B131: SM115 | C131: Mkt 1 - WH Int Datast end user access-rental | D131: ["] | E131: ["] | F131: ["] | G131: ["] | H131: ["] | I131: ["] | J131: ["] | K131: ["] | L131: ["] | M131: ["] | N131: ["] | O131: ["] | P131: ["] | Q131: ["] | R131: ["] | S131: ["] | T131: ["] | U131: ["] | V131: Excluded
A132: Ext DS EU Rent | B132: SM116 | C132: Mkt 1 - WH Ext Datast end user access-rental | D132: ["] | E132: ["] | F132: ["] | G132: ["] | H132: ["] | I132: ["] | J132: ["] | K132: ["] | L132: ["] | M132: ["] | N132: ["] | O132: ["] | P132: ["] | Q132: ["] | R132: ["] | S132: ["] | T132: ["] | U132: ["] | V132: Excluded
A133: Int WBC EU Rent | B133: SM117 | C133: Mkt 1 - WH Int WBC end user access-Rentals | D133: ["] | E133: ["] | F133: ["] | G133: ["] | H133: ["] | I133: ["] | J133: ["] | K133: ["] | L133: ["] | M133: ["] | N133: ["] | O133: ["] | P133: ["] | Q133: ["] | R133: ["] | S133: ["] | T133: ["] | U133: ["] | V133: Excluded
A134: Ext WBC EU Rent | B134: SM118 | C134: Mkt 1 - WH Ext WBC end user access-Rentals | D134: ["] | E134: ["] | F134: ["] | G134: ["] | H134: ["] | I134: ["] | J134: ["] | K134: ["] | L134: ["] | M134: ["] | N134: ["] | O134: ["] | P134: ["] | Q134: ["] | R134: ["] | S134: ["] | T134: ["] | U134: ["] | V134: Excluded
A135: Int Ancillary | B135: SM119 | C135: Mkt 1 - WH Int IPst Connect end user access-ceases | D135: ["] | E135: ["] | F135: ["] | G135: ["] | H135: ["] | I135: ["] | J135: ["] | K135: ["] | L135: ["] | M135: ["] | N135: ["] | O135: ["] | P135: ["] | Q135: ["] | R135: ["] | S135: ["] | T135: ["] | U135: ["] | V135: Excluded
A136: Ext Ancillary | B136: SM120 | C136: Mkt 1 - WH Ext IPst Connect end user access-ceases | D136: ["] | E136: ["] | F136: ["] | G136: ["] | H136: ["] | I136: ["] | J136: ["] | K136: ["] | L136: ["] | M136: ["] | N136: ["] | O136: ["] | P136: ["] | Q136: ["] | R136: ["] | S136: ["] | T136: ["] | U136: ["] | V136: Excluded
A137: Int DS BW | B137: SM121 | C137: Mkt 1 - Int Datast VPs - Revenues | D137: ["] | E137: ["] | F137: ["] | G137: ["] | H137: ["] | I137: ["] | J137: ["] | K137: ["] | L137: ["] | M137: ["] | N137: ["] | O137: ["] | P137: ["] | Q137: ["] | R137: ["] | S137: ["] | T137: ["] | U137: ["] | V137: Excluded
A138: Ext DS BW | B138: SM122 | C138: Mkt 1 - Ext Datast VPs - Revenues | D138: ["] | E138: ["] | F138: ["] | G138: ["] | H138: ["] | I138: ["] | J138: ["] | K138: ["] | L138: ["] | M138: ["] | N138: ["] | O138: ["] | P138: ["] | Q138: ["] | R138: ["] | S138: ["] | T138: ["] | U138: ["] | V138: Excluded
A139: Int IPS BW | B139: SM123 | C139: Mkt 1 - Int Ipst Connect BW - Revenues | D139: ["] | E139: ["] | F139: ["] | G139: ["] | H139: ["] | I139: ["] | J139: ["] | K139: ["] | L139: ["] | M139: ["] | N139: ["] | O139: ["] | P139: ["] | Q139: ["] | R139: ["] | S139: ["] | T139: ["] | U139: ["] | V139: Bandwidth
A140: Ext IPS BW | B140: SM124 | C140: Mkt 1 - Ext Ipst Connect BW - Revenues | D140: ["] | E140: ["] | F140: ["] | G140: ["] | H140: ["] | I140: ["] | J140: ["] | K140: ["] | L140: ["] | M140: ["] | N140: ["] | O140: ["] | P140: ["] | Q140: ["] | R140: ["] | S140: ["] | T140: ["] | U140: ["] | V140: Bandwidth
A141: Int WBC BW | B141: SM125 | C141: Mkt 1 - Int WBC BW - Revenues | D141: ["] | E141: ["] | F141: ["] | G141: ["] | H141: ["] | I141: ["] | J141: ["] | K141: ["] | L141: ["] | M141: ["] | N141: ["] | O141: ["] | P141: ["] | Q141: ["] | R141: ["] | S141: ["] | T141: ["] | U141: ["] | V141: Excluded
A142: Ext WBC BW | B142: SM126 | C142: Mkt 1 - Ext WBC BW - Revenues | D142: ["] | E142: ["] | F142: ["] | G142: ["] | H142: ["] | I142: ["] | J142: ["] | K142: ["] | L142: ["] | M142: ["] | N142: ["] | O142: ["] | P142: ["] | Q142: ["] | R142: ["] | S142: ["] | T142: ["] | U142: ["] | V142: Excluded
A143: Int DS BW | B143: SM127 | C143: Mkt 1 - Int Datast VPs - ATM 2mbit Cust If | D143: ["] | E143: ["] | F143: ["] | G143: ["] | H143: ["] | I143: ["] | J143: ["] | K143: ["] | L143: ["] | M143: ["] | N143: ["] | O143: ["] | P143: ["] | Q143: ["] | R143: ["] | S143: ["] | T143: ["] | U143: ["] | V143: Excluded
A144: Ext DS BW | B144: SM128 | C144: Mkt 1 - Ext Datast VPs - ATM 2mbit Cust If | D144: ["] | E144: ["] | F144: ["] | G144: ["] | H144: ["] | I144: ["] | J144: ["] | K144: ["] | L144: ["] | M144: ["] | N144: ["] | O144: ["] | P144: ["] | Q144: ["] | R144: ["] | S144: ["] | T144: ["] | U144: ["] | V144: Excluded
A145: Int IPS BW | B145: SM129 | C145: Mkt 1 - Int Ipst Connect BW - ATM 2mbit Cust If | D145: ["] | E145: ["] | F145: ["] | G145: ["] | H145: ["] | I145: ["] | J145: ["] | K145: ["] | L145: ["] | M145: ["] | N145: ["] | O145: ["] | P145: ["] | Q145: ["] | R145: ["] | S145: ["] | T145: ["] | U145: ["] | V145: Bandwidth
A146: Ext IPS BW | B146: SM130 | C146: Mkt 1 - Ext Ipst Connect BW - ATM 2mbit Cust If | D146: ["] | E146: ["] | F146: ["] | G146: ["] | H146: ["] | I146: ["] | J146: ["] | K146: ["] | L146: ["] | M146: ["] | N146: ["] | O146: ["] | P146: ["] | Q146: ["] | R146: ["] | S146: ["] | T146: ["] | U146: ["] | V146: Bandwidth
A147: Int DS BW | B147: SM131 | C147: Mkt 1 - Int Datast VPs - ATM 34mbit Cust If | D147: ["] | E147: ["] | F147: ["] | G147: ["] | H147: ["] | I147: ["] | J147: ["] | K147: ["] | L147: ["] | M147: ["] | N147: ["] | O147: ["] | P147: ["] | Q147: ["] | R147: ["] | S147: ["] | T147: ["] | U147: ["] | V147: Excluded
A148: Ext DS BW | B148: SM132 | C148: Mkt 1 - Ext Datast VPs - ATM 34mbit Cust If | D148: ["] | E148: ["] | F148: ["] | G148: ["] | H148: ["] | I148: ["] | J148: ["] | K148: ["] | L148: ["] | M148: ["] | N148: ["] | O148: ["] | P148: ["] | Q148: ["] | R148: ["] | S148: ["] | T148: ["] | U148: ["] | V148: Excluded
A149: Int IPS BW | B149: SM133 | C149: Mkt 1 - Int Ipst Connect BW - ATM 34mbit Cust If | D149: ["] | E149: ["] | F149: ["] | G149: ["] | H149: ["] | I149: ["] | J149: ["] | K149: ["] | L149: ["] | M149: ["] | N149: ["] | O149: ["] | P149: ["] | Q149: ["] | R149: ["] | S149: ["] | T149: ["] | U149: ["] | V149: =VLOOKUP(B149,ControlledServices,5,FALSE) -> Bandwidth
A150: Ext IPS BW | B150: SM134 | C150: Mkt 1 - Ext Ipst Connect BW - ATM 34mbit Cust If | D150: ["] | E150: ["] | F150: ["] | G150: ["] | H150: ["] | I150: ["] | J150: ["] | K150: ["] | L150: ["] | M150: ["] | N150: ["] | O150: ["] | P150: ["] | Q150: ["] | R150: ["] | S150: ["] | T150: ["] | U150: ["] | V150: Bandwidth
A151: Int DS BW | B151: SM135 | C151: Mkt 1 - Int Datast VPs - ATM >155mbit Cust If | D151: ["] | E151: ["] | F151: ["] | G151: ["] | H151: ["] | I151: ["] | J151: ["] | K151: ["] | L151: ["] | M151: ["] | N151: ["] | O151: ["] | P151: ["] | Q151: ["] | R151: ["] | S151: ["] | T151: ["] | U151: ["] | V151: Excluded
A152: Ext DS BW | B152: SM136 | C152: Mkt 1 - Ext Datast VPs - ATM>155mbit Cust If | D152: ["] | E152: ["] | F152: ["] | G152: ["] | H152: ["] | I152: ["] | J152: ["] | K152: ["] | L152: ["] | M152: ["] | N152: ["] | O152: ["] | P152: ["] | Q152: ["] | R152: ["] | S152: ["] | T152: ["] | U152: ["] | V152: Excluded
A153: Int IPS BW | B153: SM137 | C153: Mkt 1 - Int Ipst Connect BW - >155mbit Cust If | D153: ["] | E153: ["] | F153: ["] | G153: ["] | H153: ["] | I153: ["] | J153: ["] | K153: ["] | L153: ["] | M153: ["] | N153: ["] | O153: ["] | P153: ["] | Q153: ["] | R153: ["] | S153: ["] | T153: ["] | U153: ["] | V153: Bandwidth
A154: Ext IPS BW | B154: SM138 | C154: Mkt 1 - Ext Ipst Connect BW - ATM >155mbit Cust If | D154: ["] | E154: ["] | F154: ["] | G154: ["] | H154: ["] | I154: ["] | J154: ["] | K154: ["] | L154: ["] | M154: ["] | N154: ["] | O154: ["] | P154: ["] | Q154: ["] | R154: ["] | S154: ["] | T154: ["] | U154: ["] | V154: Bandwidth
A155: Int DS BW | B155: SM139 | C155: Mkt 1 - Int Datast VPs - ATM Network If | D155: ["] | E155: ["] | F155: ["] | G155: ["] | H155: ["] | I155: ["] | J155: ["] | K155: ["] | L155: ["] | M155: ["] | N155: ["] | O155: ["] | P155: ["] | Q155: ["] | R155: ["] | S155: ["] | T155: ["] | U155: ["] | V155: Excluded
A156: Ext DS BW | B156: SM140 | C156: Mkt 1 - Ext Datast VPs - ATM Network If | D156: ["] | E156: ["] | F156: ["] | G156: ["] | H156: ["] | I156: ["] | J156: ["] | K156: ["] | L156: ["] | M156: ["] | N156: ["] | O156: ["] | P156: ["] | Q156: ["] | R156: ["] | S156: ["] | T156: ["] | U156: ["] | V156: Excluded
A157: Int IPS BW | B157: SM141 | C157: Mkt 1 - Int Ipst Connect BW - ATM Network If | D157: ["] | E157: ["] | F157: ["] | G157: ["] | H157: ["] | I157: ["] | J157: ["] | K157: ["] | L157: ["] | M157: ["] | N157: ["] | O157: ["] | P157: ["] | Q157: ["] | R157: ["] | S157: ["] | T157: ["] | U157: ["] | V157: Bandwidth
A158: Ext IPS BW | B158: SM142 | C158: Mkt 1 - Ext Ipst Connect BW - ATM Network If | D158: ["] | E158: ["] | F158: ["] | G158: ["] | H158: ["] | I158: ["] | J158: ["] | K158: ["] | L158: ["] | M158: ["] | N158: ["] | O158: ["] | P158: ["] | Q158: ["] | R158: ["] | S158: ["] | T158: ["] | U158: ["] | V158: Bandwidth
A159: Int DS BW | B159: SM143 | C159: Mkt 1 - Int Datast VPs - ATM Network Switch | D159: ["] | E159: ["] | F159: ["] | G159: ["] | H159: ["] | I159: ["] | J159: ["] | K159: ["] | L159: ["] | M159: ["] | N159: ["] | O159: ["] | P159: ["] | Q159: ["] | R159: ["] | S159: ["] | T159: ["] | U159: ["] | V159: Excluded
A160: Ext DS BW | B160: SM144 | C160: Mkt 1 - Ext Datast VPs - ATM Network Switch | D160: ["] | E160: ["] | F160: ["] | G160: ["] | H160: ["] | I160: ["] | J160: ["] | K160: ["] | L160: ["] | M160: ["] | N160: ["] | O160: ["] | P160: ["] | Q160: ["] | R160: ["] | S160: ["] | T160: ["] | U160: ["] | V160: Excluded
A161: Int IPS BW | B161: SM145 | C161: Mkt 1 - Int Ipst Connect BW - ATM Network Switch | D161: ["] | E161: ["] | F161: ["] | G161: ["] | H161: ["] | I161: ["] | J161: ["] | K161: ["] | L161: ["] | M161: ["] | N161: ["] | O161: ["] | P161: ["] | Q161: ["] | R161: ["] | S161: ["] | T161: ["] | U161: ["] | V161: Bandwidth
A162: Ext IPS BW | B162: SM146 | C162: Mkt 1 - Ext Ipst Connect BW - ATM Network Switch | D162: ["] | E162: ["] | F162: ["] | G162: ["] | H162: ["] | I162: ["] | J162: ["] | K162: ["] | L162: ["] | M162: ["] | N162: ["] | O162: ["] | P162: ["] | Q162: ["] | R162: ["] | S162: ["] | T162: ["] | U162: ["] | V162: Bandwidth
A163: Int DS BW | B163: SM147 | C163: Mkt 1 - Int Datast VPs - Inter ATM Trans | D163: ["] | E163: ["] | F163: ["] | G163: ["] | H163: ["] | I163: ["] | J163: ["] | K163: ["] | L163: ["] | M163: ["] | N163: ["] | O163: ["] | P163: ["] | Q163: ["] | R163: ["] | S163: ["] | T163: ["] | U163: ["] | V163: Excluded
A164: Ext DS BW | B164: SM148 | C164: Mkt 1 - Ext Datast VPs - Inter ATM Trans | D164: ["] | E164: ["] | F164: ["] | G164: ["] | H164: ["] | I164: ["] | J164: ["] | K164: ["] | L164: ["] | M164: ["] | N164: ["] | O164: ["] | P164: ["] | Q164: ["] | R164: ["] | S164: ["] | T164: ["] | U164: ["] | V164: Excluded
A165: Int IPS BW | B165: SM149 | C165: Mkt 1 - Int Ipst Connect BW - Inter ATM Trans | D165: ["] | E165: ["] | F165: ["] | G165: ["] | H165: ["] | I165: ["] | J165: ["] | K165: ["] | L165: ["] | M165: ["] | N165: ["] | O165: ["] | P165: ["] | Q165: ["] | R165: ["] | S165: ["] | T165: ["] | U165: ["] | V165: Bandwidth
A166: Ext IPS BW | B166: SM150 | C166: Mkt 1 - Ext Ipst Connect BW - Inter ATM Trans | D166: ["] | E166: ["] | F166: ["] | G166: ["] | H166: ["] | I166: ["] | J166: ["] | K166: ["] | L166: ["] | M166: ["] | N166: ["] | O166: ["] | P166: ["] | Q166: ["] | R166: ["] | S166: ["] | T166: ["] | U166: ["] | V166: Bandwidth
A167: Int DS BW | B167: SM151 | C167: Mkt 1 - Int Datast VPs - Backhaul | D167: ["] | E167: ["] | F167: ["] | G167: ["] | H167: ["] | I167: ["] | J167: ["] | K167: ["] | L167: ["] | M167: ["] | N167: ["] | O167: ["] | P167: ["] | Q167: ["] | R167: ["] | S167: ["] | T167: ["] | U167: ["] | V167: Excluded
A168: Ext DS BW | B168: SM152 | C168: Mkt 1 - Ext Datast VPs - Backhaul | D168: ["] | E168: ["] | F168: ["] | G168: ["] | H168: ["] | I168: ["] | J168: ["] | K168: ["] | L168: ["] | M168: ["] | N168: ["] | O168: ["] | P168: ["] | Q168: ["] | R168: ["] | S168: ["] | T168: ["] | U168: ["] | V168: Excluded
A169: Int IPS BW | B169: SM153 | C169: Mkt 1 - Int Ipst Connect BW - backhaul | D169: ["] | E169: ["] | F169: ["] | G169: ["] | H169: ["] | I169: ["] | J169: ["] | K169: ["] | L169: ["] | M169: ["] | N169: ["] | O169: ["] | P169: ["] | Q169: ["] | R169: ["] | S169: ["] | T169: ["] | U169: ["] | V169: Bandwidth
A170: Ext IPS BW | B170: SM154 | C170: Mkt 1 - Ext Ipst Connect BW - Backhaul | D170: ["] | E170: ["] | F170: ["] | G170: ["] | H170: ["] | I170: ["] | J170: ["] | K170: ["] | L170: ["] | M170: ["] | N170: ["] | O170: ["] | P170: ["] | Q170: ["] | R170: ["] | S170: ["] | T170: ["] | U170: ["] | V170: Bandwidth
A171: Int DS EU Rent | B171: SM155 | C171: Mkt 1 - Int Datast VPs - DSLAM overhead | D171: ["] | E171: ["] | F171: ["] | G171: ["] | H171: ["] | I171: ["] | J171: ["] | K171: ["] | L171: ["] | M171: ["] | N171: ["] | O171: ["] | P171: ["] | Q171: ["] | R171: ["] | S171: ["] | T171: ["] | U171: ["] | V171: Excluded
A172: Ext DS EU Rent | B172: SM156 | C172: Mkt 1 - Ext Datast VPs - DSLAM overhead | D172: ["] | E172: ["] | F172: ["] | G172: ["] | H172: ["] | I172: ["] | J172: ["] | K172: ["] | L172: ["] | M172: ["] | N172: ["] | O172: ["] | P172: ["] | Q172: ["] | R172: ["] | S172: ["] | T172: ["] | U172: ["] | V172: Excluded
A173: Int IPS EU Rent | B173: SM157 | C173: Mkt 1 - Int Ipst Connect BW - DSLAM overhead | D173: ["] | E173: ["] | F173: ["] | G173: ["] | H173: ["] | I173: ["] | J173: ["] | K173: ["] | L173: ["] | M173: ["] | N173: ["] | O173: ["] | P173: ["] | Q173: ["] | R173: ["] | S173: ["] | T173: ["] | U173: ["] | V173: Rentals
A174: Ext IPS EU Rent | B174: SM158 | C174: Mkt 1 - Ext Ipst Connect BW - DSLAM overhead | D174: ["] | E174: ["] | F174: ["] | G174: ["] | H174: ["] | I174: ["] | J174: ["] | K174: ["] | L174: ["] | M174: ["] | N174: ["] | O174: ["] | P174: ["] | Q174: ["] | R174: ["] | S174: ["] | T174: ["] | U174: ["] | V174: Rentals
A175: Int Ancillary | B175: SM159 | C175: Mkt 1 - Int Handover Charges | D175: ["] | E175: ["] | F175: ["] | G175: ["] | H175: ["] | I175: ["] | J175: ["] | K175: ["] | L175: ["] | M175: ["] | N175: ["] | O175: ["] | P175: ["] | Q175: ["] | R175: ["] | S175: ["] | T175: ["] | U175: ["] | V175: Excluded
A176: Ext Ancillary | B176: SM160 | C176: Mkt 1 - Ext Handover Charges | D176: ["] | E176: ["] | F176: ["] | G176: ["] | H176: ["] | I176: ["] | J176: ["] | K176: ["] | L176: ["] | M176: ["] | N176: ["] | O176: ["] | P176: ["] | Q176: ["] | R176: ["] | S176: ["] | T176: ["] | U176: ["] | V176: Excluded
A177: Int Ancillary | B177: SM161 | C177: Mkt 1 Int end user access OR 20CN to WBC regrades | D177: ["] | E177: ["] | F177: ["] | G177: ["] | H177: ["] | I177: ["] | J177: ["] | K177: ["] | L177: ["] | M177: ["] | N177: ["] | O177: ["] | P177: ["] | Q177: ["] | R177: ["] | S177: ["] | T177: ["] | U177: ["] | V177: Excluded
A178: Ext Ancillary | B178: SM162 | C178: Mkt 1 Ext end user access OR 20CN to WBC regrades | D178: ["] | E178: ["] | F178: ["] | G178: ["] | H178: ["] | I178: ["] | J178: ["] | K178: ["] | L178: ["] | M178: ["] | N178: ["] | O178: ["] | P178: ["] | Q178: ["] | R178: ["] | S178: ["] | T178: ["] | U178: ["] | V178: Excluded
A179: Int Ancillary | B179: SM163 | C179: Mkt 1 Int end user access WH 20CN to WBC regrades | D179: ["] | E179: ["] | F179: ["] | G179: ["] | H179: ["] | I179: ["] | J179: ["] | K179: ["] | L179: ["] | M179: ["] | N179: ["] | O179: ["] | P179: ["] | Q179: ["] | R179: ["] | S179: ["] | T179: ["] | U179: ["] | V179: Excluded
A180: Ext Ancillary | B180: SM164 | C180: Mkt 1 Ext end user access WH 20CN to WBC regrades | D180: ["] | E180: ["] | F180: ["] | G180: ["] | H180: ["] | I180: ["] | J180: ["] | K180: ["] | L180: ["] | M180: ["] | N180: ["] | O180: ["] | P180: ["] | Q180: ["] | R180: ["] | S180: ["] | T180: ["] | U180: ["] | V180: Excluded
A181: Int IPS EU Rent | B181: SM165 | C181: Mkt 1 - Int SFI - OR | D181: ["] | E181: ["] | F181: ["] | G181: ["] | H181: ["] | I181: ["] | J181: ["] | K181: ["] | L181: ["] | M181: ["] | N181: ["] | O181: ["] | P181: ["] | Q181: ["] | R181: ["] | S181: ["] | T181: ["] | U181: ["] | V181: =VLOOKUP(B181,ControlledServices,5,FALSE) -> Rentals
A182: Ext IPS EU Rent | B182: SM166 | C182: Mkt 1 - Ext SFI - OR | D182: ["] | E182: ["] | F182: ["] | G182: ["] | H182: ["] | I182: ["] | J182: ["] | K182: ["] | L182: ["] | M182: ["] | N182: ["] | O182: ["] | P182: ["] | Q182: ["] | R182: ["] | S182: ["] | T182: ["] | U182: ["] | V182: Rentals
A183: Int Ancillary | B183: SM167 | C183: Mkt 1 - Int SFI - WH | D183: ["] | E183: ["] | F183: ["] | G183: ["] | H183: ["] | I183: ["] | J183: ["] | K183: ["] | L183: ["] | M183: ["] | N183: ["] | O183: ["] | P183: ["] | Q183: ["] | R183: ["] | S183: ["] | T183: ["] | U183: ["] | V183: Excluded
A184: Ext Ancillary | B184: SM168 | C184: Mkt 1 - Ext SFI - WH | D184: ["] | E184: ["] | F184: ["] | G184: ["] | H184: ["] | I184: ["] | J184: ["] | K184: ["] | L184: ["] | M184: ["] | N184: ["] | O184: ["] | P184: ["] | Q184: ["] | R184: ["] | S184: ["] | T184: ["] | U184: ["] | V184: Excluded
A185: Int Ancillary | B185: SM169 | C185: Mkt 1 - Int Other Ancillaries | D185: ["] | E185: ["] | F185: ["] | G185: ["] | H185: ["] | I185: ["] | J185: ["] | K185: ["] | L185: ["] | M185: ["] | N185: ["] | O185: ["] | P185: ["] | Q185: ["] | R185: ["] | S185: ["] | T185: ["] | U185: ["] | V185: Excluded
A186: Ext Ancillary | B186: SM170 | C186: Mkt 1 - Ext Other Ancillaries | D186: ["] | E186: ["] | F186: ["] | G186: ["] | H186: ["] | I186: ["] | J186: ["] | K186: ["] | L186: ["] | M186: ["] | N186: ["] | O186: ["] | P186: ["] | Q186: ["] | R186: ["] | S186: ["] | T186: ["] | U186: ["] | V186: Excluded
A187: Int DS EU Rent | B187: SM171 | C187: Mkt 1 - Int Datastream - DSLAM depreciation | D187: ["] | E187: ["] | F187: ["] | G187: ["] | H187: ["] | I187: ["] | J187: ["] | K187: ["] | L187: ["] | M187: ["] | N187: ["] | O187: ["] | P187: ["] | Q187: ["] | R187: ["] | S187: ["] | T187: ["] | U187: ["] | V187: Excluded
A188: Ext DS EU Rent | B188: SM172 | C188: Mkt 1 - Ext Datastream - DSLAM depreciation | D188: ["] | E188: ["] | F188: ["] | G188: ["] | H188: ["] | I188: ["] | J188: ["] | K188: ["] | L188: ["] | M188: ["] | N188: ["] | O188: ["] | P188: ["] | Q188: ["] | R188: ["] | S188: ["] | T188: ["] | U188: ["] | V188: Excluded
A189: Int IPS EU Rent | B189: SM173 | C189: Mkt 1 - Int Ipst Connect - DSLAM depreciation | D189: ["] | E189: ["] | F189: ["] | G189: ["] | H189: ["] | I189: ["] | J189: ["] | K189: ["] | L189: ["] | M189: ["] | N189: ["] | O189: ["] | P189: ["] | Q189: ["] | R189: ["] | S189: ["] | T189: ["] | U189: ["] | V189: Rentals
A190: Ext IPS EU Rent | B190: SM174 | C190: Mkt 1 - Ext Ipst Connect - DSLAM depreciation | D190: ["] | E190: ["] | F190: ["] | G190: ["] | H190: ["] | I190: ["] | J190: ["] | K190: ["] | L190: ["] | M190: ["] | N190: ["] | O190: ["] | P190: ["] | Q190: ["] | R190: ["] | S190: ["] | T190: ["] | U190: ["] | V190: Rentals
A191: Int Ancillary | B191: SM175 | C191: Mkt 1 - OR Int end user access CP Mig | D191: ["] | E191: ["] | F191: ["] | G191: ["] | H191: ["] | I191: ["] | J191: ["] | K191: ["] | L191: ["] | M191: ["] | N191: ["] | O191: ["] | P191: ["] | Q191: ["] | R191: ["] | S191: ["] | T191: ["] | U191: ["] | V191: Excluded
A192: Ext Ancillary | B192: SM176 | C192: Mkt 1 - OR Ext end user access CP Mig | D192: ["] | E192: ["] | F192: ["] | G192: ["] | H192: ["] | I192: ["] | J192: ["] | K192: ["] | L192: ["] | M192: ["] | N192: ["] | O192: ["] | P192: ["] | Q192: ["] | R192: ["] | S192: ["] | T192: ["] | U192: ["] | V192: Excluded
A193: Int IPS EU Rent | B193: SM177 | C193: Mkt 1 - OR Int IPstream Connect DSLAM Grooming | D193: ["] | E193: ["] | F193: ["] | G193: ["] | H193: ["] | I193: ["] | J193: ["] | K193: ["] | L193: ["] | M193: ["] | N193: ["] | O193: ["] | P193: ["] | Q193: ["] | R193: ["] | S193: ["] | T193: ["] | U193: ["] | V193: Rentals
A194: Ext IPS EU Rent | B194: SM178 | C194: Mkt 1 - OR Ext IPstream Connect DSLAM Grooming | D194: ["] | E194: ["] | F194: ["] | G194: ["] | H194: ["] | I194: ["] | J194: ["] | K194: ["] | L194: ["] | M194: ["] | N194: ["] | O194: ["] | P194: ["] | Q194: ["] | R194: ["] | S194: ["] | T194: ["] | U194: ["] | V194: Rentals
A195: Int DS EU Rent | B195: SM179 | C195: Mkt 1 - OR Int Datastream DSLAM Grooming | D195: ["] | E195: ["] | F195: ["] | G195: ["] | H195: ["] | I195: ["] | J195: ["] | K195: ["] | L195: ["] | M195: ["] | N195: ["] | O195: ["] | P195: ["] | Q195: ["] | R195: ["] | S195: ["] | T195: ["] | U195: ["] | V195: Excluded
A196: Ext DS EU Rent | B196: SM180 | C196: Mkt 1 - OR Ext Datastream DSLAM Grooming | D196: ["] | E196: ["] | F196: ["] | G196: ["] | H196: ["] | I196: ["] | J196: ["] | K196: ["] | L196: ["] | M196: ["] | N196: ["] | O196: ["] | P196: ["] | Q196: ["] | R196: ["] | S196: ["] | T196: ["] | U196: ["] | V196: Excluded
A197: Int IPS EU Rent | B197: SM181 | C197: Mkt 1 - OR Int IPstream Connect 21CN Tie cables | D197: ["] | E197: ["] | F197: ["] | G197: ["] | H197: ["] | I197: ["] | J197: ["] | K197: ["] | L197: ["] | M197: ["] | N197: ["] | O197: ["] | P197: ["] | Q197: ["] | R197: ["] | S197: ["] | T197: ["] | U197: ["] | V197: Rentals
A198: Ext IPS EU Rent | B198: SM182 | C198: Mkt 1 - OR Ext IPstream Connect 21CN Tie cables | D198: ["] | E198: ["] | F198: ["] | G198: ["] | H198: ["] | I198: ["] | J198: ["] | K198: ["] | L198: ["] | M198: ["] | N198: ["] | O198: ["] | P198: ["] | Q198: ["] | R198: ["] | S198: ["] | T198: ["] | U198: ["] | V198: Rentals
A199: Int DS EU Rent | B199: SM183 | C199: Mkt 1 - OR Int Datastream 21CN Tie cables | D199: ["] | E199: ["] | F199: ["] | G199: ["] | H199: ["] | I199: ["] | J199: ["] | K199: ["] | L199: ["] | M199: ["] | N199: ["] | O199: ["] | P199: ["] | Q199: ["] | R199: ["] | S199: ["] | T199: ["] | U199: ["] | V199: Excluded
A200: Ext DS EU Rent | B200: SM184 | C200: Mkt 1 - OR Ext Datastream 21CN Tie cables | D200: ["] | E200: ["] | F200: ["] | G200: ["] | H200: ["] | I200: ["] | J200: ["] | K200: ["] | L200: ["] | M200: ["] | N200: ["] | O200: ["] | P200: ["] | Q200: ["] | R200: ["] | S200: ["] | T200: ["] | U200: ["] | V200: Excluded
A201: Int WBC EU Rent | B201: SM185 | C201: Mkt 1 - OR Int WBC 21CN Tie cables | D201: ["] | E201: ["] | F201: ["] | G201: ["] | H201: ["] | I201: ["] | J201: ["] | K201: ["] | L201: ["] | M201: ["] | N201: ["] | O201: ["] | P201: ["] | Q201: ["] | R201: ["] | S201: ["] | T201: ["] | U201: ["] | V201: Excluded
A202: Ext WBC EU Rent | B202: SM186 | C202: Mkt 1 - OR Ext WBC 21CN Tie cables | D202: ["] | E202: ["] | F202: ["] | G202: ["] | H202: ["] | I202: ["] | J202: ["] | K202: ["] | L202: ["] | M202: ["] | N202: ["] | O202: ["] | P202: ["] | Q202: ["] | R202: ["] | S202: ["] | T202: ["] | U202: ["] | V202: Excluded
A203: Int IPS EU Rent | B203: SM187 | C203: Mkt 1 - OR Int IPstream Connect 20CN Tie cables | D203: ["] | E203: ["] | F203: ["] | G203: ["] | H203: ["] | I203: ["] | J203: ["] | K203: ["] | L203: ["] | M203: ["] | N203: ["] | O203: ["] | P203: ["] | Q203: ["] | R203: ["] | S203: ["] | T203: ["] | U203: ["] | V203: Rentals
A204: Ext IPS EU Rent | B204: SM188 | C204: Mkt 1 - OR Ext IPstream Connect 20CN Tie cables | D204: ["] | E204: ["] | F204: ["] | G204: ["] | H204: ["] | I204: ["] | J204: ["] | K204: ["] | L204: ["] | M204: ["] | N204: ["] | O204: ["] | P204: ["] | Q204: ["] | R204: ["] | S204: ["] | T204: ["] | U204: ["] | V204: Rentals
A205: Int DS EU Rent | B205: SM189 | C205: Mkt 1 - OR Int Datastream 20CN Tie cables | D205: ["] | E205: ["] | F205: ["] | G205: ["] | H205: ["] | I205: ["] | J205: ["] | K205: ["] | L205: ["] | M205: ["] | N205: ["] | O205: ["] | P205: ["] | Q205: ["] | R205: ["] | S205: ["] | T205: ["] | U205: ["] | V205: Excluded
A206: Ext DS EU Rent | B206: SM190 | C206: Mkt 1 - OR Ext Datastream 20CN Tie cables | D206: ["] | E206: ["] | F206: ["] | G206: ["] | H206: ["] | I206: ["] | J206: ["] | K206: ["] | L206: ["] | M206: ["] | N206: ["] | O206: ["] | P206: ["] | Q206: ["] | R206: ["] | S206: ["] | T206: ["] | U206: ["] | V206: Excluded
... 325 more rows

Sheet BT_LOOK UP TABLE
A1: SHEET TYPE: | B1: INPUT DATA
A2: Service Code | B2: Serv Mapping | C2: Service Description | D2: EOI | E2: Bandwidth/Rentals/excluded
A3: SM110 | B3: Ext Ancillary | C3: Mkt 1 - OR Ext WBA end user access-ceases | D3: EOI | E3: Excluded
A4: SM192 | B4: Ext Ancillary | C4: Mkt 1 - OR Ext WBA SMPF enhanced care | D4: EOI | E4: Excluded
A5: SM198 | B5: Ext Ancillary | C5: Mkt 1 - OR Ext WBA SMPF Expedite | D5: EOI | E5: Excluded
A6: SM120 | B6: Ext Ancillary | C6: Mkt 1 - WH Ext IPst Connect end user access-ceases | D6: WBA | E6: Excluded
A7: SM160 | B7: Ext Ancillary | C7: Mkt 1 - Ext Handover Charges | D7: WBA | E7: Excluded
A8: SM162 | B8: Ext Ancillary | C8: Mkt 1 Ext end user access OR 20CN to WBC regrades | D8: EOI | E8: Excluded
A9: SM164 | B9: Ext Ancillary | C9: Mkt 1 Ext end user access WH 20CN to WBC regrades | D9: WBA | E9: Excluded
A10: SM168 | B10: Ext Ancillary | C10: Mkt 1 - Ext SFI - WH | D10: EOI | E10: Excluded
A11: SM170 | B11: Ext Ancillary | C11: Mkt 1 - Ext Other Ancillaries | D11: WBA | E11: Excluded
A12: SM176 | B12: Ext Ancillary | C12: Mkt 1 - OR Ext end user access CP Mig | D12: EOI | E12: Excluded
A13: SN104 | B13: Ext Ancillary | C13: Mkt 1 - WH Int Broadband Boost | D13: WBA | E13: Excluded
A14: SM102 | B14: Ext Conn | C14: Mkt 1 - OR Ext WBA end user access-conns | D14: EOI | E14: Excluded
A15: SM112 | B15: Ext Conn | C15: Mkt 1 - WH Ext WBA end user access-conns | D15: WBA | E15: Excluded
A16: SN112 | B16: Ext DS BW | C16: Mkt 1 - OR Ext Datastream 21CN Backhaul | D16: EOI | E16: Excluded
A17: SM122 | B17: Ext DS BW | C17: Mkt 1 - Ext Datast VPs - Revenues | D17: WBA | E17: Excluded
A18: SM128 | B18: Ext DS BW | C18: Mkt 1 - Ext Datast VPs - ATM 2mbit Cust If | D18: WBA | E18: Excluded
A19: SM132 | B19: Ext DS BW | C19: Mkt 1 - Ext Datast VPs - ATM 34mbit Cust If | D19: WBA | E19: Excluded
A20: SM136 | B20: Ext DS BW | C20: Mkt 1 - Ext Datast VPs - ATM>155mbit Cust If | D20: WBA | E20: Excluded
A21: SM140 | B21: Ext DS BW | C21: Mkt 1 - Ext Datast VPs - ATM Network If | D21: WBA | E21: Excluded
A22: SM144 | B22: Ext DS BW | C22: Mkt 1 - Ext Datast VPs - ATM Network Switch | D22: WBA | E22: Excluded
A23: SM148 | B23: Ext DS BW | C23: Mkt 1 - Ext Datast VPs - Inter ATM Trans | D23: WBA | E23: Excluded
A24: SM152 | B24: Ext DS BW | C24: Mkt 1 - Ext Datast VPs - Backhaul | D24: WBA | E24: Excluded
A25: SM106 | B25: Ext DS EU Rent | C25: Mkt 1 - OR Ext Datast end user access-rental | D25: EOI | E25: Excluded
A26: SM180 | B26: Ext DS EU Rent | C26: Mkt 1 - OR Ext Datastream DSLAM Grooming | D26: EOI | E26: Excluded
A27: SM184 | B27: Ext DS EU Rent | C27: Mkt 1 - OR Ext Datastream 21CN Tie cables | D27: EOI | E27: Excluded
A28: SM190 | B28: Ext DS EU Rent | C28: Mkt 1 - OR Ext Datastream 20CN Tie cables | D28: EOI | E28: Excluded
A29: SM116 | B29: Ext DS EU Rent | C29: Mkt 1 - WH Ext Datast end user access-rental | D29: WBA | E29: Excluded
A30: SM156 | B30: Ext DS EU Rent | C30: Mkt 1 - Ext Datast VPs - DSLAM overhead | D30: WBA | E30: Excluded
A31: SM172 | B31: Ext DS EU Rent | C31: Mkt 1 - Ext Datastream - DSLAM depreciation | D31: WBA | E31: Excluded
A32: SN110 | B32: Ext IPS BW | C32: Mkt 1 - OR Ext IPstream Connect 21CN Backhaul | D32: EOI | E32: Bandwidth
A33: SM124 | B33: Ext IPS BW | C33: Mkt 1 - Ext Ipst Connect BW - Revenues | D33: WBA | E33: Bandwidth
A34: SM130 | B34: Ext IPS BW | C34: Mkt 1 - Ext Ipst Connect BW - ATM 2mbit Cust If | D34: WBA | E34: Bandwidth
A35: SM134 | B35: Ext IPS BW | C35: Mkt 1 - Ext Ipst Connect BW - ATM 34mbit Cust If | D35: WBA | E35: Bandwidth
A36: SM138 | B36: Ext IPS BW | C36: Mkt 1 - Ext Ipst Connect BW - ATM >155mbit Cust If | D36: WBA | E36: Bandwidth
A37: SM142 | B37: Ext IPS BW | C37: Mkt 1 - Ext Ipst Connect BW - ATM Network If | D37: WBA | E37: Bandwidth
A38: SM146 | B38: Ext IPS BW | C38: Mkt 1 - Ext Ipst Connect BW - ATM Network Switch | D38: WBA | E38: Bandwidth
A39: SM150 | B39: Ext IPS BW | C39: Mkt 1 - Ext Ipst Connect BW - Inter ATM Trans | D39: WBA | E39: Bandwidth
A40: SM154 | B40: Ext IPS BW | C40: Mkt 1 - Ext Ipst Connect BW - Backhaul | D40: WBA | E40: Bandwidth
A41: SM104 | B41: Ext IPS EU Rent | C41: Mkt 1 - OR Ext IPst Connect end user access-rental | D41: EOI | E41: Rentals
A42: SM178 | B42: Ext IPS EU Rent | C42: Mkt 1 - OR Ext IPstream Connect DSLAM Grooming | D42: EOI | E42: Rentals
A43: SM182 | B43: Ext IPS EU Rent | C43: Mkt 1 - OR Ext IPstream Connect 21CN Tie cables | D43: EOI | E43: Rentals
A44: SM188 | B44: Ext IPS EU Rent | C44: Mkt 1 - OR Ext IPstream Connect 20CN Tie cables | D44: EOI | E44: Rentals
A45: SM114 | B45: Ext IPS EU Rent | C45: Mkt 1 - WH Ext IPst Connect end user access-rental | D45: WBA | E45: Rentals
A46: SM158 | B46: Ext IPS EU Rent | C46: Mkt 1 - Ext Ipst Connect BW - DSLAM overhead | D46: WBA | E46: Rentals
A47: SM166 | B47: Ext IPS EU Rent | C47: Mkt 1 - Ext SFI - OR | D47: EOI | E47: Rentals
A48: SM174 | B48: Ext IPS EU Rent | C48: Mkt 1 - Ext Ipst Connect - DSLAM depreciation | D48: WBA | E48: Rentals
A49: SN114 | B49: Ext WBC BW | C49: Mkt 1 - OR Ext WBC 21CN Backhaul | D49: EOI | E49: Excluded
A50: SM126 | B50: Ext WBC BW | C50: Mkt 1 - Ext WBC BW - Revenues | D50: WBA | E50: Excluded
A51: SM108 | B51: Ext WBC EU Rent | C51: Mkt 1 - OR Ext WBC end user access-Rentals | D51: EOI | E51: Excluded
A52: SM186 | B52: Ext WBC EU Rent | C52: Mkt 1 - OR Ext WBC 21CN Tie cables | D52: EOI | E52: Excluded
A53: SM118 | B53: Ext WBC EU Rent | C53: Mkt 1 - WH Ext WBC end user access-Rentals | D53: WBA | E53: Excluded
A54: SM109 | B54: Int Ancillary | C54: Mkt 1 - OR Int WBA end user access-ceases | D54: EOI | E54: Excluded
A55: SM175 | B55: Int Ancillary | C55: Mkt 1 - OR Int end user access CP Mig | D55: EOI | E55: Excluded
A56: SM191 | B56: Int Ancillary | C56: Mkt 1 - OR Int WBA SMPF enhanced care | D56: EOI | E56: Excluded
A57: SM197 | B57: Int Ancillary | C57: Mkt 1 - OR Int WBA SMPF Expedite | D57: EOI | E57: Excluded
A58: SN103 | B58: Int Ancillary | C58: Mkt 1 - OR Int Broadband Boost | D58: EOI | E58: Excluded
A59: SM119 | B59: Int Ancillary | C59: Mkt 1 - WH Int IPst Connect end user access-ceases | D59: WBA | E59: Excluded
A60: SM159 | B60: Int Ancillary | C60: Mkt 1 - Int Handover Charges | D60: WBA | E60: Excluded
A61: SM161 | B61: Int Ancillary | C61: Mkt 1 Int end user access OR 20CN to WBC regrades | D61: EOI | E61: Excluded
A62: SM163 | B62: Int Ancillary | C62: Mkt 1 Int end user access WH 20CN to WBC regrades | D62: WBA | E62: Excluded
A63: SM167 | B63: Int Ancillary | C63: Mkt 1 - Int SFI - WH | D63: EOI | E63: Excluded
A64: SM169 | B64: Int Ancillary | C64: Mkt 1 - Int Other Ancillaries | D64: WBA | E64: Excluded
A65: SM101 | B65: Int Conn | C65: Mkt 1 - OR Int WBA end user access-conns | D65: EOI | E65: Excluded
A66: SM111 | B66: Int Conn | C66: Mkt 1 - WH Int WBA end user access-conns | D66: WBA | E66: Excluded
A67: SN111 | B67: Int DS BW | C67: Mkt 1 - OR Int Datastream 21CN Backhaul | D67: EOI | E67: Excluded
A68: SM121 | B68: Int DS BW | C68: Mkt 1 - Int Datast VPs - Revenues | D68: WBA | E68: Excluded
A69: SM127 | B69: Int DS BW | C69: Mkt 1 - Int Datast VPs - ATM 2mbit Cust If | D69: WBA | E69: Excluded
A70: SM131 | B70: Int DS BW | C70: Mkt 1 - Int Datast VPs - ATM 34mbit Cust If | D70: WBA | E70: Excluded
A71: SM135 | B71: Int DS BW | C71: Mkt 1 - Int Datast VPs - ATM >155mbit Cust If | D71: WBA | E71: Excluded
A72: SM139 | B72: Int DS BW | C72: Mkt 1 - Int Datast VPs - ATM Network If | D72: WBA | E72: Excluded
A73: SM143 | B73: Int DS BW | C73: Mkt 1 - Int Datast VPs - ATM Network Switch | D73: WBA | E73: Excluded
A74: SM147 | B74: Int DS BW | C74: Mkt 1 - Int Datast VPs - Inter ATM Trans | D74: WBA | E74: Excluded
A75: SM151 | B75: Int DS BW | C75: Mkt 1 - Int Datast VPs - Backhaul | D75: WBA | E75: Excluded
A76: SM105 | B76: Int DS EU Rent | C76: Mkt 1 - OR Int Datast end user access-rental | D76: EOI | E76: Excluded
A77: SM179 | B77: Int DS EU Rent | C77: Mkt 1 - OR Int Datastream DSLAM Grooming | D77: EOI | E77: Excluded
A78: SM183 | B78: Int DS EU Rent | C78: Mkt 1 - OR Int Datastream 21CN Tie cables | D78: EOI | E78: Excluded
A79: SM189 | B79: Int DS EU Rent | C79: Mkt 1 - OR Int Datastream 20CN Tie cables | D79: EOI | E79: Excluded
A80: SM115 | B80: Int DS EU Rent | C80: Mkt 1 - WH Int Datast end user access-rental | D80: WBA | E80: Excluded
A81: SM155 | B81: Int DS EU Rent | C81: Mkt 1 - Int Datast VPs - DSLAM overhead | D81: WBA | E81: Excluded
A82: SM171 | B82: Int DS EU Rent | C82: Mkt 1 - Int Datastream - DSLAM depreciation | D82: WBA | E82: Excluded
A83: SN109 | B83: Int IPS BW | C83: Mkt 1 - OR Int IPstream Connect 21CN Backhaul | D83: EOI | E83: Bandwidth
A84: SM123 | B84: Int IPS BW | C84: Mkt 1 - Int Ipst Connect BW - Revenues | D84: WBA | E84: Bandwidth
A85: SM129 | B85: Int IPS BW | C85: Mkt 1 - Int Ipst Connect BW - ATM 2mbit Cust If | D85: WBA | E85: Bandwidth
A86: SM133 | B86: Int IPS BW | C86: Mkt 1 - Int Ipst Connect BW - ATM 34mbit Cust If | D86: WBA | E86: Bandwidth
A87: SM137 | B87: Int IPS BW | C87: Mkt 1 - Int Ipst Connect BW - >155mbit Cust If | D87: WBA | E87: Bandwidth
A88: SM141 | B88: Int IPS BW | C88: Mkt 1 - Int Ipst Connect BW - ATM Network If | D88: WBA | E88: Bandwidth
A89: SM145 | B89: Int IPS BW | C89: Mkt 1 - Int Ipst Connect BW - ATM Network Switch | D89: WBA | E89: Bandwidth
A90: SM149 | B90: Int IPS BW | C90: Mkt 1 - Int Ipst Connect BW - Inter ATM Trans | D90: WBA | E90: Bandwidth
A91: SM153 | B91: Int IPS BW | C91: Mkt 1 - Int Ipst Connect BW - backhaul | D91: WBA | E91: Bandwidth
A92: SM103 | B92: Int IPS EU Rent | C92: Mkt 1 - OR Int IPst Connect end user access-rental | D92: EOI | E92: Rentals
A93: SM177 | B93: Int IPS EU Rent | C93: Mkt 1 - OR Int IPstream Connect DSLAM Grooming | D93: EOI | E93: Rentals
A94: SM181 | B94: Int IPS EU Rent | C94: Mkt 1 - OR Int IPstream Connect 21CN Tie cables | D94: EOI | E94: Rentals
A95: SM187 | B95: Int IPS EU Rent | C95: Mkt 1 - OR Int IPstream Connect 20CN Tie cables | D95: EOI | E95: Rentals
A96: SM113 | B96: Int IPS EU Rent | C96: Mkt 1 - WH Int IPst Connect end user access-rental | D96: WBA | E96: Rentals
A97: SM157 | B97: Int IPS EU Rent | C97: Mkt 1 - Int Ipst Connect BW - DSLAM overhead | D97: WBA | E97: Rentals
A98: SM165 | B98: Int IPS EU Rent | C98: Mkt 1 - Int SFI - OR | D98: EOI | E98: Rentals
A99: SM173 | B99: Int IPS EU Rent | C99: Mkt 1 - Int Ipst Connect - DSLAM depreciation | D99: WBA | E99: Rentals
A100: SN113 | B100: Int WBC BW | C100: Mkt 1 - OR Int WBC 21CN Backhaul | D100: EOI | E100: Excluded
A101: SM125 | B101: Int WBC BW | C101: Mkt 1 - Int WBC BW - Revenues | D101: WBA | E101: Excluded
A102: SM107 | B102: Int WBC EU Rent | C102: Mkt 1 - OR Int WBC end user access-Rentals | D102: EOI | E102: Excluded
A103: SM185 | B103: Int WBC EU Rent | C103: Mkt 1 - OR Int WBC 21CN Tie cables | D103: EOI | E103: Excluded
A104: SM117 | B104: Int WBC EU Rent | C104: Mkt 1 - WH Int WBC end user access-Rentals | D104: WBA | E104: Excluded

Sheet INPUT DATA_OTHER
A1: SHEET TYPE: | B1: BASE YEAR INPUT ASSUMPTION
A3: 1) Market size adjustment - moving from market 1 to market A
A4: Source of information: xxxxxxxxxxxxxxxxxxxxxxxxxxxxx
D6: Exchange Count | E6: Average Premises Served | F6: Total Active Circuits | G6: BT Active Circuits
C7: Market A | D7: ["] | E7: ["] | F7: ["] | G7: ["]
C8: Market B | D8: ["] | E8: ["] | F8: ["] | G8: ["]
C9: All exchanges | D9: ["] | E9: ["] | F9: ["] | G9: ["]
C11: Market 1 | D11: ["] | E11: ["] | F11: ["] | G11: ["]
C12: Market 2 | D12: ["] | E12: ["] | F12: ["] | G12: ["]
C13: Market 3 | D13: ["] | E13: ["] | F13: ["] | G13: ["]
C14: All exchanges | D14: ["] | E14: ["] | F14: ["] | G14: ["]
A17: 2) Market volumes
A18: Source of information: BT published 2012 Regulated financial statements
C21: Source reference 1
D22: Starting volumes | E22: Source of data
C23: End User Rentals (Internal & External) | D23: =2205140*(1+'INPUT DATA ASSUMPTION (2) '!$M$13) -> 2000867.953 | E23: 2012 RFS page 75
C24: Bandwidth Volume (Internal & External) | D24: =1613468*(1+'INPUT DATA ASSUMPTION (2) '!$M$13) -> 1464005.195 | E24: 2012 RFS page 75
A26: 3) Market volumes
A27: Source of information: BT published 2012 Regulated financial statements
C29: Source reference 3 | D29: RFS 2012 (£' million) | E29: Source
C30: Revenue | D30: 415 | E30: 2012 RFS page 75
C31: Costs | D31: 338 | E31: 2013 RFS page 75
C33: MCE | D33: 417 | E33: 2015 RFS page 75

Sheet INPUT DATA_Price List Changes
A1: SHEET TYPE: | B1: Price changes in the WBA market source DATA
A4: IPStream price changes as per BT price list | N4: Ofcom should correct the weighted average bandwidth price over the period 1 April 2013 to 31 March 2014 from £70.61 to £68.55 to take into account the reduction in bandwidth price to £61.30 in July 2013 (Ofcom used £64.05 in error).
A5: (1) EU charges shown for IPStream Max only | F5: PRICE CHANGES | H5: 2012/13 | I5: 2013/14 | J5: 2014/15 | K5: 2014/16
A6: (2) Market 3 prices are list price but bespoke discounts available on request | F6: Bandwidth | H6: =R17 -> -0.1728326502 | I6: =S17 -> -0.2694848335 | K6: =U17 -> 0
A7: (3) 1/4/2011 is last price list prior to WBA CC introduced | F7: End User rentals | H7: =R27 -> -0.04154643267 | I7: =S27 -> 0.1157630837 | K7: =U27 -> 0
A8: (4) Figures in green show a reduction, figures in red an increase
A9: (5) CP handover charge provides access to IPStream and WBC
C12: Period of 2011/12 RFS data
M13: Average Annual Prices | R13: Price Changes
C14: 2011-04-01 | D14: 2011-10-01 | E14: 2012-04-01 | F14: 2012-05-01 | G14: 2012-07-01 | H14: 2012-11-01 | I14: 2013-04-01 | J14: 2013-07-01 | K14: 2014-04-01 | M14: 2011/12 | N14: 2012/13 | O14: 2013/14 | P14: 2014/15 | R14: 2012/13 | S14: 2013/14 | T14: 2014/15
C15: =D14-C14 -> 183 | D15: 183 | E15: 30 | F15: 61 | G15: 123 | H15: 151 | I15: 91 | J15: 274 | O15: =O16-O17 -> 2.064383562
A16: Bandwidth per Mb/s | B16: (£ per Mb/s per month) | O16: 70.61446575
B17: Market 1 | C17: 122.64 | D17: 104.25 | E17: 104.25 | F17: 104.25 | G17: 90.38 | H17: 90.38 | I17: 90.38 | J17: 61.3 | M17: =SUMPRODUCT(C17:D17,$C$15:$D$15)/SUM($C$15:$D$15) -> 113.445 | N17: =SUMPRODUCT(E17:H17,$E$15:$H$15)/SUM($E$15:$H$15) -> 93.838 | O17: =SUMPRODUCT(I17:J17,$I$15:$J$15)/SUM($I$15:$J$15)-'2014 WBA Consultation'!E4 -> 68.55008219 | P17: =J17 -> 61.3 | R17: =N17/M17-1 -> -0.1728326502 | S17: =O17/N17-1 -> -0.2694848335 | T17: =P17/O17-1 -> -0.1057632896
B18: Market 2 | C18: 122.64 | D18: 122.64 | E18: 122.64 | F18: 122.64 | G18: 122.64 | H18: 122.64 | I18: 122.64 | J18: 122.64 | M18: =SUMPRODUCT(C18:D18,$C$15:$D$15)/SUM($C$15:$D$15) -> 122.64 | N18: =SUMPRODUCT(E18:H18,$E$15:$H$15)/SUM($E$15:$H$15) -> 122.64 | O18: =SUMPRODUCT(I18:J18,$I$15:$J$15)/SUM($I$15:$J$15) -> 122.64 | R18: =N18/M18-1 -> 0 | S18: =O18/N18-1 -> 0
B19: Market 3 | C19: 122.64 | D19: 122.64 | E19: 122.64 | F19: 122.64 | G19: 122.64 | H19: 122.64 | I19: 122.64 | J19: 122.64 | M19: =SUMPRODUCT(C19:D19,$C$15:$D$15)/SUM($C$15:$D$15) -> 122.64 | N19: =SUMPRODUCT(E19:H19,$E$15:$H$15)/SUM($E$15:$H$15) -> 122.64 | O19: =SUMPRODUCT(I19:J19,$I$15:$J$15)/SUM($I$15:$J$15) -> 122.64 | R19: =N19/M19-1 -> 0 | S19: =O19/N19-1 -> 0
A21: EU connection | B21: (£)
B22: Market 1 | C22: 39.79 | D22: 43.59 | E22: 43.59 | F22: 37.29 | G22: 37.29 | H22: 37.29 | I22: 37.29 | J22: 37.29 | M22: =SUMPRODUCT(C22:D22,$C$15:$D$15)/SUM($C$15:$D$15) -> 41.69 | N22: =SUMPRODUCT(E22:H22,$E$15:$H$15)/SUM($E$15:$H$15) -> 37.80780822 | O22: =SUMPRODUCT(I22:J22,$I$15:$J$15)/SUM($I$15:$J$15) -> 37.29 | R22: =N22/M22-1 -> -0.09312045528 | S22: -0.01369580104
B23: Market 2 | C23: 39.79 | D23: 43.59 | E23: 43.59 | F23: 43.59 | G23: 43.59 | H23: 43.59 | I23: 43.59 | J23: 43.59 | M23: =SUMPRODUCT(C23:D23,$C$15:$D$15)/SUM($C$15:$D$15) -> 41.69 | N23: =SUMPRODUCT(E23:H23,$E$15:$H$15)/SUM($E$15:$H$15) -> 43.59 | O23: =SUMPRODUCT(I23:J23,$I$15:$J$15)/SUM($I$15:$J$15) -> 43.59 | R23: 0.04557447829 | S23: 0
B24: Market 3 | C24: 39.79 | D24: 39.79 | E24: 39.79 | F24: 39.79 | G24: 39.79 | H24: 39.79 | I24: 39.79 | J24: 39.79 | M24: =SUMPRODUCT(C24:D24,$C$15:$D$15)/SUM($C$15:$D$15) -> 39.79 | N24: =SUMPRODUCT(E24:H24,$E$15:$H$15)/SUM($E$15:$H$15) -> 39.79 | O24: =SUMPRODUCT(I24:J24,$I$15:$J$15)/SUM($I$15:$J$15) -> 39.79 | R24: 0 | S24: 0
A26: EU rental | B26: (£ per month)
B27: Market 1 | C27: 6.43 | D27: 6.34 | E27: 6.34 | F27: 6.1 | G27: 6.1 | H27: 6.1 | I27: 6.1 | J27: 7.07 | M27: =SUMPRODUCT(C27:D27,$C$15:$D$15)/SUM($C$15:$D$15) -> 6.385 | N27: =SUMPRODUCT(E27:H27,$E$15:$H$15)/SUM($E$15:$H$15) -> 6.119726027 | O27: =SUMPRODUCT(I27:J27,$I$15:$J$15)/SUM($I$15:$J$15) -> 6.828164384 | P27: =J27 -> 7.07 | R27: =N27/M27-1 -> -0.04154643267 | S27: =O27/N27-1 -> 0.1157630837 | T27: =P27/O27-1 -> 0.03541736883
B28: Market 2 | C28: 6.43 | D28: 6.43 | E28: 6.43 | F28: 6.43 | G28: 6.43 | H28: 7.07 | I28: 7.07 | J28: 7.07 | M28: =SUMPRODUCT(C28:D28,$C$15:$D$15)/SUM($C$15:$D$15) -> 6.43 | N28: =SUMPRODUCT(E28:H28,$E$15:$H$15)/SUM($E$15:$H$15) -> 6.694767123 | O28: =SUMPRODUCT(I28:J28,$I$15:$J$15)/SUM($I$15:$J$15) -> 7.07 | R28: =N28/M28-1 -> 0.04117684655 | S28: =O28/N28-1 -> 0.05604868247
B29: Market 3 | C29: 6.43 | D29: 6.43 | E29: 6.43 | F29: 6.43 | G29: 6.43 | H29: 7.07 | I29: 7.78 | J29: 7.78 | M29: =SUMPRODUCT(C29:D29,$C$15:$D$15)/SUM($C$15:$D$15) -> 6.43 | N29: =SUMPRODUCT(E29:H29,$E$15:$H$15)/SUM($E$15:$H$15) -> 6.694767123 | O29: =SUMPRODUCT(I29:J29,$I$15:$J$15)/SUM($I$15:$J$15) -> 7.78 | R29: =N29/M29-1 -> 0.04117684655 | S29: =O29/N29-1 -> 0.1621016619
A31: EU bandwidth charge | B31: (£ per month)
B32: Market 1 | C32: 0.465 | D32: 0.457 | E32: 0.457 | F32: 0.457 | G32: 0.457 | H32: 0.457 | I32: 0.457 | J32: 0.457 | M32: =SUMPRODUCT(C32:D32,$C$15:$D$15)/SUM($C$15:$D$15) -> 0.461 | N32: =SUMPRODUCT(E32:H32,$E$15:$H$15)/SUM($E$15:$H$15) -> 0.457 | O32: =SUMPRODUCT(I32:J32,$I$15:$J$15)/SUM($I$15:$J$15) -> 0.457 | R32: =N32/M32-1 -> -0.008676789588 | S32: 0
B33: Market 2 | C33: 0.465 | D33: 0.465 | E33: 0.465 | F33: 0.465 | G33: 0.465 | H33: 0.465 | I33: 0.465 | J33: 0.465 | M33: =SUMPRODUCT(C33:D33,$C$15:$D$15)/SUM($C$15:$D$15) -> 0.465 | N33: =SUMPRODUCT(E33:H33,$E$15:$H$15)/SUM($E$15:$H$15) -> 0.465 | O33: =SUMPRODUCT(I33:J33,$I$15:$J$15)/SUM($I$15:$J$15) -> 0.465 | R33: 0 | S33: 0
B34: Market 3 | C34: 0.465 | D34: 0.465 | E34: 0.465 | F34: 0.465 | G34: 0.465 | H34: 0.465 | I34: 0.465 | J34: 0.465 | M34: =SUMPRODUCT(C34:D34,$C$15:$D$15)/SUM($C$15:$D$15) -> 0.465 | N34: =SUMPRODUCT(E34:H34,$E$15:$H$15)/SUM($E$15:$H$15) -> 0.465 | O34: =SUMPRODUCT(I34:J34,$I$15:$J$15)/SUM($I$15:$J$15) -> 0.465 | R34: 0 | S34: 0
A36: Cease | B36: (£)
B37: Market 1 | C37: 24.74 | D37: 5.37 | E37: 0 | F37: 0 | G37: 0 | H37: 0 | I37: 0 | J37: 0 | M37: =SUMPRODUCT(C37:D37,$C$15:$D$15)/SUM($C$15:$D$15) -> 15.055 | N37: =SUMPRODUCT(E37:H37,$E$15:$H$15)/SUM($E$15:$H$15) -> 0 | O37: =SUMPRODUCT(I37:J37,$I$15:$J$15)/SUM($I$15:$J$15) -> 0 | R37: =N37/M37-1 -> -1
B38: Market 2 | C38: 24.74 | D38: 24.74 | E38: 6.71 | F38: 6.71 | G38: 6.71 | H38: 6.71 | I38: 6.71 | J38: 6.71 | M38: =SUMPRODUCT(C38:D38,$C$15:$D$15)/SUM($C$15:$D$15) -> 24.74 | N38: =SUMPRODUCT(E38:H38,$E$15:$H$15)/SUM($E$15:$H$15) -> 6.71 | O38: =SUMPRODUCT(I38:J38,$I$15:$J$15)/SUM($I$15:$J$15) -> 6.71 | R38: =N38/M38-1 -> -0.7287793048 | S38: =O38/N38-1 -> 0
B39: Market 3 | C39: 24.74 | D39: 24.74 | E39: 24.74 | F39: 31.12 | G39: 31.12 | H39: 31.12 | I39: 31.12 | J39: 31.12 | M39: =SUMPRODUCT(C39:D39,$C$15:$D$15)/SUM($C$15:$D$15) -> 24.74 | N39: =SUMPRODUCT(E39:H39,$E$15:$H$15)/SUM($E$15:$H$15) -> 30.59561644 | O39: =SUMPRODUCT(I39:J39,$I$15:$J$15)/SUM($I$15:$J$15) -> 31.12 | R39: =N39/M39-1 -> 0.236686194 | S39: =O39/N39-1 -> 0.01713917295
A41: Migration (no breakdown by market) | B41: (£)
B42: Bulk | C42: 0 | D42: 0 | G42: 0
B43: Singleton | C43: 11 | D43: 11 | G43: 11
A45: CP handover charge | B45: (£ per month)
B46: Market 1 | C46: 8057.5 | D46: 8057.5 | E46: 8057.5 | F46: 8057.5 | G46: 8057.5 | H46: 8057.5 | I46: 8057.5 | J46: 8057.5 | M46: =SUMPRODUCT(C46:D46,$C$15:$D$15)/SUM($C$15:$D$15) -> 8057.5 | N46: =SUMPRODUCT(E46:H46,$E$15:$H$15)/SUM($E$15:$H$15) -> 8057.5 | O46: =SUMPRODUCT(I46:J46,$I$15:$J$15)/SUM($I$15:$J$15) -> 8057.5 | R46: =N46/M46-1 -> 0 | S46: 0
B47: Market 2 | C47: 4400 | D47: 4400 | E47: 4400 | F47: 4400 | G47: 4400 | H47: 4400 | I47: 4400 | J47: 4400 | M47: =SUMPRODUCT(C47:D47,$C$15:$D$15)/SUM($C$15:$D$15) -> 4400 | N47: =SUMPRODUCT(E47:H47,$E$15:$H$15)/SUM($E$15:$H$15) -> 4400 | O47: =SUMPRODUCT(I47:J47,$I$15:$J$15)/SUM($I$15:$J$15) -> 4400 | R47: 0 | S47: 0
B48: Market 3 | C48: 15052.5 | D48: 15052.5 | E48: 15052.5 | F48: 15052.5 | G48: 15052.5 | H48: 15052.5 | I48: 15052.5 | J48: 15052.5 | M48: =SUMPRODUCT(C48:D48,$C$15:$D$15)/SUM($C$15:$D$15) -> 15052.5 | N48: =SUMPRODUCT(E48:H48,$E$15:$H$15)/SUM($E$15:$H$15) -> 15052.5 | O48: =SUMPRODUCT(I48:J48,$I$15:$J$15)/SUM($I$15:$J$15) -> 15052.5 | R48: 0 | S48: 0
A50: IPStream Interconnect Links | B50: (£ Per annum)
B51: 21C 1G | E51: 11175.88 | F51: 11175.88 | G51: 11175.88 | H51: 11175.88 | I51: 11175.88 | J51: 11175.88 | M51: =SUMPRODUCT(C51:D51,$C$15:$D$15)/SUM($C$15:$D$15) -> 0 | N51: =SUMPRODUCT(E51:H51,$E$15:$H$15)/SUM($E$15:$H$15) -> 11175.88 | O51: =SUMPRODUCT(I51:J51,$I$15:$J$15)/SUM($I$15:$J$15) -> 11175.88 | S51: =O51/N51-1 -> 0
B52: 20C 1G | E52: 11175.88 | F52: 11175.88 | G52: 11175.88 | H52: 11175.88 | I52: 11175.88 | J52: 11175.88 | M52: =SUMPRODUCT(C52:D52,$C$15:$D$15)/SUM($C$15:$D$15) -> 0 | N52: =SUMPRODUCT(E52:H52,$E$15:$H$15)/SUM($E$15:$H$15) -> 11175.88 | O52: =SUMPRODUCT(I52:J52,$I$15:$J$15)/SUM($I$15:$J$15) -> 11175.88 | S52: =O52/N52-1 -> 0
B53: 21C 10G | E53: 111758.8 | F53: 111758.8 | G53: 111758.8 | H53: 111758.8 | I53: 111758.8 | J53: 111758.8 | M53: =SUMPRODUCT(C53:D53,$C$15:$D$15)/SUM($C$15:$D$15) -> 0 | N53: =SUMPRODUCT(E53:H53,$E$15:$H$15)/SUM($E$15:$H$15) -> 111758.8 | O53: =SUMPRODUCT(I53:J53,$I$15:$J$15)/SUM($I$15:$J$15) -> 111758.8 | S53: =O53/N53-1 -> 0
B54: 20C 10G | E54: 111758.8 | F54: 111758.8 | G54: 111758.8 | H54: 111758.8 | I54: 111758.8 | J54: 111758.8 | M54: =SUMPRODUCT(C54:D54,$C$15:$D$15)/SUM($C$15:$D$15) -> 0 | N54: =SUMPRODUCT(E54:H54,$E$15:$H$15)/SUM($E$15:$H$15) -> 111758.8 | O54: =SUMPRODUCT(I54:J54,$I$15:$J$15)/SUM($I$15:$J$15) -> 111758.8 | S54: =O54/N54-1 -> 0

Sheet INPUT DATA_Inflation Forecasts
A1: SHEET TYPE: | B1: Inflation forecast from treasury and WACC reference table from lease line charge control
A5: RPI - Feb 13 forecasts
C6: 2012 | D6: 2013 | E6: 2014 | F6: 2015 | G6: 2016 | H6: 2017 | J6: Comments
A7: Dec RPI | C7: 3.1 | D7: 3.2 | E7: 2.9 | F7: 3.3 | G7: 3.3 | H7: 3.6 | J7: 2012 - actual, the rest - average of new medium term forecasts from Treasury Feb 13
J8: http://www.hm-treasury.gov.uk/d/201302forecomp.pdf
D10: 2012/13 | E10: 2013/14 | F10: 2014/15 | G10: 2015/16 | H10: 2016/17
A11: Average Year (calculated) | C11: 3.6 | D11: =D7/12*3+C7/12*9 -> 3.125 | E11: =E7/12*3+D7/12*9 -> 3.125 | F11: =F7/12*3+E7/12*9 -> 3 | G11: =G7/12*3+F7/12*9 -> 3.3 | H11: =H7/12*3+G7/12*9 -> 3.375 | J11: 2012- actual, others calculated from Dec RPI
A13: Average over 4 years to Mar 2015 | H13: =AVERAGE(C11:F11) -> 3.2125
A15: CPI - Feb 13 forecasts
C16: 2012 | D16: 2013 | E16: 2014 | F16: 2015 | G16: 2016 | H16: 2017
A17: Dec CPI | C17: 2.7 | D17: 2.6 | E17: 2.2 | F17: 2.2 | G17: 2.2 | H17: 2.4 | J17: 2012 - actual, the rest - average of new medium term forecasts from Treasury
J18: http://www.hm-treasury.gov.uk/d/201302forecomp.pdf
D20: 2012/13 | E20: 2013/14 | F20: 2014/15 | G20: 2015/16 | H20: 2016/17
A21: Average Year (calculated) | C21: 3.6 | D21: =D17/12*3+C17/12*9 -> 2.675 | E21: =E17/12*3+D17/12*9 -> 2.5 | F21: =F17/12*3+E17/12*9 -> 2.2 | G21: =G17/12*3+F17/12*9 -> 2.2 | H21: =H17/12*3+G17/12*9 -> 2.25
A23: Average over 4 years to Mar 2015 | H23: =AVERAGE(C21:F21) -> 2.74375
A25: Bank of England expects inflation in CPI terms to be c2% in the near term.
A27: GBCI - Feb 13 forecasts
B28: 2011 | C28: 2012 | D28: 2013 | E28: 2014 | F28: 2015 | G28: 2016 | H28: 2017
A30: Dec GBCI | B30: 3.1 | C30: 0.7 | D30: 2.4 | E30: 2.6 | F30: 2.8 | G30: 3.4 | H30: 3.8
A32: Mar GBCI | C32: 2.4 | D32: 1.3 | E32: 2.6 | F32: 2.9 | G32: 3 | H32: 3.6
A34: Average over 4 years to Mar 2015 | H34: =AVERAGE(C32:F32) -> 2.3
A38: WACC | C38: =I54 -> 0.099 | E38: P358, Annex 14, Table A14.1
E39: Leased Line Charge Control Published March 2013
C40: FigureA14.1: BT Cost of capital March 2013
G42: Openreach | H42: BT Group | I42: Rest of BT
C43: Real risk-free rate | G43: 0.013 | H43: =G43 -> 0.013 | I43: 0.013
C44: Inflation | G44: 0.028 | H44: 0.028 | I44: 0.028
C45: Nominal risk-free rate | G45: 0.041 | H45: 0.041 | I45: 0.041
C46: Equity beta (mid-point) | G46: 0.9 | H46: 1.01 | I46: 1.13
C47: Asset beta (mid-point) | G47: 0.6 | H47: 0.67 | I47: 0.74
C48: ERP | G48: 0.05 | H48: =G48 -> 0.05 | I48: =G48 -> 0.05
C49: Gearing | G49: 0.4 | H49: =G49 -> 0.4 | I49: =G49 -> 0.4
C50: Debt premium | G50: 0.017 | H50: 1.7-2.3% | I50: 0.023
C51: Debt beta | G51: 0.15 | H51: =G51 -> 0.15 | I51: =H51 -> 0.15
C52: Tax rate | G52: 0.2 | H52: =G52 -> 0.2 | I52: =G52 -> 0.2
C53: Pre-tax real WACC | G53: 0.059 | H53: 0.064 | I53: 0.069
C54: Pre-tax nominal WACC | G54: 0.088 | H54: 0.093 | I54: 0.099

Sheet WLRLLU Inflation
A2: RPI - forecasts
C3: 2012 | D3: 2013 | E3: 2014 | F3: 2015 | G3: 2016 | H3: 2017
A4: Dec RPI - May 2013 forecast | C4: 3.1 | D4: 3.3 | E4: 2.9 | F4: 3.2 | G4: 3.4 | H4: 3.6 | I4: 12 - actual, the rest - average of new medium term forecasts from Treasury May 13 Forecast (page 23) https://www.gov.uk/government/publications/forecasts-for-the-uk-economy-may-2013
A5: Dec RPI - Feb 2014 forecast | C5: 3.1 | D5: 2.7 | E5: 2.8 | F5: 3 | G5: 3.2 | H5: 3.2 | I5: 2012 and 2013 - actual, the rest - average of new medium term forecasts from Treasury Feb 14 Forecast (page 23) https://www.gov.uk/government/uploads/system/uploads/attachment_data/file/283983/201402forecomp.pdf
A6: Mar RPI (May 2013 forecast) | C6: 3.6 | D6: =D4/12*3+C4/12*9 -> 3.15 | E6: =E4/12*3+D4/12*9 -> 3.2 | F6: =F4/12*3+E4/12*9 -> 2.975 | G6: =G4/12*3+F4/12*9 -> 3.25 | H6: =H4/12*3+G4/12*9 -> 3.45 | I6: 12- actual, others calculated from Dec RPI
A7: Mar RPI (Feb 2014 forecast) | C7: 3.6 | D7: 3.3 | E7: =E5/12*3+D5/12*9 -> 2.725 | F7: =F5/12*3+E5/12*9 -> 2.85 | G7: =G5/12*3+F5/12*9 -> 3.05 | H7: =H5/12*3+G5/12*9 -> 3.2 | I7: 2012 and 2013 - actual, others calculated from Dec RPI
A8: Average over 4 years to Mar 2015 | H8: =AVERAGE(C6:F6) -> 3.23125
A12: CPI - forecasts
C13: 2012 | D13: 2013 | E13: 2014 | F13: 2015 | G13: 2016 | H13: 2017
A14: Dec CPI - May 2013 forecast | C14: 2.7 | D14: 2.8 | E14: 2.3 | F14: 2.2 | G14: 2.2 | H14: 2.2 | I14: 12 - actual, the rest - average of new medium term forecasts from Treasury May 13 (page 23) https://www.gov.uk/government/publications/forecasts-for-the-uk-economy-may-2013
A15: Dec CPI - Feb 2014 forecast | C15: 2.7 | D15: 2 | E15: 2.1 | F15: 2 | G15: 2.1 | H15: 2.1 | I15: 2012 and 2013 - actual, the rest - average of new medium term forecasts from Treasury Feb 14 (page 23) https://www.gov.uk/government/uploads/system/uploads/attachment_data/file/283983/201402forecomp.pdf
A16: Mar CPI (May 2013 forecast) | C16: 3.6 | D16: =D14/12*3+C14/12*9 -> 2.725 | E16: =E14/12*3+D14/12*9 -> 2.675 | F16: =F14/12*3+E14/12*9 -> 2.275 | G16: =G14/12*3+F14/12*9 -> 2.2 | H16: =H14/12*3+G14/12*9 -> 2.2 | I16: 12- actual, others calculated from Dec CPI
A17: Mar CPI (Feb 2014 forecast) | C17: 3.5 | D17: 2.8 | E17: =E15/12*3+D15/12*9 -> 2.025 | F17: =F15/12*3+E15/12*9 -> 2.075 | G17: =G15/12*3+F15/12*9 -> 2.025 | H17: =H15/12*3+G15/12*9 -> 2.1 | I17: 2012 and 2013 - actual, others calculated from Dec CPI
A18: Average over 4 years to Mar 2015 | H18: =AVERAGE(C16:F16) -> 2.81875
A20: B of E expects inflation in CPI terms to be c2% in the near term.
A22: GBCI - Feb 13 forecasts
B23: 2011 | C23: 2012 | D23: 2013 | E23: 2014 | F23: 2015 | G23: 2016 | H23: 2017
A25: Dec GBCI | B25: 3.1 | C25: 0.7 | D25: 2.4 | E25: 2.6 | F25: 2.8 | G25: 3.4 | H25: 3.8
A27: Mar GBCI | C27: 2.4 | D27: 1.3 | E27: 2.6 | F27: 2.9 | G27: 3 | H27: 3.6
A29: Average over 4 years to Mar 2015 | H29: =AVERAGE(C27:F27) -> 2.3
A32: Final Assumptions | D32: 2012/13 | E32: 2013/14 | F32: 2014/15 | G32: 2015/16 | H32: 2016/17
A33: RPI | D33: =E38 -> 0.033 | E33: =F38 -> 0.025 | F33: 0.0285 | G33: 0.0305 | H33: 0.032
A34: CPI | D34: =E39 -> 0.028 | E34: =F39 -> 0.016 | F34: 0.02075 | G34: 0.02025 | H34: 0.021
A36: Inflation rates | B36: Control panel | E36: Use Government target
A37: Rate | B37: Unit | C37: Period | D37: 2011/12 | E37: 2012/13 | F37: 2013/14 | G37: 2014/15 | H37: 2015/16 | I37: 2016/17
A38: Annual RPI inflation rate | B38: % | C38: Period-average | D38: 0.036 | E38: 0.033 | F38: 0.025 | G38: 0.0285 | H38: 0.0305 | I38: 0.032 | J38: RPI
A39: Annual CPI inflation rate | B39: % | C39: Period-average | D39: 0.035 | E39: 0.028 | F39: 0.016 | G39: 0.02075 | H39: 0.02025 | I39: 0.021 | J39: CPI
